Department Family,Entity,Date of Payment,Expense Type,Expense Area,Supplier,Voluntary & Community Sector,SME Class,Sole Trader,D-U-N-S Number,Transaction number,PSPES Level 2,Narrative,Postal Code,Amount in Sterling,Grant?
Communities & Local Government,DCLG,04/01/2016,Agency Staff,Decentralisation and Local Growth,BROOK STREET UK LTD,,Large,,364940028,5106218183,Contingent Labour,Interim Manager,AL1 4JB,495.85,
Communities & Local Government,DCLG,04/01/2016,Agency Staff,Decentralisation and Local Growth,CAPITA BUS. SERV. LTD (CON LAB),,Large,,,5106218186,Contingent Labour,Interim Manager,DL1 9HB,"1,028.02",
Communities & Local Government,DCLG,04/01/2016,Agency Staff,Decentralisation and Local Growth,CAPITA BUS. SERV. LTD (CON LAB),,Large,,,5106218187,Contingent Labour,Interim Manager,DL1 9HB,"4,512.78",
Communities & Local Government,DCLG,04/01/2016,Agency Staff,Decentralisation and Local Growth,CAPITA BUS. SERV. LTD (CON LAB),,Large,,,5106218190,Contingent Labour,Interim Manager,DL1 9HB,"1,780.37",
Communities & Local Government,DCLG,04/01/2016,Agency Staff,Decentralisation and Local Growth,CAPITA BUS. SERV. LTD (CON LAB),,Large,,,5106218191,Contingent Labour,Official Travel and Subsistence,DL1 9HB,"1,115.82",
Communities & Local Government,DCLG,04/01/2016,Agency Staff,Decentralisation and Local Growth,CAPITA BUS. SERV. LTD (CON LAB),,Large,,,5106218191,Contingent Labour,Interim Manager,DL1 9HB,"4,792.12",
Communities & Local Government,DCLG,04/01/2016,Agency Staff,Finance & Corporate Services,BROOK STREET UK LTD,,Large,,364940028,5106218175,Contingent Labour,Interim Admin support Rate Increase,AL1 4JB,464.35,
Communities & Local Government,DCLG,04/01/2016,Agency Staff,Finance & Corporate Services,BROOK STREET UK LTD,,Large,,364940028,5106218176,Contingent Labour,Interim Admin support,AL1 4JB,411,
Communities & Local Government,DCLG,04/01/2016,Agency Staff,Finance & Corporate Services,BROOK STREET UK LTD,,Large,,364940028,5106218178,Contingent Labour,Interim Admin support,AL1 4JB,418.74,
Communities & Local Government,DCLG,04/01/2016,Agency Staff,Finance & Corporate Services,BROOK STREET UK LTD,,Large,,364940028,5106218179,Contingent Labour,Interim AS (Rate Increase 09/15-03/16),AL1 4JB,490.67,
Communities & Local Government,DCLG,04/01/2016,Agency Staff,Finance & Corporate Services,BROOK STREET UK LTD,,Large,,364940028,5106218180,Contingent Labour,Interim Admin support Rate Increase,AL1 4JB,422.89,
Communities & Local Government,DCLG,04/01/2016,Agency Staff,Finance & Corporate Services,BROOK STREET UK LTD,,Large,,364940028,5106218184,Contingent Labour,Interim Admin support,AL1 4JB,522.91,
Communities & Local Government,DCLG,04/01/2016,Agency Staff,Finance & Corporate Services,CAPITA BUS. SERV. LTD (CON LAB),,Large,,,5106218189,Contingent Labour,Interim Manager,DL1 9HB,623.05,
Communities & Local Government,DCLG,04/01/2016,Agency Staff,Finance & Corporate Services,CAPITA BUS. SERV. LTD (CON LAB),,Large,,,5106218189,Contingent Labour,BPC SAP specialist,DL1 9HB,"3,115.26",
Communities & Local Government,DCLG,04/01/2016,Agency Staff,Housing & Planning,BROOK STREET UK LTD,,Large,,364940028,5106218185,Contingent Labour,Initial 9 Months Interim Admin Support,AL1 4JB,855.79,
Communities & Local Government,DCLG,04/01/2016,Agency Staff,Housing & Planning,CAPITA BUS. SERV. LTD (CON LAB),,Large,,,5106218174,Contingent Labour,Interim Manager,DL1 9HB,"1,030.37",
Communities & Local Government,DCLG,04/01/2016,Agency Staff,"Strategy, Communications and Private Office",BROOK STREET UK LTD,,Large,,364940028,5106218182,Contingent Labour,Temp staff,AL1 4JB,501.38,
Communities & Local Government,DCLG,04/01/2016,Electronic Data Storage,Finance & Corporate Services,TNT UK LIMITED,,Large,,,5106218193,Warehousing and Storage,Visions electronic storage,BL10 9GR,"4,192.44",
Communities & Local Government,DCLG,04/01/2016,Repayments of Private Sect Grant (Cap),Decentralisation and Local Growth,MOLPLEX LTD,,,,,2300002350,,Recovery of payment,SK10 4TG,"-48,000.00",
Communities & Local Government,DCLG,04/01/2016,Steady State Service Provision,Finance & Corporate Services,CGI IT UK LIMITED,,Large,,239881618,5106218181,Business Process Outsourcing Services,Payroll Services & Licences 15/17,CF31 9AP,"10,211.58",
Communities & Local Government,DCLG,04/01/2016,Telecoms equipment (non-capitalised),"Strategy, Communications and Private Office",INHOUSE COMMUNICATIONS LTD,,Micro,,349426184,5106218177,Telecoms,Ministerial Audio Visual telekit 3 calls,WC2E 8QG,"5,700.00",
Communities & Local Government,DCLG,04/01/2016,Training,Finance & Corporate Services,SHARED SERVICES CONNECTED LTD,,Public Bodies,,,5106218168,Development and Training,Training,FY5 3TA,"2,800.00",
Communities & Local Government,DCLG,04/01/2016,Training,Finance & Corporate Services,SHARED SERVICES CONNECTED LTD,,Public Bodies,,,5106218169,Development and Training,Training,FY5 3TA,"2,800.00",
Communities & Local Government,DCLG,04/01/2016,Training,Finance & Corporate Services,SHARED SERVICES CONNECTED LTD,,Public Bodies,,,5106218192,Development and Training,Training,FY5 3TA,"2,800.00",
Communities & Local Government,DCLG,04/01/2016,Work In Progress Pre-Cert 40373 Spend,Decentralisation and Local Growth,UNIVERSITY OF BRADFORD,,,,,7600014705,,Revenue Grant Clawback Offset,BD7 1DP,"-10,567.65",Yes
Communities & Local Government,DCLG,04/01/2016,Work In Progress Pre-Cert 40373 Spend,Decentralisation and Local Growth,UNIVERSITY OF BRADFORD,,,,,7600014705,,Revenue Grant To Be Paid,BD7 1DP,"259,515.45",Yes
Communities & Local Government,DCLG,04/01/2016,Work In Progress Pre-Cert 40467 Spend,Decentralisation and Local Growth,PENDENNIS SHIPYARD LTD,,,,,7600014704,,Capital Grant To Be Paid,TR11 4NR,"205,218.60",Yes
Communities & Local Government,DCLG,04/01/2016,Work In Progress Pre-Cert 40467 Spend,Decentralisation and Local Growth,UNIVERSITY OF BRADFORD,,,,,7600014705,,Capital Grant Clawback Offset,BD7 1DP,"-141,254.09",Yes
Communities & Local Government,DCLG,05/01/2016,Agency Staff,Finance & Corporate Services,BROOK STREET UK LTD,,Large,,364940028,5106218198,Contingent Labour,Interim Admin support Rate Increase,AL1 4JB,663.36,
Communities & Local Government,DCLG,05/01/2016,Grant in Aid to NDPBs (non budget),Finance & Corporate Services,COMMISSION LOCAL ADMINISTRATION,,,,215271508,2100260797,,GIA funding to CLAE for January,SW1P 4QP,"934,000.00",Yes
Communities & Local Government,DCLG,05/01/2016,IT - Service Contracts,Finance & Corporate Services,DAISY CORPORATE SERVICES LTD,,Large,,221481042,5106218199,IT Managed / Outsourced Services,PAMU Office Moves Project Q4 14/15,BB9 5SR,453.01,
Communities & Local Government,DCLG,05/01/2016,IT - Service Contracts,Finance & Corporate Services,FUJITSU SERVICES LTD,,Large,,423375062,5106218203,IT Managed / Outsourced Services,"PINS ""NR"" New Requirements raise by PINS",WA3 6GD,739.3,
Communities & Local Government,DCLG,05/01/2016,IT - Service Contracts,Finance & Corporate Services,FUJITSU SERVICES LTD,,Large,,423375062,5106218206,IT Managed / Outsourced Services,CNFJDCLG017 Y2 Horizon Service Charges,WA3 6GD,573.46,
Communities & Local Government,DCLG,05/01/2016,IT - Service Contracts,Finance & Corporate Services,FUJITSU SERVICES LTD,,Large,,423375062,5106218212,IT Managed / Outsourced Services,CNFJDCLG017 Y2 Horizon Service Charges,WA3 6GD,"7,787.81",
Communities & Local Government,DCLG,05/01/2016,IT - Service Contracts,Housing & Planning,I B M UK LTD,,Large,,210151718,5106218204,IT Managed / Outsourced Services,Service Charges (IBM) up to 31/12/15,PO6 3AE,"20,772.00",
Communities & Local Government,DCLG,05/01/2016,Legal Fees,Housing & Planning,LEASEHOLD ADVISORY SERVICE,,Small,,378000152,5106218147,Legal,Legal Advice,WT1 7BN,"22,500.00",
Communities & Local Government,DCLG,05/01/2016,Publications,Finance & Corporate Services,JONES YARRELL LEADENHALL LTD,,Large,,505670265,5106218205,Learning and Development Materials,Journal and Newspaper supply 2015-16,E3 3JH,290.86,
Communities & Local Government,DCLG,05/01/2016,Services provided by other Govt Orgs,Housing & Planning,VALUATION OFFICE AGENCY,,Public Bodies,,215253886,5106218196,Financial,VOA FEES for RTB revaluations  15-16,W1B 5BU,"124,638.54",Yes
Communities & Local Government,DCLG,06/01/2016,Agency Staff,Decentralisation and Local Growth,BROOK STREET UK LTD,,Large,,364940028,5106218257,Contingent Labour,Interim Manager,AL1 4JB,495.85,
Communities & Local Government,DCLG,06/01/2016,Government Procurement Card (expense),"Strategy, Communications and Private Office",DCLG GOVERNMENT PROCUREMENT CARD,,,,,1000004078,,FT online subscription,TN37 7GA,270,
Communities & Local Government,DCLG,06/01/2016,Grant in Aid to NDPBs (non budget),Housing & Planning,HOMES & COMMUNITIES AGENCY,,Public Bodies,,215576860,2100260832,,HCA Grant in Aid Claim,NE11 0NA,"21,165,382.00",Yes
Communities & Local Government,DCLG,06/01/2016,IT - Service Contracts,Finance & Corporate Services,FUJITSU SERVICES LTD,,Large,,423375062,5106218158,IT Managed / Outsourced Services,"FY15/16 LOBA Charges""LoBA MatrixCharges""",WA3 6GD,"27,675.75",
Communities & Local Government,DCLG,06/01/2016,IT - Service Contracts,Finance & Corporate Services,FUJITSU SERVICES LTD,,Large,,423375062,5106218159,IT Managed / Outsourced Services,"FY15/16 Desktop Charges ""D""Table Charges",WA3 6GD,"1,549.08",
Communities & Local Government,DCLG,06/01/2016,IT - Service Contracts,Finance & Corporate Services,FUJITSU SERVICES LTD,,Large,,423375062,5106218208,IT Managed / Outsourced Services,"FY15/16 Desktop Charges ""D""Table Charges",WA3 6GD,"1,865.73",
Communities & Local Government,DCLG,06/01/2016,IT - Service Contracts,Finance & Corporate Services,FUJITSU SERVICES LTD,,Large,,423375062,5106218209,IT Managed / Outsourced Services,"FY15/16 Desktop Charges ""D""Table Charges",WA3 6GD,"5,026.65",
Communities & Local Government,DCLG,06/01/2016,IT - Service Contracts,Finance & Corporate Services,FUJITSU SERVICES LTD,,Large,,423375062,5106218210,IT Managed / Outsourced Services,"FY15/16 Desktop Charges ""D""Table Charges",WA3 6GD,"184,929.78",
Communities & Local Government,DCLG,06/01/2016,IT - Service Contracts,Finance & Corporate Services,FUJITSU SERVICES LTD,,Large,,423375062,5106218211,IT Managed / Outsourced Services,"FY15/16 Desktop Charges ""D""Table Charges",WA3 6GD,312.32,
Communities & Local Government,DCLG,06/01/2016,IT - Service Contracts,Finance & Corporate Services,FUJITSU SERVICES LTD,,Large,,423375062,5106218213,IT Managed / Outsourced Services,"FY15/16 DRP Charges ""DRP1Table Charges",WA3 6GD,"10,128.24",
Communities & Local Government,DCLG,06/01/2016,IT - Service Contracts,Finance & Corporate Services,FUJITSU SERVICES LTD,,Large,,423375062,5106218214,IT Managed / Outsourced Services,"FY15/16WAN Management Charges(""W""Tables)",WA3 6GD,"2,645.18",
Communities & Local Government,DCLG,06/01/2016,IT - Service Contracts,Finance & Corporate Services,FUJITSU SERVICES LTD,,Large,,423375062,5106218215,IT Managed / Outsourced Services,"FY15/16 Desktop Charges ""D""Table Charges",WA3 6GD,"7,264.50",
Communities & Local Government,DCLG,06/01/2016,IT - Service Contracts,Finance & Corporate Services,FUJITSU SERVICES LTD,,Large,,423375062,5106218235,IT Managed / Outsourced Services,NRF0056 LiveLink SQL Server Works,WA3 6GD,"16,923.64",
Communities & Local Government,DCLG,06/01/2016,IT - Service Contracts,Finance & Corporate Services,FUJITSU SERVICES LTD,,Large,,423375062,5106218255,IT Managed / Outsourced Services,"FY15/16 Desktop Charges ""D""Table Charges",WA3 6GD,"46,030.47",
Communities & Local Government,DCLG,06/01/2016,IT - Service Contracts,Finance & Corporate Services,FUJITSU SERVICES LTD,,Large,,423375062,5106218256,IT Managed / Outsourced Services,"FY15/16 Storage Charges (""S""TableCharge)",WA3 6GD,"19,600.50",
Communities & Local Government,DCLG,06/01/2016,IT - Service Contracts,Finance & Corporate Services,ICASEWORK LTD,,Large,,,5106217790,IT Managed / Outsourced Services,Monthly Fee (24 x 3833.33),NW6 7SG,"-4,600.00",
Communities & Local Government,DCLG,06/01/2016,Office Supplies,Decentralisation and Local Growth,BROOK STREET UK LTD,,Large,,364940028,5106218225,Financial,Interim Manager,AL1 4JB,643.36,
Communities & Local Government,DCLG,06/01/2016,Office Supplies,Decentralisation and Local Growth,BROOK STREET UK LTD,,Large,,364940028,5106218227,Financial,Interim Manager,AL1 4JB,721.68,
Communities & Local Government,DCLG,06/01/2016,Office Supplies,Decentralisation and Local Growth,BROOK STREET UK LTD,,Large,,364940028,5106218228,Financial,Interim Manager,AL1 4JB,678.88,
Communities & Local Government,DCLG,06/01/2016,Office Supplies,Decentralisation and Local Growth,BROOK STREET UK LTD,,Large,,364940028,5106218229,Financial,Interim Manager,AL1 4JB,651,
Communities & Local Government,DCLG,06/01/2016,Professional services,Decentralisation and Local Growth,CABINET OFFICE,,Public Bodies,,349606306,5106218231,Financial,Costs incurred for CPU,FY5 3TA,"208,080.04",
Communities & Local Government,DCLG,06/01/2016,Professional services,Finance & Corporate Services,GVA GRIMLEY LTD,,Large,,210158990,5106218226,Business Support,Com 009 Prov of Treasury Mngmt Services,B1 2JB,"2,875.00",
Communities & Local Government,DCLG,06/01/2016,Repayments of Private Sect Grant (Curr),Decentralisation and Local Growth,LANCASTER UNIVERSITY,,,,,2300002302,,Recovery of payment,LA1 4YW,"-743,000.00",
Communities & Local Government,DCLG,06/01/2016,Repayments of Private Sect Grant (Curr),Decentralisation and Local Growth,LANCASTER UNIVERSITY,,,,,2300002319,,Recovery of payment,LA1 4YW,"-353,346.04",
Communities & Local Government,DCLG,06/01/2016,Steady State Service Provision,Housing & Planning,LOCALITY,,Medium,,347998312,5106218220,Business Process Outsourcing Services,Neighbourhood Planning & CRTB,N1 6DR,"44,035.87",
Communities & Local Government,DCLG,06/01/2016,Training,Local Government & Public Services,CAPITA CONFERENCES,,Large,,215580993,5106218249,Development and Training,WPS CAPITA Contract National Resillience,DL1 9HN,"263,107.78",
Communities & Local Government,DCLG,06/01/2016,Work In Progress Pre-Cert 40373 Spend,Decentralisation and Local Growth,CHESTERFIELD BOROUGH COUNCIL,,Large,,,7600014707,,Revenue Grant To Be Paid,S40 1LP,"4,888.48",Yes
Communities & Local Government,DCLG,06/01/2016,Work In Progress Pre-Cert 40373 Spend,Decentralisation and Local Growth,MANSFIELD DISTRICT COUNCIL,,Large,,,7600014706,,Revenue Grant To Be Paid,NG19 7BH,"3,411.33",Yes
Communities & Local Government,DCLG,06/01/2016,Work In Progress Pre-Cert 40467 Spend,Decentralisation and Local Growth,ALDER HEY CHILDRENS NHS FOUND'N TRU,,Large,,,7600014708,,Capital Grant To Be Paid,L12 2AP,"391,175.50",Yes
Communities & Local Government,DCLG,06/01/2016,Work In Progress Pre-Cert 40467 Spend,Decentralisation and Local Growth,MANSFIELD DISTRICT COUNCIL,,Large,,,7600014706,,Capital Grant To Be Paid,NG19 7BH,"15,155.67",Yes
Communities & Local Government,DCLG,07/01/2016,Advertising,"Strategy, Communications and Private Office",OGILVY & MATHER GROUP (HOLDINGS) LT,,Large,,,5106217920,Advertising,Home Ownership Campaign,E14 4QB,"46,770.00",
Communities & Local Government,DCLG,07/01/2016,Current (non AEF) Grants to Local Authorities,Local Government & Public Services,CORNWALL COUNTY FIRE BRIGADE,,,,211334404,5000301897,,Overpayment of Grant recovered by Exchequer,TR1 3AY,"-56,813.00",Yes
Communities & Local Government,DCLG,07/01/2016,IT - Service Contracts,Finance & Corporate Services,FUJITSU SERVICES LTD,,Large,,423375062,5106218155,IT Managed / Outsourced Services,FY15-16 SAN Licensing LIVELINK App.,WA3 6GD,"1,629.83",
Communities & Local Government,DCLG,07/01/2016,IT - Service Contracts,Finance & Corporate Services,FUJITSU SERVICES LTD,,Large,,423375062,5106218284,IT Managed / Outsourced Services,FY 15/16 NR New Requirements,WA3 6GD,"3,183.06",
Communities & Local Government,DCLG,07/01/2016,IT - Service Contracts,Finance & Corporate Services,FUJITSU SERVICES LTD,,Large,,423375062,5106218294,IT Managed / Outsourced Services,NRF0056 LiveLink Upgrade Project,WA3 6GD,"3,924.12",
Communities & Local Government,DCLG,07/01/2016,IT - Service Contracts,Finance & Corporate Services,VODAFONE LTD FORMELY CABLE  & WIREL,,Large,,239869688,5106215001,IT Managed / Outsourced Services,DCLG GSI Services from Vodafone,MK3 5JP,"-1,993.14",
Communities & Local Government,DCLG,07/01/2016,IT - Service Contracts,Housing & Planning,ICON SOFTWARE LIMITED,,Micro,,,5106218222,IT Managed / Outsourced Services,Online Planning Tool,LE14 3EN,"10,161.55",
Communities & Local Government,DCLG,07/01/2016,IT - Service Contracts,Local Government & Public Services,GROUNDWORK UK,Yes,,,739193758,5106218268,IT Managed / Outsourced Services,Lot 2 Grant Administration,B1 2RR,"13,556.40",
Communities & Local Government,DCLG,07/01/2016,IT - Software Maintenance,Finance & Corporate Services,KAIZEN ASSOCIATES LTD,,Micro,,217482430,5106218277,IT Managed / Outsourced Services,SAP Application Support 2015-17,SE1 6SW,"8,349.78",
Communities & Local Government,DCLG,07/01/2016,IT - Software Maintenance,Finance & Corporate Services,METHODS CONSULTING LTD,,Medium,,505275578,5106218287,IT Managed / Outsourced Services,PIMSApplication Supp 9mths ext,WC2H 8AD,"24,000.00",
Communities & Local Government,DCLG,07/01/2016,IT Maintenance,Finance & Corporate Services,NEW RICOH UK,,Large,,424537512,5106218285,ICT Services,MFD Service Charges (Regions) FY15/16,NN4 7YB,"1,375.91",
Communities & Local Government,DCLG,07/01/2016,Printing,"Strategy, Communications and Private Office",STATIONERY OFFICE LTD,,Large,,779375633,5106218286,Printing Services,Statutory Instruments Print: Non-Vatable,NR3 1PD,165,
Communities & Local Government,DCLG,07/01/2016,Printing,"Strategy, Communications and Private Office",STATIONERY OFFICE LTD,,Large,,779375633,5106218286,Printing Services,Statutory Instruments Print: Vatable,NR3 1PD,130,
Communities & Local Government,DCLG,07/01/2016,Software Licences,Finance & Corporate Services,COMPUTACENTER (UK) LTD,,Large,,226023463,5106218292,Software,Adobe Acrobat Pro DC 2015 - Licence - 1,AL10 9TW,298.46,
Communities & Local Government,DCLG,07/01/2016,Steady State Service Provision,Finance & Corporate Services,VODAFONE LTD FORMELY CABLE  & WIREL,,Large,,239869688,5106218060,Business Process Outsourcing Services,PSN WAN Services FY15/16,MK3 5JP,"-5,654.54",
Communities & Local Government,DCLG,07/01/2016,Steady State Service Provision,Finance & Corporate Services,VODAFONE LTD FORMELY CABLE  & WIREL,,Large,,239869688,5106218061,Business Process Outsourcing Services,PSN WAN Services FY15/16,MK3 5JP,"-2,976.00",
Communities & Local Government,DCLG,07/01/2016,Steady State Service Provision,Finance & Corporate Services,VODAFONE LTD FORMELY CABLE  & WIREL,,Large,,239869688,5106218295,Business Process Outsourcing Services,PSN WAN Services FY15/16,MK3 5JP,"9,900.00",
Communities & Local Government,DCLG,07/01/2016,Steady State Service Provision,Finance & Corporate Services,VODAFONE UK(FSSD USE ONLY),,Large,,397467572,5106218288,Business Process Outsourcing Services,PSN WAN Services FY15/16,RG14 5FF,"23,290.57",
Communities & Local Government,DCLG,07/01/2016,Steady State Service Provision,Local Government & Public Services,LOCALITY,,Medium,,347998312,5106218301,Business Process Outsourcing Services,Lot 3 Our Place and First Steps,N1 6DR,"35,794.56",
Communities & Local Government,DCLG,07/01/2016,Steady State Service Provision,Local Government & Public Services,VODAFONE LTD FORMELY CABLE  & WIREL,,Large,,239869688,5106218300,Business Process Outsourcing Services,Managed Internet Access Line,MK3 5JP,582.58,
Communities & Local Government,DCLG,07/01/2016,Vehicle hire,"Strategy, Communications and Private Office",GOVERNMENT CAR & DESPATCH AGENCY,,Public Bodies,,,5106218297,Vehicle Hire and Lease,Ministerial Duty Car 1 (LT118) 2015-16,SW8 5AX,"7,023.67",
Communities & Local Government,DCLG,07/01/2016,Vehicle hire,"Strategy, Communications and Private Office",GOVERNMENT CAR & DESPATCH AGENCY,,Public Bodies,,,5106218299,Vehicle Hire and Lease,Ministerial Duty Car 2(LT206) 2015-16,SW8 5AX,"7,273.67",
Communities & Local Government,DCLG,07/01/2016,Web Services,"Strategy, Communications and Private Office",PULSION TECHNOLOGY LTD,,Small,,,5106218296,ICT Services,Hosting and maintenance  RtB website,G4 9XA,"1,320.00",
Communities & Local Government,DCLG,08/01/2016,Agency Staff,Decentralisation and Local Growth,BROOK STREET UK LTD,,Large,,364940028,5106218319,Contingent Labour,Interim Manager,AL1 4JB,459.5,
Communities & Local Government,DCLG,08/01/2016,Agency Staff,Finance & Corporate Services,BROOK STREET UK LTD,,Large,,364940028,5106218312,Contingent Labour,Interim AS (Rate Increase 09/15-03/16),AL1 4JB,296.26,
Communities & Local Government,DCLG,08/01/2016,Agency Staff,Finance & Corporate Services,BROOK STREET UK LTD,,Large,,364940028,5106218313,Contingent Labour,Interim Admin support,AL1 4JB,412.82,
Communities & Local Government,DCLG,08/01/2016,Agency Staff,Finance & Corporate Services,BROOK STREET UK LTD,,Large,,364940028,5106218317,Contingent Labour,Interim Admin support,AL1 4JB,345.24,
Communities & Local Government,DCLG,08/01/2016,Agency Staff,Finance & Corporate Services,BROOK STREET UK LTD,,Large,,364940028,5106218318,Contingent Labour,Interim Admin support Rate Increase,AL1 4JB,348.26,
Communities & Local Government,DCLG,08/01/2016,Current (non AEF) Grants to Local Authorities,Decentralisation and Local Growth,WEST DORSET DC,,,,424295350,2300002376,,Coastal Community Teams,DT1 1UZ,"-10,000.00",Yes
Communities & Local Government,DCLG,08/01/2016,Current (non AEF) Grants to Local Authorities,Finance & Corporate Services, CO DURHAM & DARLINGTON FIRE RESCUE,,Public Bodies,,211684266,2100260878,,Regional Control Centre Grant,DH1 1TW,"91,924.75",Yes
Communities & Local Government,DCLG,08/01/2016,Current (non AEF) Grants to Local Authorities,Finance & Corporate Services,GREATER LONDON AUTHORITY,,Large,,225353416,2100260877,,Regional Control Centre Grant,SE10 1AP,"160,743.58",Yes
Communities & Local Government,DCLG,08/01/2016,Current (non AEF) Grants to Local Authorities,Finance & Corporate Services,GREATER MANCHESTER FIRE & RESCUE,,Public Bodies,,424873172,2100260874,,Regional Control Centre Grant,M27 8US,"87,383.00",Yes
Communities & Local Government,DCLG,08/01/2016,Current (non AEF) Grants to Local Authorities,Housing & Planning,VALUATION OFFICE AGENCY,,Public Bodies,,215253886,2100260870,,Rent Officer Services and Pemsions Liabilities,W1B 5BU,"610,000.00",Yes
Communities & Local Government,DCLG,08/01/2016,Current (non AEF) Grants to Local Authorities,Local Government & Public Services,*LANCASHIRE COUNTY COUNCIL,,Large,,,2100260900,,Storm Eva Flood Recovery Grant,BB11 2BD,"1,318,209.00",Yes
Communities & Local Government,DCLG,08/01/2016,Current (non AEF) Grants to Local Authorities,Local Government & Public Services,BOLTON MBC,,Public Bodies,,,2100260906,,Storm Eva Flood Recovery Grant,BL1 1RX,"83,622.00",Yes
Communities & Local Government,DCLG,08/01/2016,Current (non AEF) Grants to Local Authorities,Local Government & Public Services,BRADFORD MBC,,,,,2100260916,,Storm Eva Flood Recovery Grant,BD1 1HX,"242,181.00",Yes
Communities & Local Government,DCLG,08/01/2016,Current (non AEF) Grants to Local Authorities,Local Government & Public Services,BURNLEY BC,,Large,,229413281,2100260935,,Storm Eva Tranche 2,BB11 1JA,"87,428.00",Yes
Communities & Local Government,DCLG,08/01/2016,Current (non AEF) Grants to Local Authorities,Local Government & Public Services,BURY MBC,,Large,,236491114,2100260904,,Storm Eva Flood Recovery Grant,BL9 0SW,"743,628.00",Yes
Communities & Local Government,DCLG,08/01/2016,Current (non AEF) Grants to Local Authorities,Local Government & Public Services,CALDERDALE MBC,,,,,2100260919,,Storm Eva Flood Recovery Grant,HX1 1TP,"6,879,078.00",Yes
Communities & Local Government,DCLG,08/01/2016,Current (non AEF) Grants to Local Authorities,Local Government & Public Services,CHORLEY BC,,,,236415576,2100260930,,Storm Eva Tranche 2,PR7 1DP,"141,631.00",Yes
Communities & Local Government,DCLG,08/01/2016,Current (non AEF) Grants to Local Authorities,Local Government & Public Services,CITY OF YORK COUNCIL,,Large,,210281276,2100260902,,Storm Eva Flood Recovery Grant,YO1 7ET,"384,288.00",Yes
Communities & Local Government,DCLG,08/01/2016,Current (non AEF) Grants to Local Authorities,Local Government & Public Services,CRAVEN DC,,,,215577851,2100260931,,Storm Eva Flood Recovery Grant,BD23 1PS,"12,510.00",Yes
Communities & Local Government,DCLG,08/01/2016,Current (non AEF) Grants to Local Authorities,Local Government & Public Services,FYLDE BC,,,,227479912,2100260920,,Storm Eva Tranche 2,FY8 1LW,836,Yes
Communities & Local Government,DCLG,08/01/2016,Current (non AEF) Grants to Local Authorities,Local Government & Public Services,HAMBLETON DC,,,,503481319,2100260929,,Storm Eva Flood Recovery Grant,DL6 2UU,"7,509.00",Yes
Communities & Local Government,DCLG,08/01/2016,Current (non AEF) Grants to Local Authorities,Local Government & Public Services,HARROGATE BC,,,,236660031,2100260927,,Storm Eva Flood Recovery Grant,HG1 2SG,"52,122.00",Yes
Communities & Local Government,DCLG,08/01/2016,Current (non AEF) Grants to Local Authorities,Local Government & Public Services,HYNDBURN BC,,,,295824544,2100260925,,Storm Eva Tranche 2,BB5 1PQ,"1,254.00",Yes
Communities & Local Government,DCLG,08/01/2016,Current (non AEF) Grants to Local Authorities,Local Government & Public Services,KIRKLEES MBC,,,,,2100260913,,Storm Eva Tranche 2,HD1 2YU,"157,532.00",Yes
Communities & Local Government,DCLG,08/01/2016,Current (non AEF) Grants to Local Authorities,Local Government & Public Services,LANCASTER CITY  COUNCIL,,,,228669990,2100260933,,Storm Eva Flood Recovery Grant,LA1 1PJ,"22,152.00",Yes
Communities & Local Government,DCLG,08/01/2016,Current (non AEF) Grants to Local Authorities,Local Government & Public Services,LEEDS CITY COUNCIL,,Large,,211170311,2100260926,,Storm Eva Flood Recovery Grant,LS1 1UR,"1,807,194.00",Yes
Communities & Local Government,DCLG,08/01/2016,Current (non AEF) Grants to Local Authorities,Local Government & Public Services,MANCHESTER CITY COUNCIL,,,,211241393,2100260909,,Storm Eva Flood Recovery Grant,M60 2JR,"129,290.00",Yes
Communities & Local Government,DCLG,08/01/2016,Current (non AEF) Grants to Local Authorities,Local Government & Public Services,NORTH YORKSHIRE COUNTY COUNCIL,,Large,,,2100260901,,Storm Eva Flood Recovery Grant,DL7 8AH,"451,873.00",Yes
Communities & Local Government,DCLG,08/01/2016,Current (non AEF) Grants to Local Authorities,Local Government & Public Services,NORTHUMBERLAND CC,,Large,,228141644,2100260914,,Storm Eva Flood Recovery Grant,NE61 2EF,"7,375.00",Yes
Communities & Local Government,DCLG,08/01/2016,Current (non AEF) Grants to Local Authorities,Local Government & Public Services,OLDHAM MBC,,,,213015574,2100260911,,Storm Eva Flood Recovery Grant,OL1 1UH,"29,910.00",Yes
Communities & Local Government,DCLG,08/01/2016,Current (non AEF) Grants to Local Authorities,Local Government & Public Services,PENDLE BC,,,,,2100260934,,Storm Eva Tranche 2,BB9 7LG,"59,949.00",Yes
Communities & Local Government,DCLG,08/01/2016,Current (non AEF) Grants to Local Authorities,Local Government & Public Services,RIBBLE VALLEY BC,,,,232617894,2100260917,,Storm Eva Tranche 2,BB7 2RA,"136,121.00",Yes
Communities & Local Government,DCLG,08/01/2016,Current (non AEF) Grants to Local Authorities,Local Government & Public Services,RICHMONDSHIRE DC,,,,232245142,2100260924,,Storm Eva Flood Recovery Grant,DL10 4JX,"7,083.00",Yes
Communities & Local Government,DCLG,08/01/2016,Current (non AEF) Grants to Local Authorities,Local Government & Public Services,ROCHDALE MBC,,,,,2100260905,,Storm Eva Flood Recovery Grant,OL16 1JH,"811,083.00",Yes
Communities & Local Government,DCLG,08/01/2016,Current (non AEF) Grants to Local Authorities,Local Government & Public Services,ROSSENDALE BC,,,,237654020,2100260923,,Storm Eva Tranche 2,BB4 7LZ,"97,604.00",Yes
Communities & Local Government,DCLG,08/01/2016,Current (non AEF) Grants to Local Authorities,Local Government & Public Services,RYEDALE DC,,,,229870415,2100260922,,Storm Eva Flood Recovery Grant,YO17 7HH,"9,583.00",Yes
Communities & Local Government,DCLG,08/01/2016,Current (non AEF) Grants to Local Authorities,Local Government & Public Services,SALFORD CITY COUNCIL,,Public Bodies,,210765504,2100260903,,Storm Eva Flood Recovery Grant,M27 5AW,"1,455,434.00",Yes
Communities & Local Government,DCLG,08/01/2016,Current (non AEF) Grants to Local Authorities,Local Government & Public Services,SCARBOROUGH BC,,,,,2100260915,,Storm Eva Flood Recovery Grant,YO11 2HG,"8,747.00",Yes
Communities & Local Government,DCLG,08/01/2016,Current (non AEF) Grants to Local Authorities,Local Government & Public Services,SELBY DC,,,,239816721,2100260918,,Storm Eva Flood Recovery Grant,YO8 0SB,"94,528.00",Yes
Communities & Local Government,DCLG,08/01/2016,Current (non AEF) Grants to Local Authorities,Local Government & Public Services,SOUTH RIBBLE BC,,,,,2100260932,,Storm Eva Tranche 2,PR25 1DH,"27,972.00",Yes
Communities & Local Government,DCLG,08/01/2016,Current (non AEF) Grants to Local Authorities,Local Government & Public Services,TRAFFORD METROPOLITAN BC,,,,,2100260912,,Storm Eva Flood Recovery Grant,M32 0TH,"3,694.00",Yes
Communities & Local Government,DCLG,08/01/2016,Current (non AEF) Grants to Local Authorities,Local Government & Public Services,WAKEFIELD MDC,,Public Bodies,,214042398,2100260921,,Storm Eva Flood Recovery Grant,WF1 2HQ,"116,989.00",Yes
Communities & Local Government,DCLG,08/01/2016,Current (non AEF) Grants to Local Authorities,Local Government & Public Services,WEST LANCASHIRE BC,,,,232240978,2100260928,,Storm Eva Tranche 2,L39 2DF,"125,341.00",Yes
Communities & Local Government,DCLG,08/01/2016,Current (non AEF) Grants to Local Authorities,Local Government & Public Services,WIGAN MBC,,Large,,548815976,2100260908,,Storm Eva Flood Recovery Grant,WN1 3DS,"72,745.00",Yes
Communities & Local Government,DCLG,08/01/2016,Current Grants to Non Profit Bodies,Local Government & Public Services,CHURCH URBAN FUND,,Small,,396728263,2100260872,,Near Neighbours Initiative,SW1P 3AZ,"265,000.00",Yes
Communities & Local Government,DCLG,08/01/2016,ERDF Match current  grant (NPISH),Decentralisation and Local Growth,SERCO REGIONAL SERVICES LTD,,,,,2100260879,,SW GDT ERDF Match Funding Payment  - 00042,PL6 8LU,"100,000.00",
Communities & Local Government,DCLG,08/01/2016,Grant in Aid to NDPBs (non budget),Finance & Corporate Services,VALUATION TRIBUNAL SERVICE,,,,211218366,2100260871,,Grant in Aid VTS,E1 8EU,"627,157.00",Yes
Communities & Local Government,DCLG,08/01/2016,IT - Service Contracts,Finance & Corporate Services,INFO-ASSURE LTD,,Small,,,5106218326,IT Managed / Outsourced Services,Datamart acceditation costs,GU14 0LX,"2,062.50",
Communities & Local Government,DCLG,08/01/2016,IT - Service Contracts,Finance & Corporate Services,INFO-ASSURE LTD,,Small,,,5106218328,IT Managed / Outsourced Services,Datamart acceditation costs,GU14 0LX,"4,170.00",
Communities & Local Government,DCLG,08/01/2016,IT - Service Contracts,Finance & Corporate Services,INFO-ASSURE LTD,,Small,,,5106218328,IT Managed / Outsourced Services,Datamart acceditation costs,GU14 0LX,41.3,
Communities & Local Government,DCLG,08/01/2016,IT Consultancy,Finance & Corporate Services,INFO-ASSURE LTD,,Small,,,5106218324,Consultancy,MCISTESA security accreditation and health checks,GU14 0LX,"1,668.00",
Communities & Local Government,DCLG,08/01/2016,IT Consultancy,Finance & Corporate Services,INFO-ASSURE LTD,,Small,,,5106218325,Consultancy,MCISTESA security accreditation and health checks,GU14 0LX,834,
Communities & Local Government,DCLG,08/01/2016,Legal Fees,Finance & Corporate Services,GOVERNMENT LEGAL DEPARTMENT,,Public Bodies,,215580680,2100260868,Legal,Legal Advice,WC2B 4TS,"21,000.00",
Communities & Local Government,DCLG,08/01/2016,Mobile phone costs,Finance & Corporate Services,ORANGE (AIRTIME/LINE RENTAL),,Large,,210707540,2100260881,Telecoms,Monthly consolidated Telephone costs Dec,S98 1DX,394.85,
Communities & Local Government,DCLG,08/01/2016,Professional services,Finance & Corporate Services,GVA GRIMLEY LTD,,Large,,210158990,5106218306,Business Support,Com 007 Snr Surveyor Resource (SD),B1 2JB,"6,300.00",
Communities & Local Government,DCLG,08/01/2016,Professional services,Finance & Corporate Services,GVA GRIMLEY LTD,,Large,,210158990,5106218307,Business Support,Com 006 Snr Surveyor Resource (JL),B1 2JB,"3,600.00",
Communities & Local Government,DCLG,08/01/2016,Publicity,"Strategy, Communications and Private Office",JONES YARRELL LEADENHALL LTD,,Large,,505670265,5106218323,Advertising,Mewspapers & Magazines for Press monitor,E3 3JH,470.08,
Communities & Local Government,DCLG,08/01/2016,Steady State Service Provision,Finance & Corporate Services,VODAFONE LTD FORMELY CABLE  & WIREL,,Large,,239869688,5106218327,Business Process Outsourcing Services,FY 15/16 GSI/GCF Service Charges,MK3 5JP,"88,383.34",
Communities & Local Government,DCLG,08/01/2016,Steady State Service Provision,Local Government & Public Services,LOCALITY,,Medium,,347998312,5106218221,Business Process Outsourcing Services,Lot 5: Community Assets,N1 6DR,"16,583.98",
Communities & Local Government,DCLG,08/01/2016,Steady State Service Provision,Local Government & Public Services,MOTT MACDONALD LTD,,Large,,423676980,5106218309,Business Process Outsourcing Services,FLE Costs  (Capped at 25% of Core Contra,BN1 4FY,"3,650.00",
Communities & Local Government,DCLG,08/01/2016,Steady State Service Provision,Local Government & Public Services,MOTT MACDONALD LTD,,Large,,423676980,5106218310,Business Process Outsourcing Services,Core Service Period 2 (Jun 15-May 16),BN1 4FY,"55,872.92",
Communities & Local Government,DCLG,08/01/2016,Work In Progress Pre-Cert 40373 Spend,Decentralisation and Local Growth,EAST RIDING OF YORKSHIRE COUNCIL,,,,,7600014710,,Revenue Grant To Be Paid,HU17 9BA,"11,111.96",Yes
Communities & Local Government,DCLG,08/01/2016,Work In Progress Pre-Cert 40373 Spend,Decentralisation and Local Growth,SERCO REGIONAL SERVICES LTD,,,,,7600014709,,Revenue Grant To Be Paid,PL6 8LU,"194,938.80",Yes
Communities & Local Government,DCLG,08/01/2016,Work In Progress Pre-Cert 40467 Spend,Decentralisation and Local Growth,SERCO REGIONAL SERVICES LTD,,,,,7600014709,,Capital Grant To Be Paid,PL6 8LU,"15,285.78",Yes
Communities & Local Government,DCLG,11/01/2016,Agency Staff,Decentralisation and Local Growth,CAPITA BUS. SERV. LTD (CON LAB),,Large,,,5106218331,Contingent Labour,Interim Manager,DL1 9HB,"1,218.38",
Communities & Local Government,DCLG,11/01/2016,Agency Staff,Decentralisation and Local Growth,CAPITA BUS. SERV. LTD (CON LAB),,Large,,,5106218332,Contingent Labour,Interim Manager,DL1 9HB,"1,335.28",
Communities & Local Government,DCLG,11/01/2016,Agency Staff,Decentralisation and Local Growth,CAPITA BUS. SERV. LTD (CON LAB),,Large,,,5106218334,Contingent Labour,Official Travel and Subsistence,DL1 9HB,485,
Communities & Local Government,DCLG,11/01/2016,Agency Staff,Decentralisation and Local Growth,CAPITA BUS. SERV. LTD (CON LAB),,Large,,,5106218334,Contingent Labour,Interim Manager,DL1 9HB,"2,225.46",
Communities & Local Government,DCLG,11/01/2016,Agency Staff,Decentralisation and Local Growth,CAPITA BUS. SERV. LTD (CON LAB),,Large,,,5106218335,Contingent Labour,Interim Manager,DL1 9HB,"1,065.46",
Communities & Local Government,DCLG,11/01/2016,Agency Staff,Decentralisation and Local Growth,CAPITA BUS. SERV. LTD (CON LAB),,Large,,,5106218337,Contingent Labour,Official Travel and Subsistence,DL1 9HB,45.54,
Communities & Local Government,DCLG,11/01/2016,Agency Staff,Decentralisation and Local Growth,CAPITA BUS. SERV. LTD (CON LAB),,Large,,,5106218337,Contingent Labour,Interim Manager,DL1 9HB,"2,732.69",
Communities & Local Government,DCLG,11/01/2016,Agency Staff,Decentralisation and Local Growth,CAPITA BUS. SERV. LTD (CON LAB),,Large,,,5106218341,Contingent Labour,Interim Manager,DL1 9HB,"1,028.02",
Communities & Local Government,DCLG,11/01/2016,Agency Staff,Housing & Planning,BROOK STREET UK LTD,,Large,,364940028,5106218322,Contingent Labour,3 Month Extension Interim Admin support,AL1 4JB,855.79,
Communities & Local Government,DCLG,11/01/2016,Agency Staff,Housing & Planning,CAPITA BUS. SERV. LTD (CON LAB),,Large,,,5106218340,Contingent Labour,Interim Manager,DL1 9HB,"1,198.60",
Communities & Local Government,DCLG,11/01/2016,Agency Staff,Local Government & Public Services,CAPITA BUS. SERV. LTD (CON LAB),,Large,,,5106218333,Contingent Labour,Interim Manager,DL1 9HB,"7,679.38",
Communities & Local Government,DCLG,11/01/2016,Current (non AEF) Grants to Local Authorities,Housing & Planning,SOUTH GLOUCESTERSHIRE COUNCIL,,Large,,424291482,2100260942,,Planning Enforecement Fund,BS15 0DS,"3,291.66",Yes
Communities & Local Government,DCLG,11/01/2016,Current (non AEF) Grants to Local Authorities,Local Government & Public Services,ROTHERHAM MBC,,,,,2100260941,,Grant for transformational change following Government intervention,S60 1AE,"5,169,000.00",Yes
Communities & Local Government,DCLG,11/01/2016,IT - Service Contracts,Finance & Corporate Services,BASWARE SHARED SERVICES LTD,,Large,,739834971,5106218338,IT Managed / Outsourced Services,GeM Procserve,SW1E 5RS,"8,780.40",
Communities & Local Government,DCLG,11/01/2016,IT - Service Contracts,Finance & Corporate Services,BASWARE SHARED SERVICES LTD,,Large,,739834971,5106218339,IT Managed / Outsourced Services,GeM Procserve,SW1E 5RS,"8,780.40",
Communities & Local Government,DCLG,11/01/2016,IT - Service Contracts,Finance & Corporate Services,BASWARE SHARED SERVICES LTD,,Large,,739834971,5106218342,IT Managed / Outsourced Services,GeM Procserve,SW1E 5RS,"8,780.40",
Communities & Local Government,DCLG,11/01/2016,IT - Service Contracts,Finance & Corporate Services,BASWARE SHARED SERVICES LTD,,Large,,739834971,5106218344,IT Managed / Outsourced Services,GeM Procserve,SW1E 5RS,"8,780.40",
Communities & Local Government,DCLG,11/01/2016,IT - Service Contracts,Finance & Corporate Services,INFO-ASSURE LTD,,Small,,,5106218356,IT Managed / Outsourced Services,Datamart acceditation costs,GU14 0LX,"2,953.75",
Communities & Local Government,DCLG,11/01/2016,IT - Service Contracts,Housing & Planning,DEXTROUS WEB LTD,,Micro,,211267270,5106218367,IT Managed / Outsourced Services,Hosting services,N1 7NG,868.8,
Communities & Local Government,DCLG,11/01/2016,IT Maintenance,Finance & Corporate Services,INFORMATION SECURITY SYSTEMS LTD,,Micro,,735620416,5106218078,ICT Services,Brent Telephony Support 2014-16,HP12 3RL,"4,550.00",
Communities & Local Government,DCLG,11/01/2016,IT Maintenance,Finance & Corporate Services,NEW RICOH UK,,Large,,424537512,5106218366,ICT Services,MFD Service Charges (London) FY15/16,NN4 7YB,"30,155.88",
Communities & Local Government,DCLG,11/01/2016,Physical Storage,Finance & Corporate Services,IRON MOUNTAIN (UK) LIMITED,,Large,,501338354,5106218347,Warehousing and Storage,Offsite Storage -Tapes 2015,EH54 7DF,427.16,
Communities & Local Government,DCLG,11/01/2016,Professional services,Local Government & Public Services,GOVT ACTUARYS DEPARTMENT,,Public Bodies,,217789766,5106218081,Financial,Budget for acturial advice 15-16,EC4A 1AB,"24,140.25",
Communities & Local Government,DCLG,11/01/2016,Professional services,Local Government & Public Services,GOVT ACTUARYS DEPARTMENT,,Public Bodies,,217789766,5106218275,Financial,Budget for acturial advice 15-16,EC4A 1AB,"62,722.27",
Communities & Local Government,DCLG,11/01/2016,Professional services,Local Government & Public Services,VALUATION OFFICE AGENCY,,Public Bodies,,215253886,2100260940,Environmental Services,Payment for January 2016 NNDR and Council Tax,W1B 5BU,"13,308,333.00",
Communities & Local Government,DCLG,11/01/2016,Research,Housing & Planning,OVE ARUP & PARTNERS,,Large,,221940898,5106218354,Research,Dangerous Substances Support Contract,W1P 6BQ,"8,401.20",
Communities & Local Government,DCLG,11/01/2016,Research,Housing & Planning,OVE ARUP & PARTNERS,,Large,,221940898,5106218354,Research,Dangerous Substances Support Contract,W1P 6BQ,"21,051.08",
Communities & Local Government,DCLG,11/01/2016,Services provided by other Govt Orgs,Local Government & Public Services,HOME OFFICE,,Large,,210019203,2100260907,Financial,Emergency Services Mobile Comms Programme: P1 to P6 2015-16,NP20 9BB,"88,883.27",Yes
Communities & Local Government,DCLG,11/01/2016,Vehicle Maintenance,Local Government & Public Services,BABCOCK CRITICAL SERVICES LTD,,Large,,215597451,5106218362,Fleet Management,Fixed costs 15/16,NG15 0DR,"550,247.08",
Communities & Local Government,DCLG,11/01/2016,Web Services,"Strategy, Communications and Private Office",DEXTROUS WEB LTD,,Micro,,211267270,5106218359,ICT Services,DCLG Intranet Hosting & Support,N1 7NG,874.18,
Communities & Local Government,DCLG,11/01/2016,Work In Progress Pre-Cert 40373 Spend,Decentralisation and Local Growth,SOLIHULL METROPOLITAN BC,,Large,,,7600014711,,Revenue Grant Clawback Offset,B91 3QS,"-1,576.64",Yes
Communities & Local Government,DCLG,11/01/2016,Work In Progress Pre-Cert 40373 Spend,Decentralisation and Local Growth,SOLIHULL METROPOLITAN BC,,Large,,,7600014711,,Revenue Grant To Be Paid,B91 3QS,"4,452.87",Yes
Communities & Local Government,DCLG,11/01/2016,Work In Progress Pre-Cert 40467 Spend,Decentralisation and Local Growth,SOLIHULL METROPOLITAN BC,,Large,,,7600014711,,Capital Grant Clawback Offset,B91 3QS,"-23,864.70",Yes
Communities & Local Government,DCLG,11/01/2016,Work In Progress Pre-Cert 40467 Spend,Decentralisation and Local Growth,SOLIHULL METROPOLITAN BC,,Large,,,7600014711,,Capital Grant To Be Paid,B91 3QS,"116,738.33",Yes
Communities & Local Government,DCLG,12/01/2016,Advertising,"Strategy, Communications and Private Office",ENGINE PARTNERS UK LLP,,Large,,,5106218393,Advertising,Advertising Agency services,W1W 7RT,"20,766.90",
Communities & Local Government,DCLG,12/01/2016,Conferences and Meeting Facilities,Finance & Corporate Services,PAN NATION STEEL ORCHESTRA,,,,,5106218395,Business Travel Accommodation,Contribution to Black History Month,N15 4RW,300,
Communities & Local Government,DCLG,12/01/2016,Conferences and Meeting Facilities,Local Government & Public Services,FAITHS FORUM FOR LONDON,,,,,5106218374,Promotion,London Intgegration Roadshow March 2015,SE1 0EH,400,
Communities & Local Government,DCLG,12/01/2016,Courier Services,Finance & Corporate Services,ROYAL MAIL GROUP PLC,,Large,,212543784,5106218348,Office Solutions,"Royal Mail Servs, Rosebrae Crt CH41 6DU",S49 1HQ,314.84,
Communities & Local Government,DCLG,12/01/2016,Courier Services,Finance & Corporate Services,ROYAL MAIL GROUP PLC,,Large,,212543784,5106218394,Office Solutions,"Royal Mail Servs, Rosebrae Crt 0% VAT",S49 1HQ,4.06,
Communities & Local Government,DCLG,12/01/2016,Courier Services,Finance & Corporate Services,ROYAL MAIL GROUP PLC,,Large,,212543784,5106218394,Office Solutions,"Royal Mail Servs, Rosebrae Crt CH41 6DU",S49 1HQ,269.88,
Communities & Local Government,DCLG,12/01/2016,Current Grants to Non Profit Bodies,Housing & Planning,CEL GROUP,,Medium,,394794614,5106218398,Technical Services,Home Improvement Agency,WA2 0YL,"76,564.63",Yes
Communities & Local Government,DCLG,12/01/2016,Electricity,Finance & Corporate Services,EDF ENERGY 1 LIMITED,,Large,,230840469,5106218314,Energy,EoE Waterbeach Electricity 2015-16,PL3 5XQ,"2,427.19",
Communities & Local Government,DCLG,12/01/2016,Electricity,Finance & Corporate Services,EDF ENERGY 1 LIMITED,,Large,,230840469,5106218320,Energy,SW Taunton Electricity 2015-16,PL3 5XQ,"2,521.16",
Communities & Local Government,DCLG,12/01/2016,Electricity,Finance & Corporate Services,EDF ENERGY 1 LIMITED,,Large,,230840469,5106218320,Energy,SW Taunton Electricity 2015-16 0% VAT,PL3 5XQ,8.58,
Communities & Local Government,DCLG,12/01/2016,ERDF Costs to CLG,Decentralisation and Local Growth,UNIVERSITY OF STRATHCLYDE,,,,,2100260995,,ERDF Costs to DCLG,G1 1XQ,"6,632.37",Yes
Communities & Local Government,DCLG,12/01/2016,IT - Service Contracts,Local Government & Public Services,SWIRRL IT LIMITED,,Micro,,211074993,5106218343,IT Managed / Outsourced Services,DCLG Open Data Strategy,FK7 7WT,"9,291.60",
Communities & Local Government,DCLG,12/01/2016,Office Supplies,Decentralisation and Local Growth,BROOK STREET UK LTD,,Large,,364940028,5106218403,Financial,Interim Manager,AL1 4JB,447.44,
Communities & Local Government,DCLG,12/01/2016,Professional services,Finance & Corporate Services,ARCADIS LLP,,Large,,,5106218377,Construction Service Providers,PAMU Com 160 PAMU Transformation Phase 4,N1 9AB,"13,680.00",
Communities & Local Government,DCLG,12/01/2016,Professional services,Finance & Corporate Services,ARCADIS LLP,,Large,,,5106218381,Construction Service Providers,PAMU Com 160 PAMU Transformation Phase 4,N1 9AB,"11,208.00",
Communities & Local Government,DCLG,12/01/2016,Professional services,Housing & Planning,VALUATION OFFICE AGENCY,,Public Bodies,,215253886,5106218399,Financial,Financial Checks,W1B 5BU,"1,379.11",
Communities & Local Government,DCLG,12/01/2016,Repayments of LA Grant (Cap),Decentralisation and Local Growth,LIVERPOOL CITY REGION LEP,,,,,2300002380,,Recovery of payment,L3 1BG,"-240,030.17",
Communities & Local Government,DCLG,12/01/2016,Repayments of LA Grant (Curr),Decentralisation and Local Growth,STOCKTON ON TEES BOROUGH COUNCIL,,Large,,211574327,2300002381,,Recovery of payment,TS18 1LE,"-536,699.00",
Communities & Local Government,DCLG,12/01/2016,Research,Housing & Planning,INNOVATE AT PRP LTD,,Large,,,5106218373,Research,Draft proposal for user group engagement,KT7 0QJ,"16,320.00",
Communities & Local Government,DCLG,12/01/2016,Services provided by other Govt Orgs,Housing & Planning,VALUATION OFFICE AGENCY,,Public Bodies,,215253886,5106218363,Financial,VOA FEES for RTB revaluations  15-16,W1B 5BU,-510,Yes
Communities & Local Government,DCLG,12/01/2016,Work In Progress Pre-Cert 40373 Spend,Decentralisation and Local Growth,GROUNDWORKS - ENWORKS,,,,,2300002369,,Recovery of payment,M1 2EJ,"-25,127.17",Yes
Communities & Local Government,DCLG,12/01/2016,Work In Progress Pre-Cert 40467 Spend,Decentralisation and Local Growth,COUNCIL OF THE ISLES OF SCILLY,,,,,7600014712,,Capital Grant To Be Paid,TR21 0LW,"10,484.97",Yes
Communities & Local Government,DCLG,12/01/2016,Work In Progress Pre-Cert 40467 Spend,Decentralisation and Local Growth,SOUTH YORKS PASSENGER TRANS EXEC,,,,,7600014713,,Capital Grant Clawback Offset,S1 2BQ,"-12,966.45",Yes
Communities & Local Government,DCLG,12/01/2016,Work In Progress Pre-Cert 40467 Spend,Decentralisation and Local Growth,SOUTH YORKS PASSENGER TRANS EXEC,,,,,7600014713,,Capital Grant To Be Paid,S1 2BQ,"498,271.13",Yes
Communities & Local Government,DCLG,13/01/2016,Agency Staff,Finance & Corporate Services,INTERQUEST GROUP UK LIMITED,,Large,,423935241,5106218430,Contingent Labour,INTERIM SUPPORT TO THE SAP TECHNICAL TEAM,EC1N 8UA,"4,255.20",
Communities & Local Government,DCLG,13/01/2016,Current (non AEF) Grants to Local Authorities,Decentralisation and Local Growth,HALTON BOROUGH COUNCIL,,Large,,,2300002372,,Coastal Community Teams,WA8 7QF,"-10,000.00",Yes
Communities & Local Government,DCLG,13/01/2016,Current Grants to Non Profit Bodies,Local Government & Public Services,NAT ASSOC LOCAL COUNCILS,,,,580214963,2100261020,,Transparency Fund - parishes,WC1B 3LD,"122,284.67",Yes
Communities & Local Government,DCLG,13/01/2016,Grant in Aid to NDPBs (non budget),Housing & Planning,HOMES & COMMUNITIES AGENCY,,Public Bodies,,215576860,2100261017,,Monthly HCA Grant in Aid Claim,NE11 0NA,"103,665,957.00",Yes
Communities & Local Government,DCLG,13/01/2016,IT - Service Contracts,Local Government & Public Services,AIRWAVE SOLUTIONS LTD,,Large,,232603469,5106218439,IT Managed / Outsourced Services,Phase A England 2015/16,SL1 2EJ,870.95,
Communities & Local Government,DCLG,13/01/2016,IT - Software Maintenance,Finance & Corporate Services,LOCKHEED MARTIN BUSINESS TECH SOLUT,,Large,,399909910,5106218432,IT Managed / Outsourced Services,MCIS/TESA support services FY15/16,G3 8EP,"48,108.00",
Communities & Local Government,DCLG,13/01/2016,Online Database Information Retrieval,Finance & Corporate Services,DOW JONES REUTERS BUS INTERACT,,Large,,221036630,5106218428,ICT Services,Factiva DJX 2015-16,E1W 1AZ,"1,025.34",
Communities & Local Government,DCLG,13/01/2016,Publicity,"Strategy, Communications and Private Office",PRESS ASSOCIATION,,Large,,217191704,5106218433,Advertising,PRESS ASSOCIATION (PA) 2014-17,DN14 7YH,"1,339.66",
Communities & Local Government,DCLG,13/01/2016,Repayments of Private Sect Grant (Cap),Decentralisation and Local Growth,BUSINESS & ENTERPRISE COMMERCIAL LT,,Medium,,,2300002390,,Recovery of payment,SR7 7TT,"-3,390,918.46",
Communities & Local Government,DCLG,13/01/2016,Software Licences,"Strategy, Communications and Private Office",FENIX MEDIA LTD T/A FACE,,Medium,,,5106218437,Software,Pulsar - Social Media Monitoring Tool,W1T 5BG,"7,200.00",
Communities & Local Government,DCLG,13/01/2016,Training,Finance & Corporate Services,WESTMINSTER CATHEDRAL,,Micro,,347519753,5106218442,Development and Training,Finance Change Day,SW1P 1QW,"1,500.00",
Communities & Local Government,DCLG,13/01/2016,Water,Finance & Corporate Services,BRISTOL WATER,,Large,,770124543,5106218418,Operation of Water Supplies and Distribution,2015/16 Rivergate Annual Water Charge,BS48 1WA,679.84,
Communities & Local Government,DCLG,13/01/2016,Water,Finance & Corporate Services,SEVERN TRENT WATER LTD,,Large,,234404465,5106218419,Operation of Water Supplies and Distribution,2015/16 St Philips B ham Annual Water,CV3 9FJ,620.43,
Communities & Local Government,DCLG,13/01/2016,Work In Progress Pre-Cert 40373 Spend,Decentralisation and Local Growth,ALT VALLEY COMMUNITY TRUST,,,,,7600014725,,Revenue Grant Clawback Offset,L11 0BS,-588.54,Yes
Communities & Local Government,DCLG,13/01/2016,Work In Progress Pre-Cert 40373 Spend,Decentralisation and Local Growth,ALT VALLEY COMMUNITY TRUST,,,,,7600014725,,Revenue Grant To Be Paid,L11 0BS,"217,774.09",Yes
Communities & Local Government,DCLG,13/01/2016,Work In Progress Pre-Cert 40373 Spend,Decentralisation and Local Growth,CUMBRIA COUNTY COUNCIL,,Public Bodies,,,7600014729,,Revenue Grant To Be Paid,CA3 8NA,"4,455.35",Yes
Communities & Local Government,DCLG,13/01/2016,Work In Progress Pre-Cert 40373 Spend,Decentralisation and Local Growth,GROUNDWORKS - ENWORKS,,,,,7600014715,,Revenue Grant Clawback Offset,M1 2EJ,"-2,467.67",Yes
Communities & Local Government,DCLG,13/01/2016,Work In Progress Pre-Cert 40373 Spend,Decentralisation and Local Growth,GROUNDWORKS - ENWORKS,,,,,7600014715,,Revenue Grant To Be Paid,M1 2EJ,"7,036.24",Yes
Communities & Local Government,DCLG,13/01/2016,Work In Progress Pre-Cert 40373 Spend,Decentralisation and Local Growth,GROUNDWORKS - ENWORKS,,,,,7600014716,,Revenue Grant To Be Paid,M1 2EJ,"31,839.05",Yes
Communities & Local Government,DCLG,13/01/2016,Work In Progress Pre-Cert 40373 Spend,Decentralisation and Local Growth,LIVERPOOL JOHN MOORES UNIVERSITY,,,,,7600014723,,Revenue Grant Clawback Offset,L3 2AJ,-609.8,Yes
Communities & Local Government,DCLG,13/01/2016,Work In Progress Pre-Cert 40373 Spend,Decentralisation and Local Growth,LIVERPOOL JOHN MOORES UNIVERSITY,,,,,7600014723,,Revenue Grant To Be Paid,L3 2AJ,"18,927.60",Yes
Communities & Local Government,DCLG,13/01/2016,Work In Progress Pre-Cert 40373 Spend,Decentralisation and Local Growth,LIVERPOOL JOHN MOORES UNIVERSITY,,,,,7600014724,,Revenue Grant Clawback Offset,L3 2AJ,-806.13,Yes
Communities & Local Government,DCLG,13/01/2016,Work In Progress Pre-Cert 40373 Spend,Decentralisation and Local Growth,LIVERPOOL JOHN MOORES UNIVERSITY,,,,,7600014724,,Revenue Grant To Be Paid,L3 2AJ,"65,140.51",Yes
Communities & Local Government,DCLG,13/01/2016,Work In Progress Pre-Cert 40373 Spend,Decentralisation and Local Growth,LIVERPOOL UNIVERSITY,,,,,7600014719,,Revenue Grant To Be Paid,L69 7ZX,"138,935.55",Yes
Communities & Local Government,DCLG,13/01/2016,Work In Progress Pre-Cert 40373 Spend,Decentralisation and Local Growth,LIVERPOOL UNIVERSITY,,,,,7600014720,,Revenue Grant To Be Paid,L69 7ZX,"31,915.37",Yes
Communities & Local Government,DCLG,13/01/2016,Work In Progress Pre-Cert 40373 Spend,Decentralisation and Local Growth,NGAGE SOLUTIONS LTD,,Medium,,,7600014728,,Revenue Grant To Be Paid,HP14 4BF,"7,224.98",Yes
Communities & Local Government,DCLG,13/01/2016,Work In Progress Pre-Cert 40373 Spend,Decentralisation and Local Growth,OXFORDSHIRE COUNTY COUNCIL,,Large,,,7600014730,,Revenue Grant To Be Paid,OX1 1ND,"11,255.75",Yes
Communities & Local Government,DCLG,13/01/2016,Work In Progress Pre-Cert 40373 Spend,Decentralisation and Local Growth,SEFTON MBC,,Large,,,7600014732,,Revenue Grant To Be Paid,L20 3EF,"34,700.51",Yes
Communities & Local Government,DCLG,13/01/2016,Work In Progress Pre-Cert 40373 Spend,Decentralisation and Local Growth,SEFTON MBC,,Large,,,7600014733,,Revenue Grant To Be Paid,L20 3EF,-0.38,Yes
Communities & Local Government,DCLG,13/01/2016,Work In Progress Pre-Cert 40373 Spend,Decentralisation and Local Growth,SUSTRANS LIMITED,,Large,,,7600014726,,Revenue Grant To Be Paid,BS1 5DD,"7,684.65",Yes
Communities & Local Government,DCLG,13/01/2016,Work In Progress Pre-Cert 40373 Spend,Decentralisation and Local Growth,UNIVERSITY OF SALFORD,,,,,7600014721,,Revenue Grant Clawback Offset,M5 4WT,"-8,040.08",Yes
Communities & Local Government,DCLG,13/01/2016,Work In Progress Pre-Cert 40373 Spend,Decentralisation and Local Growth,UNIVERSITY OF SALFORD,,,,,7600014721,,Revenue Grant To Be Paid,M5 4WT,"13,639.01",Yes
Communities & Local Government,DCLG,13/01/2016,Work In Progress Pre-Cert 40373 Spend,Decentralisation and Local Growth,UNIVERSITY OF SALFORD,,,,,7600014722,,Revenue Grant Clawback Offset,M5 4WT,"-15,505.44",Yes
Communities & Local Government,DCLG,13/01/2016,Work In Progress Pre-Cert 40373 Spend,Decentralisation and Local Growth,UNIVERSITY OF SALFORD,,,,,7600014722,,Revenue Grant To Be Paid,M5 4WT,"103,686.42",Yes
Communities & Local Government,DCLG,13/01/2016,Work In Progress Pre-Cert 40373 Spend,Decentralisation and Local Growth,UNIVERSITY OF SUNDERLAND,,,,,7600014727,,Revenue Grant To Be Paid,SR1 3SD,"17,894.44",Yes
Communities & Local Government,DCLG,13/01/2016,Work In Progress Pre-Cert 40467 Spend,Decentralisation and Local Growth,BURNLEY BOROUGH COUNCIL,,Large,,,7600014714,,Capital Grant Clawback Offset,BB11 9SA,"-88,697.54",Yes
Communities & Local Government,DCLG,13/01/2016,Work In Progress Pre-Cert 40467 Spend,Decentralisation and Local Growth,BURNLEY BOROUGH COUNCIL,,Large,,,7600014714,,Capital Grant To Be Paid,BB11 9SA,"94,280.30",Yes
Communities & Local Government,DCLG,13/01/2016,Work In Progress Pre-Cert 40467 Spend,Decentralisation and Local Growth,CARNELL MANAGMENT SERVICES LTD,,,,,7600014731,,Capital Grant To Be Paid,WF2 7AW,"124,649.83",Yes
Communities & Local Government,DCLG,13/01/2016,Work In Progress Pre-Cert 40467 Spend,Decentralisation and Local Growth,CARNELL MANAGMENT SERVICES LTD,,,,,7600014734,,Capital Grant To Be Paid,WF2 7AW,"71,468.95",Yes
Communities & Local Government,DCLG,13/01/2016,Work In Progress Pre-Cert 40467 Spend,Decentralisation and Local Growth,CUMBRIA COUNTY COUNCIL,,Public Bodies,,,7600014729,,Capital Grant To Be Paid,CA3 8NA,"982,243.20",Yes
Communities & Local Government,DCLG,13/01/2016,Work In Progress Pre-Cert 40467 Spend,Decentralisation and Local Growth,LIVERPOOL CITY COUNCIL,,,,,7600014718,,Capital Grant Clawback Offset,L2 2DH,"-8,588.32",Yes
Communities & Local Government,DCLG,13/01/2016,Work In Progress Pre-Cert 40467 Spend,Decentralisation and Local Growth,LIVERPOOL CITY COUNCIL,,,,,7600014718,,Capital Grant To Be Paid,L2 2DH,"62,712.45",Yes
Communities & Local Government,DCLG,13/01/2016,Work In Progress Pre-Cert 40467 Spend,Decentralisation and Local Growth,LIVERPOOL JOHN MOORES UNIVERSITY,,,,,7600014724,,Capital Grant To Be Paid,L3 2AJ,"20,332.59",Yes
Communities & Local Government,DCLG,13/01/2016,Work In Progress Pre-Cert 40467 Spend,Decentralisation and Local Growth,LIVERPOOL UNIVERSITY,,,,,7600014720,,Capital Grant To Be Paid,L69 7ZX,"4,419.66",Yes
Communities & Local Government,DCLG,13/01/2016,Work In Progress Pre-Cert 40467 Spend,Decentralisation and Local Growth,SEFTON MBC,,Large,,,7600014732,,Capital Grant To Be Paid,L20 3EF,"954,264.96",Yes
Communities & Local Government,DCLG,13/01/2016,Work In Progress Pre-Cert 40467 Spend,Decentralisation and Local Growth,SEFTON MBC,,Large,,,7600014733,,Capital Grant To Be Paid,L20 3EF,"14,040.01",Yes
Communities & Local Government,DCLG,13/01/2016,Work In Progress Pre-Cert 40467 Spend,Decentralisation and Local Growth,UNIVERSITY OF SALFORD,,,,,7600014722,,Capital Grant Clawback Offset,M5 4WT,"-94,919.27",Yes
Communities & Local Government,DCLG,13/01/2016,Work In Progress Pre-Cert 40467 Spend,Decentralisation and Local Growth,UNIVERSITY OF SALFORD,,,,,7600014722,,Capital Grant To Be Paid,M5 4WT,"27,464.13",Yes
Communities & Local Government,DCLG,14/01/2016,Agency Staff,Finance & Corporate Services,MANPOWER UK LTD,,Large,,238500362,5106218461,Contingent Labour,Support worker for staff interim measure,UB8 1AB,342.38,
Communities & Local Government,DCLG,14/01/2016,Conferences and Meeting Facilities,Local Government & Public Services,ARMADA HOUSE CONFERENCE & EVENTS,,Small,,,5106218009,Business Travel Accommodation,TFT IT Tutorials Bristol - External,BS1 4BQ,426,
Communities & Local Government,DCLG,14/01/2016,Current Grants to Non Profit Bodies,Local Government & Public Services,METROPOLITAN POLICE SERVICE,,Public Bodies,,217969315,2100261046,,National Community Tension Team,SW6 1TR,"27,297.00",Yes
Communities & Local Government,DCLG,14/01/2016,Current Grants to Non Profit Bodies,Local Government & Public Services,UMMA HELP,,,,,2100261047,,Remember Srebrenica Genocide Project,B16 8UA,"32,000.00",Yes
Communities & Local Government,DCLG,14/01/2016,IT - Service Contracts,Finance & Corporate Services,FUJITSU SERVICES LTD,,Large,,423375062,5106218467,IT Managed / Outsourced Services,FY 15/16 NR New Requirements,WA3 6GD,562.5,
Communities & Local Government,DCLG,14/01/2016,IT - Service Contracts,Finance & Corporate Services,FUJITSU SERVICES LTD,,Large,,423375062,5106218473,IT Managed / Outsourced Services,"PINS ""NR"" New Requirements raise by PINS",WA3 6GD,264.75,
Communities & Local Government,DCLG,14/01/2016,IT - Service Contracts,Finance & Corporate Services,ICASEWORK LTD,,Large,,,5106218454,IT Managed / Outsourced Services,Monthly Fee (24 x 3833.33),NW6 7SG,"4,600.00",
Communities & Local Government,DCLG,14/01/2016,IT - Service Contracts,Local Government & Public Services,AIRWAVE SOLUTIONS LTD,,Large,,232603469,5106218451,IT Managed / Outsourced Services,Phase A England 2015/16,SL1 2EJ,"1,792.53",
Communities & Local Government,DCLG,14/01/2016,IT - Software Maintenance,Finance & Corporate Services,METHODS CONSULTING LTD,,Medium,,505275578,5106218471,IT Managed / Outsourced Services,PIMSApplication Supp 9mths ext,WC2H 8AD,"24,000.00",
Communities & Local Government,DCLG,14/01/2016,Publications,Housing & Planning,THOMSON REUTERS (PROFESSIONAL) UK L,,Large,,227272184,5106218450,Learning and Development Materials,Encyclopedia of Planning Law& Practice,SP10 9AH,"1,530.00",
Communities & Local Government,DCLG,14/01/2016,Steady State Service Provision,Local Government & Public Services,LOCALITY,,Medium,,347998312,5106218470,Business Process Outsourcing Services,Lot 1 Advice Service and Network,N1 6DR,"16,628.10",
Communities & Local Government,DCLG,14/01/2016,Steady State Service Provision,Local Government & Public Services,MOTT MACDONALD LTD,,Large,,423676980,5106218469,Business Process Outsourcing Services,FLE Costs  (Capped at 25% of Core Contra,BN1 4FY,"1,700.00",
Communities & Local Government,DCLG,14/01/2016,Steady State Service Provision,Local Government & Public Services,MOTT MACDONALD LTD,,Large,,423676980,5106218474,Business Process Outsourcing Services,Core Service Period 2 (Jun 15-May 16),BN1 4FY,"55,872.92",
Communities & Local Government,DCLG,14/01/2016,Work In Progress Pre-Cert 40373 Spend,Decentralisation and Local Growth,CUMBRIA COUNTY COUNCIL,,Public Bodies,,,7600014741,,Revenue Grant To Be Paid,CA3 8NA,"4,403.40",Yes
Communities & Local Government,DCLG,14/01/2016,Work In Progress Pre-Cert 40373 Spend,Decentralisation and Local Growth,DERBYSHIRE COUNTY COUNCIL,,Large,,,7600014738,,Revenue Grant To Be Paid,DE4 3AG,0.75,Yes
Communities & Local Government,DCLG,14/01/2016,Work In Progress Pre-Cert 40373 Spend,Decentralisation and Local Growth,E FACTOR ENTERPRISE (NEL) LTD,,Small,,,7600014735,,Revenue Grant Clawback Offset,DN34 5BQ,"-83,753.59",Yes
Communities & Local Government,DCLG,14/01/2016,Work In Progress Pre-Cert 40373 Spend,Decentralisation and Local Growth,E FACTOR ENTERPRISE (NEL) LTD,,Small,,,7600014735,,Revenue Grant To Be Paid,DN34 5BQ,"168,341.89",Yes
Communities & Local Government,DCLG,14/01/2016,Work In Progress Pre-Cert 40373 Spend,Decentralisation and Local Growth,EAST MIDLANDS BUSINESS LTD,,Medium,,,7600014737,,Revenue Grant Clawback Offset,LE19 1RJ,-217.25,Yes
Communities & Local Government,DCLG,14/01/2016,Work In Progress Pre-Cert 40373 Spend,Decentralisation and Local Growth,EAST MIDLANDS BUSINESS LTD,,Medium,,,7600014737,,Revenue Grant To Be Paid,LE19 1RJ,"93,785.39",Yes
Communities & Local Government,DCLG,14/01/2016,Work In Progress Pre-Cert 40373 Spend,Decentralisation and Local Growth,LEICESTER CITY COUNCIL,,Large,,,7600014742,,Revenue Grant Clawback Offset,LE1 6ZG,-334.71,Yes
Communities & Local Government,DCLG,14/01/2016,Work In Progress Pre-Cert 40373 Spend,Decentralisation and Local Growth,LEICESTER CITY COUNCIL,,Large,,,7600014742,,Revenue Grant To Be Paid,LE1 6ZG,"153,992.86",Yes
Communities & Local Government,DCLG,14/01/2016,Work In Progress Pre-Cert 40373 Spend,Decentralisation and Local Growth,LEICESTER CITY COUNCIL,,Large,,,7600014743,,Revenue Grant To Be Paid,LE1 6ZG,"141,658.96",Yes
Communities & Local Government,DCLG,14/01/2016,Work In Progress Pre-Cert 40373 Spend,Decentralisation and Local Growth,NBV (NOTTINGHAM BUSINESS VENTURE),,Small,,,7600014736,,Revenue Grant To Be Paid,NG7 7FN,"218,672.51",Yes
Communities & Local Government,DCLG,14/01/2016,Work In Progress Pre-Cert 40467 Spend,Decentralisation and Local Growth,ASHFIELD DISTRICT COUNCIL,,Large,,,7600014739,,Capital Grant To Be Paid,NG17 8DA,"86,321.88",Yes
Communities & Local Government,DCLG,14/01/2016,Work In Progress Pre-Cert 40467 Spend,Decentralisation and Local Growth,BROWNFIELD INVESTMENTS LTD,,Micro,,,7600014740,,Capital Grant To Be Paid,TR3 6EE,"28,744.56",Yes
Communities & Local Government,DCLG,14/01/2016,Work In Progress Pre-Cert 40467 Spend,Decentralisation and Local Growth,CUMBRIA COUNTY COUNCIL,,Public Bodies,,,7600014741,,Capital Grant To Be Paid,CA3 8NA,"970,778.03",Yes
Communities & Local Government,DCLG,14/01/2016,Work In Progress Pre-Cert 40467 Spend,Decentralisation and Local Growth,DERBYSHIRE COUNTY COUNCIL,,Large,,,7600014738,,Capital Grant To Be Paid,DE4 3AG,"230,324.85",Yes
Communities & Local Government,DCLG,14/01/2016,Work In Progress Pre-Cert 40467 Spend,Decentralisation and Local Growth,EAST MIDLANDS BUSINESS LTD,,Medium,,,7600014737,,Capital Grant To Be Paid,LE19 1RJ,"716,615.92",Yes
Communities & Local Government,DCLG,14/01/2016,Work In Progress Pre-Cert 40467 Spend,Decentralisation and Local Growth,LEICESTER CITY COUNCIL,,Large,,,7600014742,,Capital Grant Clawback Offset,LE1 6ZG,"-10,094.26",Yes
Communities & Local Government,DCLG,14/01/2016,Work In Progress Pre-Cert 40467 Spend,Decentralisation and Local Growth,LEICESTER CITY COUNCIL,,Large,,,7600014742,,Capital Grant To Be Paid,LE1 6ZG,"487,112.09",Yes
Communities & Local Government,DCLG,14/01/2016,Work In Progress Pre-Cert 40467 Spend,Decentralisation and Local Growth,LEICESTER CITY COUNCIL,,Large,,,7600014743,,Capital Grant To Be Paid,LE1 6ZG,"195,439.33",Yes
Communities & Local Government,DCLG,15/01/2016,Advertising,"Strategy, Communications and Private Office",CARAT SCOTLAND,,Large,,519820302,5106218501,Advertising,Media Planning,EH1 3HU,"1,160.93",
Communities & Local Government,DCLG,15/01/2016,Agency Staff,Decentralisation and Local Growth,CAPITA BUS. SERV. LTD (CON LAB),,Large,,,5106218477,Contingent Labour,Interim Manager,DL1 9HB,856.14,
Communities & Local Government,DCLG,15/01/2016,Agency Staff,Decentralisation and Local Growth,CAPITA BUS. SERV. LTD (CON LAB),,Large,,,5106218479,Contingent Labour,Interim Manager,DL1 9HB,"4,887.32",
Communities & Local Government,DCLG,15/01/2016,Agency Staff,Decentralisation and Local Growth,CAPITA BUS. SERV. LTD (CON LAB),,Large,,,5106218479,Contingent Labour,Official Travel and Subsistence,DL1 9HB,642.35,
Communities & Local Government,DCLG,15/01/2016,Agency Staff,Decentralisation and Local Growth,CAPITA BUS. SERV. LTD (CON LAB),,Large,,,5106218480,Contingent Labour,Official Travel and Subsistence,DL1 9HB,295.2,
Communities & Local Government,DCLG,15/01/2016,Agency Staff,Decentralisation and Local Growth,CAPITA BUS. SERV. LTD (CON LAB),,Large,,,5106218480,Contingent Labour,Interim Manager,DL1 9HB,"1,973.22",
Communities & Local Government,DCLG,15/01/2016,Agency Staff,Decentralisation and Local Growth,CAPITA BUS. SERV. LTD (CON LAB),,Large,,,5106218482,Contingent Labour,Interim Manager,DL1 9HB,"11,193.28",
Communities & Local Government,DCLG,15/01/2016,Agency Staff,Decentralisation and Local Growth,CAPITA BUS. SERV. LTD (CON LAB),,Large,,,5106218483,Contingent Labour,Official Travel and Subsistence,DL1 9HB,305.4,
Communities & Local Government,DCLG,15/01/2016,Agency Staff,Decentralisation and Local Growth,CAPITA BUS. SERV. LTD (CON LAB),,Large,,,5106218483,Contingent Labour,Interim Manager,DL1 9HB,"7,121.47",
Communities & Local Government,DCLG,15/01/2016,Agency Staff,Decentralisation and Local Growth,CAPITA BUS. SERV. LTD (CON LAB),,Large,,,5106218484,Contingent Labour,Interim Manager,DL1 9HB,657.74,
Communities & Local Government,DCLG,15/01/2016,Agency Staff,Decentralisation and Local Growth,CAPITA BUS. SERV. LTD (CON LAB),,Large,,,5106218485,Contingent Labour,Interim Manager,DL1 9HB,657.74,
Communities & Local Government,DCLG,15/01/2016,Agency Staff,Decentralisation and Local Growth,CAPITA BUS. SERV. LTD (CON LAB),,Large,,,5106218486,Contingent Labour,Interim Manager,DL1 9HB,"4,416.28",
Communities & Local Government,DCLG,15/01/2016,Agency Staff,Decentralisation and Local Growth,CAPITA BUS. SERV. LTD (CON LAB),,Large,,,5106218487,Contingent Labour,Interim Manager,DL1 9HB,"1,951.92",
Communities & Local Government,DCLG,15/01/2016,Agency Staff,Decentralisation and Local Growth,CAPITA BUS. SERV. LTD (CON LAB),,Large,,,5106218488,Contingent Labour,Interim Manager,DL1 9HB,"2,030.64",
Communities & Local Government,DCLG,15/01/2016,Agency Staff,Decentralisation and Local Growth,CAPITA BUS. SERV. LTD (CON LAB),,Large,,,5106218489,Contingent Labour,Interim Manager,DL1 9HB,"2,225.46",
Communities & Local Government,DCLG,15/01/2016,Agency Staff,Decentralisation and Local Growth,CAPITA BUS. SERV. LTD (CON LAB),,Large,,,5106218490,Contingent Labour,Interim Manager,DL1 9HB,"2,193.00",
Communities & Local Government,DCLG,15/01/2016,Agency Staff,Decentralisation and Local Growth,CAPITA BUS. SERV. LTD (CON LAB),,Large,,,5106218491,Contingent Labour,Interim Manager,DL1 9HB,"2,266.14",
Communities & Local Government,DCLG,15/01/2016,Agency Staff,Decentralisation and Local Growth,CAPITA BUS. SERV. LTD (CON LAB),,Large,,,5106218492,Contingent Labour,Interim Manager,DL1 9HB,"1,713.36",
Communities & Local Government,DCLG,15/01/2016,Agency Staff,Finance & Corporate Services,CAPITA BUS. SERV. LTD (CON LAB),,Large,,,5106218476,Contingent Labour,Interim Manager,DL1 9HB,"2,790.40",
Communities & Local Government,DCLG,15/01/2016,Agency Staff,Finance & Corporate Services,CAPITA BUS. SERV. LTD (CON LAB),,Large,,,5106218478,Contingent Labour,Interim Manager,DL1 9HB,"1,812.91",
Communities & Local Government,DCLG,15/01/2016,Capital Grants to Private Sect Non Profit,Local Government & Public Services,CFOA (NATIONAL RESILIANCE) LTD,,Small,,211512993,2100261025,,"National Resilience Capability Assurance, Mapping",GL56 0RH,"207,473.00",Yes
Communities & Local Government,DCLG,15/01/2016,Courier Services,Finance & Corporate Services,INTERSERVE (FACILITIES MANAGEMENT),,Large,,364834825,5106218475,Office Solutions,Rivergate Mail 2015-16,BS32 4NH,"1,592.68",
Communities & Local Government,DCLG,15/01/2016,Current (non AEF) Grants to Local Authorities,Housing & Planning,ADUR DC,,,,227472891,5000319947,,New Homes Bonus Scheme,BN11 1HA,"163,033.00",Yes
Communities & Local Government,DCLG,15/01/2016,Current (non AEF) Grants to Local Authorities,Housing & Planning,ALLERDALE BOROUGH COUNCIL,,,,218146780,5000319948,,New Homes Bonus Scheme,CA14 3YJ,"267,092.00",Yes
Communities & Local Government,DCLG,15/01/2016,Current (non AEF) Grants to Local Authorities,Housing & Planning,AMBER VALLEY BC,,,,,5000319949,,New Homes Bonus Scheme,DE5 3BT,"357,832.00",Yes
Communities & Local Government,DCLG,15/01/2016,Current (non AEF) Grants to Local Authorities,Housing & Planning,ARUN DC,,,,211217668,5000319803,,New Homes Bonus Scheme,BN17 5LF,"772,011.00",Yes
Communities & Local Government,DCLG,15/01/2016,Current (non AEF) Grants to Local Authorities,Housing & Planning,ASHFIELD DC,,,,235415296,5000319950,,New Homes Bonus Scheme,NG17 8DA,"629,606.00",Yes
Communities & Local Government,DCLG,15/01/2016,Current (non AEF) Grants to Local Authorities,Housing & Planning,ASHFORD BC,,,,229467071,5000319804,,New Homes Bonus Scheme,TN23 1PL,"787,597.00",Yes
Communities & Local Government,DCLG,15/01/2016,Current (non AEF) Grants to Local Authorities,Housing & Planning,AYLESBURY VALE DC(HSG),,,,396710709,5000319805,,New Homes Bonus Scheme,HP19 8FF,"1,560,099.00",Yes
Communities & Local Government,DCLG,15/01/2016,Current (non AEF) Grants to Local Authorities,Housing & Planning,BABERGH DC,,,,232618405,5000319806,,New Homes Bonus Scheme,IP7 6SJ,"400,612.00",Yes
Communities & Local Government,DCLG,15/01/2016,Current (non AEF) Grants to Local Authorities,Housing & Planning,BARKING & DAGENHAM LB (HSG),,,,217142293,5000319807,,New Homes Bonus Scheme,RM10 7BY,"941,133.00",Yes
Communities & Local Government,DCLG,15/01/2016,Current (non AEF) Grants to Local Authorities,Housing & Planning,BARNSLEY MBC,,,,211178595,5000319952,,New Homes Bonus Scheme,S70 2AQ,"1,402,426.00",Yes
Communities & Local Government,DCLG,15/01/2016,Current (non AEF) Grants to Local Authorities,Housing & Planning,BARROW BC,,,,295632913,5000319953,,New Homes Bonus Scheme,LA14 2LD,"116,733.00",Yes
Communities & Local Government,DCLG,15/01/2016,Current (non AEF) Grants to Local Authorities,Housing & Planning,BASILDON BOROUGH COUNCIL,,,,,5000319954,,New Homes Bonus Scheme,SS14 0DF,"708,222.00",Yes
Communities & Local Government,DCLG,15/01/2016,Current (non AEF) Grants to Local Authorities,Housing & Planning,BASINGSTOKE & DEANE BC,,,,228328506,5000319955,,New Homes Bonus Scheme,RG21 2AJ,"1,172,835.00",Yes
Communities & Local Government,DCLG,15/01/2016,Current (non AEF) Grants to Local Authorities,Housing & Planning,BASSETLAW DC (HSG),,,,,5000319808,,New Homes Bonus Scheme,S80 2AH,"397,570.00",Yes
Communities & Local Government,DCLG,15/01/2016,Current (non AEF) Grants to Local Authorities,Housing & Planning,BATH & NE SOMERSET DC (HSG),,,,214502499,5000319809,,New Homes Bonus Scheme,BA1 5AW,"927,310.00",Yes
Communities & Local Government,DCLG,15/01/2016,Current (non AEF) Grants to Local Authorities,Housing & Planning,BEDFORD UNITARY AUTHORITY,,,,225682160,5000320152,,New Homes Bonus Scheme,MK40 1SJ,"1,691,311.00",Yes
Communities & Local Government,DCLG,15/01/2016,Current (non AEF) Grants to Local Authorities,Housing & Planning,BEXLEY LB (HSG),,,,,5000319810,,New Homes Bonus Scheme,DA8 1TL,"776,638.00",Yes
Communities & Local Government,DCLG,15/01/2016,Current (non AEF) Grants to Local Authorities,Housing & Planning,BIRMINGHAM CITY CNCL,,,,213780559,5000319956,,New Homes Bonus Scheme,B2 2AJ,"4,443,936.00",Yes
Communities & Local Government,DCLG,15/01/2016,Current (non AEF) Grants to Local Authorities,Housing & Planning,BLABY DC (HSG),,,,,5000319811,,New Homes Bonus Scheme,LE9 5EP,"358,235.00",Yes
Communities & Local Government,DCLG,15/01/2016,Current (non AEF) Grants to Local Authorities,Housing & Planning,BLACKBURN WITH DARWEN BC,,,,,5000319957,,New Homes Bonus Scheme,BB1 7DY,"342,375.00",Yes
Communities & Local Government,DCLG,15/01/2016,Current (non AEF) Grants to Local Authorities,Housing & Planning,BLACKPOOL BC,,,,,5000319958,,New Homes Bonus Scheme,FY1 1NA,"359,905.00",Yes
Communities & Local Government,DCLG,15/01/2016,Current (non AEF) Grants to Local Authorities,Housing & Planning,BOLSOVER DC,,,,235516523,5000319959,,New Homes Bonus Scheme,S43 4JY,"262,378.00",Yes
Communities & Local Government,DCLG,15/01/2016,Current (non AEF) Grants to Local Authorities,Housing & Planning,BOLTON MBC,,,,,5000319960,,New Homes Bonus Scheme,BL1 1RU,"1,009,076.00",Yes
Communities & Local Government,DCLG,15/01/2016,Current (non AEF) Grants to Local Authorities,Housing & Planning,BOSTON BC,,,,236417713,5000319812,,New Homes Bonus Scheme,PE21 8QR,"258,858.00",Yes
Communities & Local Government,DCLG,15/01/2016,Current (non AEF) Grants to Local Authorities,Housing & Planning,BOURNEMOUTH DC,,,,,5000319961,,New Homes Bonus Scheme,BH2 6EB,"1,028,362.00",Yes
Communities & Local Government,DCLG,15/01/2016,Current (non AEF) Grants to Local Authorities,Housing & Planning,BRACKNELL FOREST DC,,,,236184867,5000319962,,New Homes Bonus Scheme,RG12 1AQ,"810,098.00",Yes
Communities & Local Government,DCLG,15/01/2016,Current (non AEF) Grants to Local Authorities,Housing & Planning,BRADFORD MBC,,,,,5000319963,,New Homes Bonus Scheme,BD1 1HX,"2,309,466.00",Yes
Communities & Local Government,DCLG,15/01/2016,Current (non AEF) Grants to Local Authorities,Housing & Planning,BRAINTREE DC,,,,226941730,5000319813,,New Homes Bonus Scheme,CM7 6HB,"525,402.00",Yes
Communities & Local Government,DCLG,15/01/2016,Current (non AEF) Grants to Local Authorities,Housing & Planning,BRECKLAND DC,,,,232611384,5000319814,,New Homes Bonus Scheme,NR19 1EE,"590,738.00",Yes
Communities & Local Government,DCLG,15/01/2016,Current (non AEF) Grants to Local Authorities,Housing & Planning,BRENT LB (HSG),,,,,5000319815,,New Homes Bonus Scheme,HA9 9HD,"1,771,896.00",Yes
Communities & Local Government,DCLG,15/01/2016,Current (non AEF) Grants to Local Authorities,Housing & Planning,BRENTWOOD BC,,,,227473188,5000319964,,New Homes Bonus Scheme,CM15 8AY,"363,857.00",Yes
Communities & Local Government,DCLG,15/01/2016,Current (non AEF) Grants to Local Authorities,Housing & Planning,BRIGHTON & HOVE CITY COUNCIL,,Large,,228455218,5000319965,,New Homes Bonus Scheme,BN3 2LS,"959,198.00",Yes
Communities & Local Government,DCLG,15/01/2016,Current (non AEF) Grants to Local Authorities,Housing & Planning,BRISTOL CITY CNCL (HSG),,,,211103882,5000319816,,New Homes Bonus Scheme,BS99 7BL,"2,874,514.00",Yes
Communities & Local Government,DCLG,15/01/2016,Current (non AEF) Grants to Local Authorities,Housing & Planning,BROADLAND DC,,Large,,219737785,5000319817,,New Homes Bonus Scheme,NR7 0DU,"373,672.00",Yes
Communities & Local Government,DCLG,15/01/2016,Current (non AEF) Grants to Local Authorities,Housing & Planning,BROMLEY LB,,,,211331954,5000319966,,New Homes Bonus Scheme,BR1 3UH,"1,543,688.00",Yes
Communities & Local Government,DCLG,15/01/2016,Current (non AEF) Grants to Local Authorities,Housing & Planning,BROMSGROVE DC,,,,236654745,5000319818,,New Homes Bonus Scheme,B60 1AA,"324,594.00",Yes
Communities & Local Government,DCLG,15/01/2016,Current (non AEF) Grants to Local Authorities,Housing & Planning,BROXBOURNE BC,,Public Bodies,,239931918,5000319967,,New Homes Bonus Scheme,EN8 9XG,"342,432.00",Yes
Communities & Local Government,DCLG,15/01/2016,Current (non AEF) Grants to Local Authorities,Housing & Planning,BROXTOWE BC,,,,239877640,5000319968,,New Homes Bonus Scheme,NG9 1AB,"183,411.00",Yes
Communities & Local Government,DCLG,15/01/2016,Current (non AEF) Grants to Local Authorities,Housing & Planning,BUCKINGHAMSHIRE CC,,,,293750923,5000319969,,New Homes Bonus Scheme,HP20 1UD,"722,855.00",Yes
Communities & Local Government,DCLG,15/01/2016,Current (non AEF) Grants to Local Authorities,Housing & Planning,BURNLEY BC,,,,229413281,5000319970,,New Homes Bonus Scheme,BB11 1JA,"210,302.00",Yes
Communities & Local Government,DCLG,15/01/2016,Current (non AEF) Grants to Local Authorities,Housing & Planning,BURY MBC,,,,,5000319971,,New Homes Bonus Scheme,BL9 0SW,"488,289.00",Yes
Communities & Local Government,DCLG,15/01/2016,Current (non AEF) Grants to Local Authorities,Housing & Planning,CALDERDALE MBC,,,,,5000319972,,New Homes Bonus Scheme,HX1 1YP,"942,885.00",Yes
Communities & Local Government,DCLG,15/01/2016,Current (non AEF) Grants to Local Authorities,Housing & Planning,CAMBRIDGE CITY COUNCIL,,,,210357534,5000319973,,New Homes Bonus Scheme,CB2 3NA,"1,240,797.00",Yes
Communities & Local Government,DCLG,15/01/2016,Current (non AEF) Grants to Local Authorities,Housing & Planning,CAMBRIDGESHIRE COUNTY CNCL,,,,219047347,5000319974,,New Homes Bonus Scheme,CB3 0AP,"1,055,488.00",Yes
Communities & Local Government,DCLG,15/01/2016,Current (non AEF) Grants to Local Authorities,Housing & Planning,CAMDEN LB,,,,211651836,5000319975,,New Homes Bonus Scheme,WC1H 8NG,"1,889,321.00",Yes
Communities & Local Government,DCLG,15/01/2016,Current (non AEF) Grants to Local Authorities,Housing & Planning,CANNOCK CHASE DC,,,,215064770,5000319976,,New Homes Bonus Scheme,WS11 1BG,"302,876.00",Yes
Communities & Local Government,DCLG,15/01/2016,Current (non AEF) Grants to Local Authorities,Housing & Planning,CANTERBURY CITY CNCL,,,,,5000319819,,New Homes Bonus Scheme,CT1 1YW,"750,680.00",Yes
Communities & Local Government,DCLG,15/01/2016,Current (non AEF) Grants to Local Authorities,Housing & Planning,CARLISLE CITY CNCL,,,,227471059,5000319820,,New Homes Bonus Scheme,CA3 8QG,"425,310.00",Yes
Communities & Local Government,DCLG,15/01/2016,Current (non AEF) Grants to Local Authorities,Housing & Planning,CASTLE POINT BC,,Public Bodies,,228217931,5000319977,,New Homes Bonus Scheme,SS7 1TF,"205,126.00",Yes
Communities & Local Government,DCLG,15/01/2016,Current (non AEF) Grants to Local Authorities,Housing & Planning,CENTRAL BEDFORDSHIRE COUNCIL,,,,232624882,5000320149,,New Homes Bonus Scheme,SG17 5TQ,"2,267,532.00",Yes
Communities & Local Government,DCLG,15/01/2016,Current (non AEF) Grants to Local Authorities,Housing & Planning,CHARNWOOD BC,,,,,5000319978,,New Homes Bonus Scheme,LE11 2TU,"943,769.00",Yes
Communities & Local Government,DCLG,15/01/2016,Current (non AEF) Grants to Local Authorities,Housing & Planning,CHELMSFORD BC,,,,,5000319979,,New Homes Bonus Scheme,CM1 1JE,"407,641.00",Yes
Communities & Local Government,DCLG,15/01/2016,Current (non AEF) Grants to Local Authorities,Housing & Planning,CHELTENHAM BC,,,,,5000319980,,New Homes Bonus Scheme,GL50 1PW,"401,421.00",Yes
Communities & Local Government,DCLG,15/01/2016,Current (non AEF) Grants to Local Authorities,Housing & Planning,CHERWELL DC,,,,,5000319821,,New Homes Bonus Scheme,OX15 4AA,"678,082.00",Yes
Communities & Local Government,DCLG,15/01/2016,Current (non AEF) Grants to Local Authorities,Housing & Planning,CHESHIRE EAST COUNCIL,,Large,,,5000320150,,New Homes Bonus Scheme,CW11 1HZ,"1,634,446.00",Yes
Communities & Local Government,DCLG,15/01/2016,Current (non AEF) Grants to Local Authorities,Housing & Planning,CHESHIRE WEST & CHESTER UA,,Large,,215584383,5000320151,,New Homes Bonus Scheme,CH1 2NP,"1,356,116.00",Yes
Communities & Local Government,DCLG,15/01/2016,Current (non AEF) Grants to Local Authorities,Housing & Planning,CHESTERFIELD BC,,,,232102301,5000319981,,New Homes Bonus Scheme,S40 1LP,"151,572.00",Yes
Communities & Local Government,DCLG,15/01/2016,Current (non AEF) Grants to Local Authorities,Housing & Planning,CHICHESTER DC,,,,739800998,5000319822,,New Homes Bonus Scheme,PO19 1TY,"662,952.00",Yes
Communities & Local Government,DCLG,15/01/2016,Current (non AEF) Grants to Local Authorities,Housing & Planning,CHILTERN DC (HSG),,,,,5000319823,,New Homes Bonus Scheme,HP6 5AW,"183,623.00",Yes
Communities & Local Government,DCLG,15/01/2016,Current (non AEF) Grants to Local Authorities,Housing & Planning,CHORLEY BOROUGH COUNCIL,,,,236415576,5000319982,,New Homes Bonus Scheme,PR7 1DP,"844,767.00",Yes
Communities & Local Government,DCLG,15/01/2016,Current (non AEF) Grants to Local Authorities,Housing & Planning,CHRISTCHURCH BC (HSG),,,,227415213,5000319824,,New Homes Bonus Scheme,BH23 1AZ,"160,822.00",Yes
Communities & Local Government,DCLG,15/01/2016,Current (non AEF) Grants to Local Authorities,Housing & Planning,CITY OF LINCOLN COUNCIL,,,,,5000320045,,New Homes Bonus Scheme,LN1 1DB,"514,582.00",Yes
Communities & Local Government,DCLG,15/01/2016,Current (non AEF) Grants to Local Authorities,Housing & Planning,CITY OF LONDON (HSG),,,,217471460,5000319825,,New Homes Bonus Scheme,EC2P 2EJ,"328,979.00",Yes
Communities & Local Government,DCLG,15/01/2016,Current (non AEF) Grants to Local Authorities,Housing & Planning,CITY OF SUNDERLAND (HSG),,,,215599312,5000319826,,New Homes Bonus Scheme,SR2 7DN,"792,862.00",Yes
Communities & Local Government,DCLG,15/01/2016,Current (non AEF) Grants to Local Authorities,Housing & Planning,CITY OF WAKEFIELD MDC,,,,,5000320123,,New Homes Bonus Scheme,WF1 2QW,"1,752,010.00",Yes
Communities & Local Government,DCLG,15/01/2016,Current (non AEF) Grants to Local Authorities,Housing & Planning,COLCHESTER BC,,,,,5000319983,,New Homes Bonus Scheme,CO3 3WG,"1,153,755.00",Yes
Communities & Local Government,DCLG,15/01/2016,Current (non AEF) Grants to Local Authorities,Housing & Planning,COPELAND BC,,,,236414827,5000319827,,New Homes Bonus Scheme,CA28 7NY,"152,152.00",Yes
Communities & Local Government,DCLG,15/01/2016,Current (non AEF) Grants to Local Authorities,Housing & Planning,CORBY BC,,,,,5000319828,,New Homes Bonus Scheme,NN17 1GD,"661,951.00",Yes
Communities & Local Government,DCLG,15/01/2016,Current (non AEF) Grants to Local Authorities,Housing & Planning,CORNWALL UNITARY AUTHORITY,,,,211334404,5000320154,,New Homes Bonus Scheme,TR1 3AY,"4,038,418.00",Yes
Communities & Local Government,DCLG,15/01/2016,Current (non AEF) Grants to Local Authorities,Housing & Planning,COTSWOLD DC,,,,232462085,5000319829,,New Homes Bonus Scheme,GL7 1PX,"641,198.00",Yes
Communities & Local Government,DCLG,15/01/2016,Current (non AEF) Grants to Local Authorities,Housing & Planning,COVENTRY CITY CNCL,,,,210384802,5000319984,,New Homes Bonus Scheme,CV1 2QL,"1,771,091.00",Yes
Communities & Local Government,DCLG,15/01/2016,Current (non AEF) Grants to Local Authorities,Housing & Planning,CRAVEN DC (HSG),,,,,5000319830,,New Homes Bonus Scheme,BD23 1FJ,"198,488.00",Yes
Communities & Local Government,DCLG,15/01/2016,Current (non AEF) Grants to Local Authorities,Housing & Planning,CRAWLEY BC,,,,211222500,5000319831,,New Homes Bonus Scheme,RH10 1UZ,"393,355.00",Yes
Communities & Local Government,DCLG,15/01/2016,Current (non AEF) Grants to Local Authorities,Housing & Planning,CROYDON LB,,,,212419973,5000319985,,New Homes Bonus Scheme,CR9 3JS,"2,412,492.00",Yes
Communities & Local Government,DCLG,15/01/2016,Current (non AEF) Grants to Local Authorities,Housing & Planning,CUMBRIA COUNTY CNCL,,,,211316542,5000319986,,New Homes Bonus Scheme,CA3 8NA,"331,222.00",Yes
Communities & Local Government,DCLG,15/01/2016,Current (non AEF) Grants to Local Authorities,Housing & Planning,DACORUM BC,,,,236448643,5000319987,,New Homes Bonus Scheme,HP1 1HH,"652,696.00",Yes
Communities & Local Government,DCLG,15/01/2016,Current (non AEF) Grants to Local Authorities,Housing & Planning,DARLINGTON BC,,,,,5000319988,,New Homes Bonus Scheme,TS19 1JA,"453,240.00",Yes
Communities & Local Government,DCLG,15/01/2016,Current (non AEF) Grants to Local Authorities,Housing & Planning,DARTFORD BC,,,,225694942,5000319832,,New Homes Bonus Scheme,DA1 1DR,"664,082.00",Yes
Communities & Local Government,DCLG,15/01/2016,Current (non AEF) Grants to Local Authorities,Housing & Planning,DAVENTRY DC,,,,239859333,5000319833,,New Homes Bonus Scheme,NN11 5AF,"306,274.00",Yes
Communities & Local Government,DCLG,15/01/2016,Current (non AEF) Grants to Local Authorities,Housing & Planning,DERBY CITY CNCL,,,,229641378,5000319989,,New Homes Bonus Scheme,DE1 2FS,"943,270.00",Yes
Communities & Local Government,DCLG,15/01/2016,Current (non AEF) Grants to Local Authorities,Housing & Planning,DERBYSHIRE COUNTYCOUNCIL,,,,232152967,5000319990,,New Homes Bonus Scheme,DE4 3AG,"556,072.00",Yes
Communities & Local Government,DCLG,15/01/2016,Current (non AEF) Grants to Local Authorities,Housing & Planning,DERBYSHIRE DALES DC,,,,,5000319834,,New Homes Bonus Scheme,DE4 3NN,"216,532.00",Yes
Communities & Local Government,DCLG,15/01/2016,Current (non AEF) Grants to Local Authorities,Housing & Planning,DEVON COUNTY CNCL,,,,213754018,5000319991,,New Homes Bonus Scheme,EX2 4QJ,"1,065,932.00",Yes
Communities & Local Government,DCLG,15/01/2016,Current (non AEF) Grants to Local Authorities,Housing & Planning,DONCASTER MBC,,,,,5000319992,,New Homes Bonus Scheme,DN1 3QA,"869,641.00",Yes
Communities & Local Government,DCLG,15/01/2016,Current (non AEF) Grants to Local Authorities,Housing & Planning,DORSET COUNTY CNCL,,,,225431279,5000319993,,New Homes Bonus Scheme,DT1 1XJ,"411,440.00",Yes
Communities & Local Government,DCLG,15/01/2016,Current (non AEF) Grants to Local Authorities,Housing & Planning,DOVER DC,,,,,5000319835,,New Homes Bonus Scheme,CT16 3PD,"392,644.00",Yes
Communities & Local Government,DCLG,15/01/2016,Current (non AEF) Grants to Local Authorities,Housing & Planning,DUDLEY MBC,,,,,5000319994,,New Homes Bonus Scheme,DY1 1HF,"1,024,616.00",Yes
Communities & Local Government,DCLG,15/01/2016,Current (non AEF) Grants to Local Authorities,Housing & Planning,DURHAM COUNTY COUNCIL,,,,224004882,5000320155,,New Homes Bonus Scheme,DH1 5UE,"2,080,695.00",Yes
Communities & Local Government,DCLG,15/01/2016,Current (non AEF) Grants to Local Authorities,Housing & Planning,EALING LB,,,,,5000319995,,New Homes Bonus Scheme,W5 2HL,"2,204,830.00",Yes
Communities & Local Government,DCLG,15/01/2016,Current (non AEF) Grants to Local Authorities,Housing & Planning,EAST CAMBRIDGESHIRE DC,,,,236472023,5000319836,,New Homes Bonus Scheme,CB7 4PL,"437,638.00",Yes
Communities & Local Government,DCLG,15/01/2016,Current (non AEF) Grants to Local Authorities,Housing & Planning,EAST DEVON DC,,,,,5000319837,,New Homes Bonus Scheme,EX10 8HL,"753,805.00",Yes
Communities & Local Government,DCLG,15/01/2016,Current (non AEF) Grants to Local Authorities,Housing & Planning,EAST DORSET DC,,,,228470456,5000319996,,New Homes Bonus Scheme,BH21 4HN,"201,293.00",Yes
Communities & Local Government,DCLG,15/01/2016,Current (non AEF) Grants to Local Authorities,Housing & Planning,EAST HAMPSHIRE DC,,,,,5000319838,,New Homes Bonus Scheme,GU31 4EX,"661,264.00",Yes
Communities & Local Government,DCLG,15/01/2016,Current (non AEF) Grants to Local Authorities,Housing & Planning,EAST HERTFORDSHIRE DC,,,,236176954,5000319839,,New Homes Bonus Scheme,SG13 8EQ,"697,392.00",Yes
Communities & Local Government,DCLG,15/01/2016,Current (non AEF) Grants to Local Authorities,Housing & Planning,EAST LINDSEY DC,,,,,5000319840,,New Homes Bonus Scheme,LN11 8UP,"491,702.00",Yes
Communities & Local Government,DCLG,15/01/2016,Current (non AEF) Grants to Local Authorities,Housing & Planning,EAST NORTHAMPTONSHIRE COUNCIL,,,,227475290,5000319841,,New Homes Bonus Scheme,NN14 4LZ,"504,317.00",Yes
Communities & Local Government,DCLG,15/01/2016,Current (non AEF) Grants to Local Authorities,Housing & Planning,EAST RIDING OF YORKS (HSG),,,,423159987,5000319842,,New Homes Bonus Scheme,HU17 9BA,"1,301,814.00",Yes
Communities & Local Government,DCLG,15/01/2016,Current (non AEF) Grants to Local Authorities,Housing & Planning,EAST STAFFORDSHIRE BC,,,,226778033,5000319843,,New Homes Bonus Scheme,DE14 2EB,"479,322.00",Yes
Communities & Local Government,DCLG,15/01/2016,Current (non AEF) Grants to Local Authorities,Housing & Planning,EAST SUSSEX COUNTY CNCL,,,,,5000319997,,New Homes Bonus Scheme,BN7 1SF,"568,675.00",Yes
Communities & Local Government,DCLG,15/01/2016,Current (non AEF) Grants to Local Authorities,Housing & Planning,EASTBOURNE BC,,,,229896428,5000319998,,New Homes Bonus Scheme,BN21 4TW,"266,040.00",Yes
Communities & Local Government,DCLG,15/01/2016,Current (non AEF) Grants to Local Authorities,Housing & Planning,EASTLEIGH BOROUGH COUNCIL,,,,232669911,5000319999,,New Homes Bonus Scheme,SO5 9YN,"562,875.00",Yes
Communities & Local Government,DCLG,15/01/2016,Current (non AEF) Grants to Local Authorities,Housing & Planning,EDEN DC (HSG),,,,,5000319844,,New Homes Bonus Scheme,CA11 7QF,"179,188.00",Yes
Communities & Local Government,DCLG,15/01/2016,Current (non AEF) Grants to Local Authorities,Housing & Planning,ELMBRIDGE BC (HSG),,,,,5000319845,,New Homes Bonus Scheme,KT10 9SD,"612,282.00",Yes
Communities & Local Government,DCLG,15/01/2016,Current (non AEF) Grants to Local Authorities,Housing & Planning,ENFIELD LB,,,,,5000320000,,New Homes Bonus Scheme,EN1 3XF,"957,647.00",Yes
Communities & Local Government,DCLG,15/01/2016,Current (non AEF) Grants to Local Authorities,Housing & Planning,EPPING FOREST DC,,,,775876360,5000320001,,New Homes Bonus Scheme,CM16 4BZ,"523,928.00",Yes
Communities & Local Government,DCLG,15/01/2016,Current (non AEF) Grants to Local Authorities,Housing & Planning,EPSOM & EWELL BC,,,,225423094,5000320002,,New Homes Bonus Scheme,KT18 5BY,"489,532.00",Yes
Communities & Local Government,DCLG,15/01/2016,Current (non AEF) Grants to Local Authorities,Housing & Planning,EREWASH BC,,,,211209762,5000320003,,New Homes Bonus Scheme,DE7 5RP,"330,280.00",Yes
Communities & Local Government,DCLG,15/01/2016,Current (non AEF) Grants to Local Authorities,Housing & Planning,ESSEX COUNTY CNCL,,,,233572986,5000320004,,New Homes Bonus Scheme,CM1 1JZ,"1,474,885.00",Yes
Communities & Local Government,DCLG,15/01/2016,Current (non AEF) Grants to Local Authorities,Housing & Planning,EXETER CITY COUNCIL,,,,,5000320005,,New Homes Bonus Scheme,EX1 1JW,"882,246.00",Yes
Communities & Local Government,DCLG,15/01/2016,Current (non AEF) Grants to Local Authorities,Housing & Planning,FAREHAM BC,,,,228474144,5000319846,,New Homes Bonus Scheme,PO16 7PU,"412,000.00",Yes
Communities & Local Government,DCLG,15/01/2016,Current (non AEF) Grants to Local Authorities,Housing & Planning,FENLAND DC,,,,227476348,5000319847,,New Homes Bonus Scheme,PE15 8NQ,"390,764.00",Yes
Communities & Local Government,DCLG,15/01/2016,Current (non AEF) Grants to Local Authorities,Housing & Planning,FOREST HEATH DISTRICT COUNCIL,,,,236678116,5000319848,,New Homes Bonus Scheme,IP28 7EY,"609,290.00",Yes
Communities & Local Government,DCLG,15/01/2016,Current (non AEF) Grants to Local Authorities,Housing & Planning,FOREST OF DEAN DC,,,,211278890,5000319849,,New Homes Bonus Scheme,GL16 8HG,"380,893.00",Yes
Communities & Local Government,DCLG,15/01/2016,Current (non AEF) Grants to Local Authorities,Housing & Planning,FYLDE BC,,,,227479912,5000320006,,New Homes Bonus Scheme,FY8 1LW,"413,478.00",Yes
Communities & Local Government,DCLG,15/01/2016,Current (non AEF) Grants to Local Authorities,Housing & Planning,GATESHEAD COUNCIL,,,,216116041,5000320007,,New Homes Bonus Scheme,NE8 1HH,"582,506.00",Yes
Communities & Local Government,DCLG,15/01/2016,Current (non AEF) Grants to Local Authorities,Housing & Planning,GEDLING BC,,,,236180337,5000320008,,New Homes Bonus Scheme,NG5 6LU,"507,882.00",Yes
Communities & Local Government,DCLG,15/01/2016,Current (non AEF) Grants to Local Authorities,Housing & Planning,GLOUCESTER CITY CNCL,,,,230841392,5000320009,,New Homes Bonus Scheme,GL1 2EQ,"771,218.00",Yes
Communities & Local Government,DCLG,15/01/2016,Current (non AEF) Grants to Local Authorities,Housing & Planning,GLOUCESTERSHIRE COUNTY CNCL,,,,211272067,5000320010,,New Homes Bonus Scheme,GL1 2TG,"862,352.00",Yes
Communities & Local Government,DCLG,15/01/2016,Current (non AEF) Grants to Local Authorities,Housing & Planning,GOSPORT BOROUGH COUNCIL,,,,239825078,5000320011,,New Homes Bonus Scheme,PO12 1ED,"199,010.00",Yes
Communities & Local Government,DCLG,15/01/2016,Current (non AEF) Grants to Local Authorities,Housing & Planning,GRAVESHAM BC,,,,236178612,5000320012,,New Homes Bonus Scheme,DA12 1AU,"407,022.00",Yes
Communities & Local Government,DCLG,15/01/2016,Current (non AEF) Grants to Local Authorities,Housing & Planning,GREAT YARMOUTH BC,,,,292697372,5000320013,,New Homes Bonus Scheme,NR30 2QG,"289,162.00",Yes
Communities & Local Government,DCLG,15/01/2016,Current (non AEF) Grants to Local Authorities,Housing & Planning,GREENWICH LB,,,,,5000320014,,New Homes Bonus Scheme,SE18 6HQ,"2,637,743.00",Yes
Communities & Local Government,DCLG,15/01/2016,Current (non AEF) Grants to Local Authorities,Housing & Planning,GUILDFORD BC,,,,236663720,5000319850,,New Homes Bonus Scheme,GU2 5BB,"444,841.00",Yes
Communities & Local Government,DCLG,15/01/2016,Current (non AEF) Grants to Local Authorities,Housing & Planning,HALTON BC (HSG),,,,,5000319851,,New Homes Bonus Scheme,WA8 7QF,"541,334.00",Yes
Communities & Local Government,DCLG,15/01/2016,Current (non AEF) Grants to Local Authorities,Housing & Planning,HAMBLETON DC (HSG),,,,503481319,5000319852,,New Homes Bonus Scheme,DL6 2UU,"335,266.00",Yes
Communities & Local Government,DCLG,15/01/2016,Current (non AEF) Grants to Local Authorities,Housing & Planning,HAMMERSMITH & FULHAM LB,,,,216929489,5000320016,,New Homes Bonus Scheme,W6 9JU,"1,430,815.00",Yes
Communities & Local Government,DCLG,15/01/2016,Current (non AEF) Grants to Local Authorities,Housing & Planning,HAMPSHIRE COUNTY COUNCIL,,,,211325832,5000320017,,New Homes Bonus Scheme,SO23 8UB,"1,544,591.00",Yes
Communities & Local Government,DCLG,15/01/2016,Current (non AEF) Grants to Local Authorities,Housing & Planning,HARBOROUGH DC (HSG),,,,212935774,5000319853,,New Homes Bonus Scheme,LE16 7AG,"545,539.00",Yes
Communities & Local Government,DCLG,15/01/2016,Current (non AEF) Grants to Local Authorities,Housing & Planning,HARINGEY LB,,,,217471767,5000320018,,New Homes Bonus Scheme,N22 4TR,"1,483,622.00",Yes
Communities & Local Government,DCLG,15/01/2016,Current (non AEF) Grants to Local Authorities,Housing & Planning,HARLOW DISTRICT COUNCIL,,Large,,239999055,5000320019,,New Homes Bonus Scheme,CM20 1WG,"245,600.00",Yes
Communities & Local Government,DCLG,15/01/2016,Current (non AEF) Grants to Local Authorities,Housing & Planning,HARROGATE BC,,,,236660031,5000319854,,New Homes Bonus Scheme,HG1 2SG,"370,798.00",Yes
Communities & Local Government,DCLG,15/01/2016,Current (non AEF) Grants to Local Authorities,Housing & Planning,HARROW LB,,,,,5000320020,,New Homes Bonus Scheme,HA1 2UZ,"937,740.00",Yes
Communities & Local Government,DCLG,15/01/2016,Current (non AEF) Grants to Local Authorities,Housing & Planning,HART DC,,,,229723895,5000320021,,New Homes Bonus Scheme,GU13 8AE,"395,745.00",Yes
Communities & Local Government,DCLG,15/01/2016,Current (non AEF) Grants to Local Authorities,Housing & Planning,HARTLEPOOL BOROUGH COUNCIL,,,,424291797,5000320022,,New Homes Bonus Scheme,TS24 8AY,"420,836.00",Yes
Communities & Local Government,DCLG,15/01/2016,Current (non AEF) Grants to Local Authorities,Housing & Planning,HASTINGS BC,,,,,5000320023,,New Homes Bonus Scheme,TN34 3WN,"251,464.00",Yes
Communities & Local Government,DCLG,15/01/2016,Current (non AEF) Grants to Local Authorities,Housing & Planning,HAVANT BC,,,,211047543,5000320024,,New Homes Bonus Scheme,PO9 2AX,"269,246.00",Yes
Communities & Local Government,DCLG,15/01/2016,Current (non AEF) Grants to Local Authorities,Housing & Planning,HAVERING LB,,,,211209770,5000320025,,New Homes Bonus Scheme,RM1 3BB,"1,210,570.00",Yes
Communities & Local Government,DCLG,15/01/2016,Current (non AEF) Grants to Local Authorities,Housing & Planning,HEREFORDSHIRE COUNCIL,,,,,5000319855,,New Homes Bonus Scheme,HR4 0XH,"897,846.00",Yes
Communities & Local Government,DCLG,15/01/2016,Current (non AEF) Grants to Local Authorities,Housing & Planning,HERTFORDSHIRE COUNTY CNCL,,,,210659897,5000320026,,New Homes Bonus Scheme,SG13 8DQ,"1,364,144.00",Yes
Communities & Local Government,DCLG,15/01/2016,Current (non AEF) Grants to Local Authorities,Housing & Planning,HERTSMERE BC,,,,237549253,5000320027,,New Homes Bonus Scheme,WD6 1WA,"481,854.00",Yes
Communities & Local Government,DCLG,15/01/2016,Current (non AEF) Grants to Local Authorities,Housing & Planning,HIGH PEAK BC,,,,239967771,5000319856,,New Homes Bonus Scheme,SK17 6EL,"152,580.00",Yes
Communities & Local Government,DCLG,15/01/2016,Current (non AEF) Grants to Local Authorities,Housing & Planning,HILLINGDON LB,,,,211198585,5000320028,,New Homes Bonus Scheme,UB8 1UW,"1,986,428.00",Yes
Communities & Local Government,DCLG,15/01/2016,Current (non AEF) Grants to Local Authorities,Housing & Planning,HINCKLEY & BOSWORTH BC,,,,211176144,5000319857,,New Homes Bonus Scheme,LE10 1BZ,"493,686.00",Yes
Communities & Local Government,DCLG,15/01/2016,Current (non AEF) Grants to Local Authorities,Housing & Planning,HORSHAM DC,,,,229776588,5000319858,,New Homes Bonus Scheme,RH12 1RL,"734,191.00",Yes
Communities & Local Government,DCLG,15/01/2016,Current (non AEF) Grants to Local Authorities,Housing & Planning,HOUNSLOW LB,,Public Bodies,,210388999,5000320029,,New Homes Bonus Scheme,TW3 4DN,"1,449,013.00",Yes
Communities & Local Government,DCLG,15/01/2016,Current (non AEF) Grants to Local Authorities,Housing & Planning,HULL CITY COUNCIL,,,,217460984,5000320038,,New Homes Bonus Scheme,HU1 2AA,"685,751.00",Yes
Communities & Local Government,DCLG,15/01/2016,Current (non AEF) Grants to Local Authorities,Housing & Planning,HUNTINGDONSHIRE DC,,,,235999216,5000319859,,New Homes Bonus Scheme,PE18 6TN,"1,100,711.00",Yes
Communities & Local Government,DCLG,15/01/2016,Current (non AEF) Grants to Local Authorities,Housing & Planning,HYNDBURN BC,,,,,5000320030,,New Homes Bonus Scheme,BB5 1EZ,"112,947.00",Yes
Communities & Local Government,DCLG,15/01/2016,Current (non AEF) Grants to Local Authorities,Housing & Planning,IPSWICH BC,,,,226861391,5000320031,,New Homes Bonus Scheme,IP1 2DE,"446,002.00",Yes
Communities & Local Government,DCLG,15/01/2016,Current (non AEF) Grants to Local Authorities,Housing & Planning,ISLE OF WIGHT CNCL,,,,236431730,5000320032,,New Homes Bonus Scheme,PO30 1UD,"764,022.00",Yes
Communities & Local Government,DCLG,15/01/2016,Current (non AEF) Grants to Local Authorities,Housing & Planning,ISLES OF SCILLY COUNCIL,,,,214146040,5000320033,,New Homes Bonus Scheme,TR21 0LW,"14,349.00",Yes
Communities & Local Government,DCLG,15/01/2016,Current (non AEF) Grants to Local Authorities,Housing & Planning,ISLINGTON LB,,,,225716729,5000320034,,New Homes Bonus Scheme,N1 1XR,"3,445,336.00",Yes
Communities & Local Government,DCLG,15/01/2016,Current (non AEF) Grants to Local Authorities,Housing & Planning,KENT COUNTY CNCL,,,,211334420,5000320036,,New Homes Bonus Scheme,ME14 1RF,"1,831,313.00",Yes
Communities & Local Government,DCLG,15/01/2016,Current (non AEF) Grants to Local Authorities,Housing & Planning,KETTERING BC,,,,211271796,5000320037,,New Homes Bonus Scheme,NN15 7QX,"530,995.00",Yes
Communities & Local Government,DCLG,15/01/2016,Current (non AEF) Grants to Local Authorities,Housing & Planning,KINGS LYNN & WEST NORFOLK BC,,,,236417671,5000319860,,New Homes Bonus Scheme,PE30 1EX,"729,746.00",Yes
Communities & Local Government,DCLG,15/01/2016,Current (non AEF) Grants to Local Authorities,Housing & Planning,KINGSTON UPON THAMES  (HSG),,,,211379941,5000319861,,New Homes Bonus Scheme,KT1 1EU,"913,020.00",Yes
Communities & Local Government,DCLG,15/01/2016,Current (non AEF) Grants to Local Authorities,Housing & Planning,KIRKLEES COUNCIL (HSG),,,,,5000319862,,New Homes Bonus Scheme,HD1 2YU,"1,914,907.00",Yes
Communities & Local Government,DCLG,15/01/2016,Current (non AEF) Grants to Local Authorities,Housing & Planning,KNOWSLEY MBC,,,,,5000320039,,New Homes Bonus Scheme,L36 9YZ,"474,785.00",Yes
Communities & Local Government,DCLG,15/01/2016,Current (non AEF) Grants to Local Authorities,Housing & Planning,LANCASHIRE COUNTY CNCL,,,,233136584,5000320041,,New Homes Bonus Scheme,PR1 8RD,"971,654.00",Yes
Communities & Local Government,DCLG,15/01/2016,Current (non AEF) Grants to Local Authorities,Housing & Planning,LANCASTER CITY COUNCIL,,,,228669990,5000319863,,New Homes Bonus Scheme,LA1 1PJ,"319,998.00",Yes
Communities & Local Government,DCLG,15/01/2016,Current (non AEF) Grants to Local Authorities,Housing & Planning,LEEDS CITY CNCL,,Micro,,,5000320042,,New Homes Bonus Scheme,LS1 1JF,"3,406,824.00",Yes
Communities & Local Government,DCLG,15/01/2016,Current (non AEF) Grants to Local Authorities,Housing & Planning,LEICESTER CITY CNCL,,,,228219960,5000319864,,New Homes Bonus Scheme,LE1 1FZ,"1,822,322.00",Yes
Communities & Local Government,DCLG,15/01/2016,Current (non AEF) Grants to Local Authorities,Housing & Planning,LEICESTERSHIRE COUNTY CNCL,,,,423679836,5000320043,,New Homes Bonus Scheme,LE3 8RB,"791,244.00",Yes
Communities & Local Government,DCLG,15/01/2016,Current (non AEF) Grants to Local Authorities,Housing & Planning,LEWES DC,,,,213090082,5000319865,,New Homes Bonus Scheme,BN7 1AB,"344,114.00",Yes
Communities & Local Government,DCLG,15/01/2016,Current (non AEF) Grants to Local Authorities,Housing & Planning,LEWISHAM LB (HSG),,Large,,235653300,5000319866,,New Homes Bonus Scheme,SE6 4RU,"1,960,563.00",Yes
Communities & Local Government,DCLG,15/01/2016,Current (non AEF) Grants to Local Authorities,Housing & Planning,LICHFIELD DC,,,,236780086,5000320044,,New Homes Bonus Scheme,WS13 6YX,"384,752.00",Yes
Communities & Local Government,DCLG,15/01/2016,Current (non AEF) Grants to Local Authorities,Housing & Planning,LINCOLNSHIRE COUNTY COUNCIL,,,,,5000320046,,New Homes Bonus Scheme,LN1 1YT,"881,038.00",Yes
Communities & Local Government,DCLG,15/01/2016,Current (non AEF) Grants to Local Authorities,Housing & Planning,LIVERPOOL CITY COUNCIL,,,,,5000320047,,New Homes Bonus Scheme,L2 2DH,"1,844,150.00",Yes
Communities & Local Government,DCLG,15/01/2016,Current (non AEF) Grants to Local Authorities,Housing & Planning,LONDON BOROUGH OF BARNET,,,,211049507,5000319951,,New Homes Bonus Scheme,NN1 1NP,"2,522,978.00",Yes
Communities & Local Government,DCLG,15/01/2016,Current (non AEF) Grants to Local Authorities,Housing & Planning,LONDON BOROUGH OF HACKNEY,,,,225221597,5000320015,,New Homes Bonus Scheme,E8 4RU,"3,704,827.00",Yes
Communities & Local Government,DCLG,15/01/2016,Current (non AEF) Grants to Local Authorities,Housing & Planning,LONDON BOROUGH OF LAMBETH,,,,228216479,5000320040,,New Homes Bonus Scheme,SW2 1RL,"2,790,618.00",Yes
Communities & Local Government,DCLG,15/01/2016,Current (non AEF) Grants to Local Authorities,Housing & Planning,LONDON BOROUGH OF NEWHAM,,,,211381004,5000320056,,New Homes Bonus Scheme,E16 2QU,"2,948,264.00",Yes
Communities & Local Government,DCLG,15/01/2016,Current (non AEF) Grants to Local Authorities,Housing & Planning,LONDON BOROUGH OF REDBRIDGE,,,,211341417,5000320078,,New Homes Bonus Scheme,IG1 1NN,"990,575.00",Yes
Communities & Local Government,DCLG,15/01/2016,Current (non AEF) Grants to Local Authorities,Housing & Planning,LUTON BC,,,,365112155,5000320048,,New Homes Bonus Scheme,LU1 2BQ,"745,617.00",Yes
Communities & Local Government,DCLG,15/01/2016,Current (non AEF) Grants to Local Authorities,Housing & Planning,MAIDSTONE BC,,Public Bodies,,293004214,5000319867,,New Homes Bonus Scheme,ME15 6JQ,"1,076,571.00",Yes
Communities & Local Government,DCLG,15/01/2016,Current (non AEF) Grants to Local Authorities,Housing & Planning,MALDON DC,,,,424668663,5000319868,,New Homes Bonus Scheme,CM9 7DL,"158,221.00",Yes
Communities & Local Government,DCLG,15/01/2016,Current (non AEF) Grants to Local Authorities,Housing & Planning,MALVERN HILLS DC,,,,227470424,5000320049,,New Homes Bonus Scheme,WR14 3AF,"440,334.00",Yes
Communities & Local Government,DCLG,15/01/2016,Current (non AEF) Grants to Local Authorities,Housing & Planning,MANCHESTER CITY CNCL (HSG),,,,211241393,5000319869,,New Homes Bonus Scheme,M60 2JR,"2,565,978.00",Yes
Communities & Local Government,DCLG,15/01/2016,Current (non AEF) Grants to Local Authorities,Housing & Planning,MANSFIELD DC,,,,237922968,5000320050,,New Homes Bonus Scheme,NG19 7BH,"315,474.00",Yes
Communities & Local Government,DCLG,15/01/2016,Current (non AEF) Grants to Local Authorities,Housing & Planning,MEDWAY TOWNS D C (HSG),,,,,5000319870,,New Homes Bonus Scheme,ME4 4TR,"1,506,047.00",Yes
Communities & Local Government,DCLG,15/01/2016,Current (non AEF) Grants to Local Authorities,Housing & Planning,MELTON BC,,,,346268340,5000319871,,New Homes Bonus Scheme,LE13 0UL,"214,687.00",Yes
Communities & Local Government,DCLG,15/01/2016,Current (non AEF) Grants to Local Authorities,Housing & Planning,MENDIP DISTRICT COUNCIL,,,,,5000319872,,New Homes Bonus Scheme,BA4 5BA,"623,926.00",Yes
Communities & Local Government,DCLG,15/01/2016,Current (non AEF) Grants to Local Authorities,Housing & Planning,MERTON LB,,,,,5000320051,,New Homes Bonus Scheme,SM4 5DX,"920,931.00",Yes
Communities & Local Government,DCLG,15/01/2016,Current (non AEF) Grants to Local Authorities,Housing & Planning,MID DEVON DC,,,,213241137,5000319873,,New Homes Bonus Scheme,EX16 6PP,"403,181.00",Yes
Communities & Local Government,DCLG,15/01/2016,Current (non AEF) Grants to Local Authorities,Housing & Planning,MID SUFFOLK DISTRICK COUNCIL,,,,223387239,5000319874,,New Homes Bonus Scheme,IP6 8DL,"555,160.00",Yes
Communities & Local Government,DCLG,15/01/2016,Current (non AEF) Grants to Local Authorities,Housing & Planning,MID SUSSEX DC,,,,236675989,5000319875,,New Homes Bonus Scheme,RH16 1SS,"814,087.00",Yes
Communities & Local Government,DCLG,15/01/2016,Current (non AEF) Grants to Local Authorities,Housing & Planning,MIDDLESBROUGH BC,,Large,,,5000320052,,New Homes Bonus Scheme,TS1 9GA,"500,928.00",Yes
Communities & Local Government,DCLG,15/01/2016,Current (non AEF) Grants to Local Authorities,Housing & Planning,MILTON KEYNES BC,,,,,5000320053,,New Homes Bonus Scheme,MK9 3WJ,"2,653,347.00",Yes
Communities & Local Government,DCLG,15/01/2016,Current (non AEF) Grants to Local Authorities,Housing & Planning,MOLE VALLEY DC,,,,225385772,5000319876,,New Homes Bonus Scheme,RH4 1SJ,"271,253.00",Yes
Communities & Local Government,DCLG,15/01/2016,Current (non AEF) Grants to Local Authorities,Housing & Planning,NEW FOREST DC,,Public Bodies,,,5000319877,,New Homes Bonus Scheme,SO41 9ZG,"480,748.00",Yes
Communities & Local Government,DCLG,15/01/2016,Current (non AEF) Grants to Local Authorities,Housing & Planning,NEWARK & SHERWOOD DC (HSG),,,,236186755,5000319878,,New Homes Bonus Scheme,NG23 5QX,"469,688.00",Yes
Communities & Local Government,DCLG,15/01/2016,Current (non AEF) Grants to Local Authorities,Housing & Planning,NEWCASTLE UNDER LYME BC,,,,229894373,5000320054,,New Homes Bonus Scheme,ST5 2AG,"453,641.00",Yes
Communities & Local Government,DCLG,15/01/2016,Current (non AEF) Grants to Local Authorities,Housing & Planning,NEWCASTLE UPON TYNE DC,,,,239154040,5000320055,,New Homes Bonus Scheme,NE99 2BN,"1,281,587.00",Yes
Communities & Local Government,DCLG,15/01/2016,Current (non AEF) Grants to Local Authorities,Housing & Planning,NORFOLK COUNTY COUNCIL,,,,232602789,5000320057,,New Homes Bonus Scheme,NR1 2DW,"1,031,046.00",Yes
Communities & Local Government,DCLG,15/01/2016,Current (non AEF) Grants to Local Authorities,Housing & Planning,NORTH DEVON DC,,,,,5000319879,,New Homes Bonus Scheme,EX31 1EA,"251,848.00",Yes
Communities & Local Government,DCLG,15/01/2016,Current (non AEF) Grants to Local Authorities,Housing & Planning,NORTH DORSET DC,,,,236185005,5000319880,,New Homes Bonus Scheme,DT11 7LL,"433,106.00",Yes
Communities & Local Government,DCLG,15/01/2016,Current (non AEF) Grants to Local Authorities,Housing & Planning,NORTH EAST DERBYSHIRE DC,,,,238879308,5000320058,,New Homes Bonus Scheme,S40 1LF,"172,514.00",Yes
Communities & Local Government,DCLG,15/01/2016,Current (non AEF) Grants to Local Authorities,Housing & Planning,NORTH EAST LINCOLN DC (HSG),,,,211242737,5000319881,,New Homes Bonus Scheme,DN35 8LN,"531,662.00",Yes
Communities & Local Government,DCLG,15/01/2016,Current (non AEF) Grants to Local Authorities,Housing & Planning,NORTH HERTS DC (HOUSING) (HSG),,,,233593917,5000319882,,New Homes Bonus Scheme,SG6 3JF,"598,291.00",Yes
Communities & Local Government,DCLG,15/01/2016,Current (non AEF) Grants to Local Authorities,Housing & Planning,NORTH KESTEVEN DC,,,,,5000320059,,New Homes Bonus Scheme,NG34 7EF,"588,793.00",Yes
Communities & Local Government,DCLG,15/01/2016,Current (non AEF) Grants to Local Authorities,Housing & Planning,NORTH LINCOLNSHIRE DC (HSG),,Public Bodies,,424005502,5000319883,,New Homes Bonus Scheme,DN16 1AB,"659,230.00",Yes
Communities & Local Government,DCLG,15/01/2016,Current (non AEF) Grants to Local Authorities,Housing & Planning,NORTH NORFOLK DC,,,,239975964,5000319884,,New Homes Bonus Scheme,NR27 9EJ,"418,554.00",Yes
Communities & Local Government,DCLG,15/01/2016,Current (non AEF) Grants to Local Authorities,Housing & Planning,NORTH SOMERSET COUNCIL,,Large,,,5000320060,,New Homes Bonus Scheme,BS23 1UJ,"1,359,349.00",Yes
Communities & Local Government,DCLG,15/01/2016,Current (non AEF) Grants to Local Authorities,Housing & Planning,NORTH TYNESIDE MBC,,,,,5000320061,,New Homes Bonus Scheme,NE27 0BY,"625,774.00",Yes
Communities & Local Government,DCLG,15/01/2016,Current (non AEF) Grants to Local Authorities,Housing & Planning,NORTH WARWICKSHIRE BC,,Large,,,5000319885,,New Homes Bonus Scheme,CV9 1DE,"175,915.00",Yes
Communities & Local Government,DCLG,15/01/2016,Current (non AEF) Grants to Local Authorities,Housing & Planning,NORTH WEST LEICESTERSHIRE DC,,,,232605782,5000319886,,New Homes Bonus Scheme,LE67 9SH,"530,766.00",Yes
Communities & Local Government,DCLG,15/01/2016,Current (non AEF) Grants to Local Authorities,Housing & Planning,NORTH YORKSHIRE CC (DL7 8AL),,,,,5000320062,,New Homes Bonus Scheme,DL7 8AL,"549,295.00",Yes
Communities & Local Government,DCLG,15/01/2016,Current (non AEF) Grants to Local Authorities,Housing & Planning,NORTHAMPTON BOROUGH COUNCIL,,,,228310017,5000320063,,New Homes Bonus Scheme,NN4 4FF,"958,959.00",Yes
Communities & Local Government,DCLG,15/01/2016,Current (non AEF) Grants to Local Authorities,Housing & Planning,NORTHAMPTONSHIRE COUNTY COUNCIL,,,,,5000320064,,New Homes Bonus Scheme,CB3 0AP,"923,824.00",Yes
Communities & Local Government,DCLG,15/01/2016,Current (non AEF) Grants to Local Authorities,Housing & Planning,NORTHUMBERLAND COUNTY COUNCIL,,,,210308905,5000320148,,New Homes Bonus Scheme,NE61 2EF,"1,210,105.00",Yes
Communities & Local Government,DCLG,15/01/2016,Current (non AEF) Grants to Local Authorities,Housing & Planning,NORWICH CITY CNCL,,,,235981297,5000320065,,New Homes Bonus Scheme,NR2 1NH,"588,886.00",Yes
Communities & Local Government,DCLG,15/01/2016,Current (non AEF) Grants to Local Authorities,Housing & Planning,NOTTINGHAM CITY COUNCIL,,,,214495447,5000320066,,New Homes Bonus Scheme,NG2 3NG,"1,182,535.00",Yes
Communities & Local Government,DCLG,15/01/2016,Current (non AEF) Grants to Local Authorities,Housing & Planning,NOTTINGHAMSHIRE COUNTY CNCL,,,,,5000320067,,New Homes Bonus Scheme,NG1 4BU,"742,391.00",Yes
Communities & Local Government,DCLG,15/01/2016,Current (non AEF) Grants to Local Authorities,Housing & Planning,NUNEATON & BEDWORTH BC,,Large,,,5000320068,,New Homes Bonus Scheme,CV11 5AA,"367,739.00",Yes
Communities & Local Government,DCLG,15/01/2016,Current (non AEF) Grants to Local Authorities,Housing & Planning,OADBY & WIGSTON BC (HSG),,,,239831878,5000319887,,New Homes Bonus Scheme,LE8 2DR,"78,294.00",Yes
Communities & Local Government,DCLG,15/01/2016,Current (non AEF) Grants to Local Authorities,Housing & Planning,OLDHAM MBC,,,,213015574,5000320069,,New Homes Bonus Scheme,OL1 1UH,"521,528.00",Yes
Communities & Local Government,DCLG,15/01/2016,Current (non AEF) Grants to Local Authorities,Housing & Planning,OXFORD CITY COUNCIL,,,,212437417,5000320070,,New Homes Bonus Scheme,OX1 1DS,"608,590.00",Yes
Communities & Local Government,DCLG,15/01/2016,Current (non AEF) Grants to Local Authorities,Housing & Planning,OXFORDSHIRE CC,,,,228216438,5000320071,,New Homes Bonus Scheme,OX1 1TH,"792,443.00",Yes
Communities & Local Government,DCLG,15/01/2016,Current (non AEF) Grants to Local Authorities,Housing & Planning,PENDLE BC,,,,548605328,5000320072,,New Homes Bonus Scheme,BB9 7LG,"238,052.00",Yes
Communities & Local Government,DCLG,15/01/2016,Current (non AEF) Grants to Local Authorities,Housing & Planning,PETERBOROUGH CITY CNCL,,,,,5000320073,,New Homes Bonus Scheme,PE1 1HG,"1,583,818.00",Yes
Communities & Local Government,DCLG,15/01/2016,Current (non AEF) Grants to Local Authorities,Housing & Planning,PLYMOUTH CITY CNCL,,Public Bodies,,236416095,5000320074,,New Homes Bonus Scheme,PL1 2AA,"1,049,140.00",Yes
Communities & Local Government,DCLG,15/01/2016,Current (non AEF) Grants to Local Authorities,Housing & Planning,POOLE BC (HSG),,,,,5000319888,,New Homes Bonus Scheme,BH15 2RU,"634,428.00",Yes
Communities & Local Government,DCLG,15/01/2016,Current (non AEF) Grants to Local Authorities,Housing & Planning,PORTSMOUTH CITY COUNCIL,,Large,,211183082,5000320075,,New Homes Bonus Scheme,PO1 2AR,"657,228.00",Yes
Communities & Local Government,DCLG,15/01/2016,Current (non AEF) Grants to Local Authorities,Housing & Planning,PRESTON BC,,,,232604124,5000320076,,New Homes Bonus Scheme,PR1 2RL,"240,250.00",Yes
Communities & Local Government,DCLG,15/01/2016,Current (non AEF) Grants to Local Authorities,Housing & Planning,PURBECK DC,,,,,5000319889,,New Homes Bonus Scheme,BH20 4PP,"106,382.00",Yes
Communities & Local Government,DCLG,15/01/2016,Current (non AEF) Grants to Local Authorities,Housing & Planning,READING BC,,,,210220399,5000320077,,New Homes Bonus Scheme,RG1 7TD,"904,728.00",Yes
Communities & Local Government,DCLG,15/01/2016,Current (non AEF) Grants to Local Authorities,Housing & Planning,REDCAR & CLEVELAND BOROUGH COUNCIL,,,,215175196,5000320079,,New Homes Bonus Scheme,TS10 1RT,"388,265.00",Yes
Communities & Local Government,DCLG,15/01/2016,Current (non AEF) Grants to Local Authorities,Housing & Planning,REDDITCH BC,,,,231421491,5000320080,,New Homes Bonus Scheme,B98 8AH,"200,808.00",Yes
Communities & Local Government,DCLG,15/01/2016,Current (non AEF) Grants to Local Authorities,Housing & Planning,REIGATE & BANSTEAD BC,,,,211313515,5000320081,,New Homes Bonus Scheme,RH2 OSH,"765,673.00",Yes
Communities & Local Government,DCLG,15/01/2016,Current (non AEF) Grants to Local Authorities,Housing & Planning,RIBBLE VALLEY BC,,,,232617894,5000319890,,New Homes Bonus Scheme,BB7 2RA,"242,154.00",Yes
Communities & Local Government,DCLG,15/01/2016,Current (non AEF) Grants to Local Authorities,Housing & Planning,RICHMOND UPON THAMES LB,,,,228868535,5000320082,,New Homes Bonus Scheme,TW1 3BZ,"784,555.00",Yes
Communities & Local Government,DCLG,15/01/2016,Current (non AEF) Grants to Local Authorities,Housing & Planning,RICHMONDSHIRE DC,,,,232245142,5000319891,,New Homes Bonus Scheme,DL10 4JX,"187,916.00",Yes
Communities & Local Government,DCLG,15/01/2016,Current (non AEF) Grants to Local Authorities,Housing & Planning,ROCHDALE MBC,,,,,5000320083,,New Homes Bonus Scheme,OL16 1YG,"814,101.00",Yes
Communities & Local Government,DCLG,15/01/2016,Current (non AEF) Grants to Local Authorities,Housing & Planning,ROCHFORD DISTRICT COUNCIL,,,,387828767,5000320084,,New Homes Bonus Scheme,SS4 1BW,"263,394.00",Yes
Communities & Local Government,DCLG,15/01/2016,Current (non AEF) Grants to Local Authorities,Housing & Planning,ROSSENDALE BC,,,,237654020,5000320085,,New Homes Bonus Scheme,OL13 0BB,"195,015.00",Yes
Communities & Local Government,DCLG,15/01/2016,Current (non AEF) Grants to Local Authorities,Housing & Planning,ROTHER DC (HSG),,,,,5000319892,,New Homes Bonus Scheme,TN39 3JX,"330,470.00",Yes
Communities & Local Government,DCLG,15/01/2016,Current (non AEF) Grants to Local Authorities,Housing & Planning,ROTHERHAM MBC,,,,211266937,5000320086,,New Homes Bonus Scheme,S60 1AE,"1,255,060.00",Yes
Communities & Local Government,DCLG,15/01/2016,Current (non AEF) Grants to Local Authorities,Housing & Planning,ROYAL BOROUGH OF KENSINGTON & CHELS,,,,211124466,5000320035,,New Homes Bonus Scheme,W8 7NX,"633,536.00",Yes
Communities & Local Government,DCLG,15/01/2016,Current (non AEF) Grants to Local Authorities,Housing & Planning,RUGBY BOROUGH COUNCIL,,,,,5000320087,,New Homes Bonus Scheme,CV21 2RR,"609,695.00",Yes
Communities & Local Government,DCLG,15/01/2016,Current (non AEF) Grants to Local Authorities,Housing & Planning,RUNNYMEDE BOROUGH COUNCIL,,,,232225722,5000320088,,New Homes Bonus Scheme,KT15 2AH,"376,019.00",Yes
Communities & Local Government,DCLG,15/01/2016,Current (non AEF) Grants to Local Authorities,Housing & Planning,RUSHCLIFFE BOROUGH COUNCIL,,,,,5000319893,,New Homes Bonus Scheme,NG2 5FE,"465,932.00",Yes
Communities & Local Government,DCLG,15/01/2016,Current (non AEF) Grants to Local Authorities,Housing & Planning,RUSHMOOR BC,,,,232607606,5000320089,,New Homes Bonus Scheme,GU14 7JU,"424,043.00",Yes
Communities & Local Government,DCLG,15/01/2016,Current (non AEF) Grants to Local Authorities,Housing & Planning,RUTLAND CC,,,,,5000320090,,New Homes Bonus Scheme,LE15 6HP,"202,152.00",Yes
Communities & Local Government,DCLG,15/01/2016,Current (non AEF) Grants to Local Authorities,Housing & Planning,RYEDALE DC,,,,,5000319894,,New Homes Bonus Scheme,YO17 0HH,"346,856.00",Yes
Communities & Local Government,DCLG,15/01/2016,Current (non AEF) Grants to Local Authorities,Housing & Planning,SALFORD CITY CNCL,,,,213180073,5000320091,,New Homes Bonus Scheme,M27 5AW,"2,321,238.00",Yes
Communities & Local Government,DCLG,15/01/2016,Current (non AEF) Grants to Local Authorities,Housing & Planning,SANDWELL MBC,,,,,5000320092,,New Homes Bonus Scheme,B69 3BS,"1,269,930.00",Yes
Communities & Local Government,DCLG,15/01/2016,Current (non AEF) Grants to Local Authorities,Housing & Planning,SCARBOROUGH BC,,Large,,,5000319895,,New Homes Bonus Scheme,YO11 2HG,"238,265.00",Yes
Communities & Local Government,DCLG,15/01/2016,Current (non AEF) Grants to Local Authorities,Housing & Planning,SEDGEMOOR DC,,,,211204011,5000319896,,New Homes Bonus Scheme,TA6 3AR,"910,662.00",Yes
Communities & Local Government,DCLG,15/01/2016,Current (non AEF) Grants to Local Authorities,Housing & Planning,SEFTON MBC,,Public Bodies,,232936125,5000320093,,New Homes Bonus Scheme,L20 3NJ,"812,194.00",Yes
Communities & Local Government,DCLG,15/01/2016,Current (non AEF) Grants to Local Authorities,Housing & Planning,SELBY DC,,,,239816721,5000319897,,New Homes Bonus Scheme,YO8 9FT,"519,592.00",Yes
Communities & Local Government,DCLG,15/01/2016,Current (non AEF) Grants to Local Authorities,Housing & Planning,SEVENOAKS DC,,,,236100913,5000319898,,New Homes Bonus Scheme,TN13 1HG,"454,608.00",Yes
Communities & Local Government,DCLG,15/01/2016,Current (non AEF) Grants to Local Authorities,Housing & Planning,SHEFFIELD CITY CNCL,,,,,5000320094,,New Homes Bonus Scheme,S1 1UJ,"1,827,182.00",Yes
Communities & Local Government,DCLG,15/01/2016,Current (non AEF) Grants to Local Authorities,Housing & Planning,SHEPWAY DISTRICT COUNCIL,,,,235550878,5000319899,,New Homes Bonus Scheme,CT20 2QY,"400,638.00",Yes
Communities & Local Government,DCLG,15/01/2016,Current (non AEF) Grants to Local Authorities,Housing & Planning,SHROPSHIRE UNITARY AUTHORITY,,,,217036490,5000320153,,New Homes Bonus Scheme,SY2 6ND,"1,838,295.00",Yes
Communities & Local Government,DCLG,15/01/2016,Current (non AEF) Grants to Local Authorities,Housing & Planning,SLOUGH BOROUGH COUNCIL,,,,211027123,5000320095,,New Homes Bonus Scheme,SL1 3UF,"647,648.00",Yes
Communities & Local Government,DCLG,15/01/2016,Current (non AEF) Grants to Local Authorities,Housing & Planning,SOLIHULL MBC,,,,,5000320096,,New Homes Bonus Scheme,B91 3QR,"741,094.00",Yes
Communities & Local Government,DCLG,15/01/2016,Current (non AEF) Grants to Local Authorities,Housing & Planning,SOMERSET COUNTY CNCL,,,,211229406,5000320097,,New Homes Bonus Scheme,TA1 4DY,"867,445.00",Yes
Communities & Local Government,DCLG,15/01/2016,Current (non AEF) Grants to Local Authorities,Housing & Planning,SOUTH BUCKS DC (HSG),,,,,5000319900,,New Homes Bonus Scheme,UB9 4LH,"332,586.00",Yes
Communities & Local Government,DCLG,15/01/2016,Current (non AEF) Grants to Local Authorities,Housing & Planning,SOUTH CAMBRIDGESHIRE DC,,,,236369484,5000319901,,New Homes Bonus Scheme,CB23 6EA,"1,052,040.00",Yes
Communities & Local Government,DCLG,15/01/2016,Current (non AEF) Grants to Local Authorities,Housing & Planning,SOUTH DERBYSHIRE DC,,Public Bodies,,232612416,5000319902,,New Homes Bonus Scheme,DE11 0AH,"580,601.00",Yes
Communities & Local Government,DCLG,15/01/2016,Current (non AEF) Grants to Local Authorities,Housing & Planning,SOUTH GLOUCESTERSHIRE DC (HSG),,,,,5000319903,,New Homes Bonus Scheme,BS15 2TR,"1,570,249.00",Yes
Communities & Local Government,DCLG,15/01/2016,Current (non AEF) Grants to Local Authorities,Housing & Planning,SOUTH HAMS DC,,,,236445342,5000319904,,New Homes Bonus Scheme,TQ9 5NE,"423,383.00",Yes
Communities & Local Government,DCLG,15/01/2016,Current (non AEF) Grants to Local Authorities,Housing & Planning,SOUTH HOLLAND,,,,236445383,5000319905,,New Homes Bonus Scheme,PE11 2XE,"340,469.00",Yes
Communities & Local Government,DCLG,15/01/2016,Current (non AEF) Grants to Local Authorities,Housing & Planning,SOUTH KESTEVEN DC (HSG),,,,227470747,5000319906,,New Homes Bonus Scheme,NG31 6PZ,"833,144.00",Yes
Communities & Local Government,DCLG,15/01/2016,Current (non AEF) Grants to Local Authorities,Housing & Planning,SOUTH LAKELAND DC,,,,236445466,5000319907,,New Homes Bonus Scheme,LA49 4DQ,"184,414.00",Yes
Communities & Local Government,DCLG,15/01/2016,Current (non AEF) Grants to Local Authorities,Housing & Planning,SOUTH NORFOLK DC,,,,232605717,5000319908,,New Homes Bonus Scheme,NR15 2XE,"1,133,427.00",Yes
Communities & Local Government,DCLG,15/01/2016,Current (non AEF) Grants to Local Authorities,Housing & Planning,SOUTH NORTHAMPTONSHIRE DC,,,,,5000319909,,New Homes Bonus Scheme,NN12 7AE,"482,553.00",Yes
Communities & Local Government,DCLG,15/01/2016,Current (non AEF) Grants to Local Authorities,Housing & Planning,SOUTH OXFORDSHIRE DC,,,,212296766,5000319910,,New Homes Bonus Scheme,OX10 8HQ,"719,470.00",Yes
Communities & Local Government,DCLG,15/01/2016,Current (non AEF) Grants to Local Authorities,Housing & Planning,SOUTH RIBBLE BC,,Public Bodies,,,5000320098,,New Homes Bonus Scheme,PR5 1DH,"274,028.00",Yes
Communities & Local Government,DCLG,15/01/2016,Current (non AEF) Grants to Local Authorities,Housing & Planning,SOUTH SOMERSET DC,,,,239850811,5000319911,,New Homes Bonus Scheme,BA20 2DS,"997,773.00",Yes
Communities & Local Government,DCLG,15/01/2016,Current (non AEF) Grants to Local Authorities,Housing & Planning,SOUTH STAFFORDSHIRE DC,,,,210305155,5000319912,,New Homes Bonus Scheme,WV8 1PX,"364,532.00",Yes
Communities & Local Government,DCLG,15/01/2016,Current (non AEF) Grants to Local Authorities,Housing & Planning,SOUTH TYNESIDE COUNCIL,,,,345736438,5000320099,,New Homes Bonus Scheme,NE33 2RL,"509,994.00",Yes
Communities & Local Government,DCLG,15/01/2016,Current (non AEF) Grants to Local Authorities,Housing & Planning,SOUTHAMPTON CITY CNCL,,,,216927475,5000320100,,New Homes Bonus Scheme,SO14 7LY,"1,085,447.00",Yes
Communities & Local Government,DCLG,15/01/2016,Current (non AEF) Grants to Local Authorities,Housing & Planning,SOUTHEND ON SEA BC,,,,217067263,5000320101,,New Homes Bonus Scheme,SS2 6EP,"493,228.00",Yes
Communities & Local Government,DCLG,15/01/2016,Current (non AEF) Grants to Local Authorities,Housing & Planning,SOUTHWARK LB,,,,,5000320102,,New Homes Bonus Scheme,SE1 2QH,"3,277,513.00",Yes
Communities & Local Government,DCLG,15/01/2016,Current (non AEF) Grants to Local Authorities,Housing & Planning,SPELTHORNE BOROUGH COUNCIL,,,,211177332,5000319913,,New Homes Bonus Scheme,TW18 1XB,"391,101.00",Yes
Communities & Local Government,DCLG,15/01/2016,Current (non AEF) Grants to Local Authorities,Housing & Planning,ST ALBANS CITY COUNCIL,,,,218692510,5000320103,,New Homes Bonus Scheme,AL1 3JE,"748,447.00",Yes
Communities & Local Government,DCLG,15/01/2016,Current (non AEF) Grants to Local Authorities,Housing & Planning,ST EDMUNDSBURY BOROUGH COUNCIL,,,,212503653,5000319914,,New Homes Bonus Scheme,IP33 3YU,"304,771.00",Yes
Communities & Local Government,DCLG,15/01/2016,Current (non AEF) Grants to Local Authorities,Housing & Planning,ST HELENS MBC,,,,,5000320104,,New Homes Bonus Scheme,WA10 1HP,"646,642.00",Yes
Communities & Local Government,DCLG,15/01/2016,Current (non AEF) Grants to Local Authorities,Housing & Planning,STAFFORD BC,,,,227476934,5000320105,,New Homes Bonus Scheme,ST16 3AQ,"421,390.00",Yes
Communities & Local Government,DCLG,15/01/2016,Current (non AEF) Grants to Local Authorities,Housing & Planning,STAFFORDSHIRE COUNTY CNCL,,Public Bodies,,,5000320106,,New Homes Bonus Scheme,ST16 2DH,"697,511.00",Yes
Communities & Local Government,DCLG,15/01/2016,Current (non AEF) Grants to Local Authorities,Housing & Planning,STAFFORDSHIRE MOORLANDS DC,,,,232749775,5000319915,,New Homes Bonus Scheme,ST13 6HQ,"245,281.00",Yes
Communities & Local Government,DCLG,15/01/2016,Current (non AEF) Grants to Local Authorities,Housing & Planning,STEVENAGE BC,,,,236440186,5000320107,,New Homes Bonus Scheme,SG1 1HN,"315,323.00",Yes
Communities & Local Government,DCLG,15/01/2016,Current (non AEF) Grants to Local Authorities,Housing & Planning,STOCKPORT MBC,,,,228706248,5000320108,,New Homes Bonus Scheme,SK1 3XE,"581,434.00",Yes
Communities & Local Government,DCLG,15/01/2016,Current (non AEF) Grants to Local Authorities,Housing & Planning,STOCKTON-ON-TEES BC (HSG),,,,,5000319916,,New Homes Bonus Scheme,TS23 2YS,"967,774.00",Yes
Communities & Local Government,DCLG,15/01/2016,Current (non AEF) Grants to Local Authorities,Housing & Planning,STOKE ON TRENT CITY COUNCIL,,,,216037890,5000320109,,New Homes Bonus Scheme,ST4 1HH,"784,333.00",Yes
Communities & Local Government,DCLG,15/01/2016,Current (non AEF) Grants to Local Authorities,Housing & Planning,STRATFORD ON AVON DC,,,,227473881,5000320110,,New Homes Bonus Scheme,CV37 6HX,"561,852.00",Yes
Communities & Local Government,DCLG,15/01/2016,Current (non AEF) Grants to Local Authorities,Housing & Planning,STROUD DC (HSG),,,,,5000319917,,New Homes Bonus Scheme,GL5 4UB,"569,245.00",Yes
Communities & Local Government,DCLG,15/01/2016,Current (non AEF) Grants to Local Authorities,Housing & Planning,SUFFOLK CC (SOCIAL CARE SERV) (H,,,,385614821,5000319918,,New Homes Bonus Scheme,IP4 1LH,"767,917.00",Yes
Communities & Local Government,DCLG,15/01/2016,Current (non AEF) Grants to Local Authorities,Housing & Planning,SUFFOLK COASTAL DC (HSG),,,,239933203,5000319919,,New Homes Bonus Scheme,IP12 1AU,"372,880.00",Yes
Communities & Local Government,DCLG,15/01/2016,Current (non AEF) Grants to Local Authorities,Housing & Planning,SURREY COUNTY COUNCIL,,Public Bodies,,,5000320111,,New Homes Bonus Scheme,KT1 2DN,"1,214,558.00",Yes
Communities & Local Government,DCLG,15/01/2016,Current (non AEF) Grants to Local Authorities,Housing & Planning,SURREY HEATH BC,,,,236445441,5000320112,,New Homes Bonus Scheme,GU15 3HD,"317,716.00",Yes
Communities & Local Government,DCLG,15/01/2016,Current (non AEF) Grants to Local Authorities,Housing & Planning,SUTTON LB,,,,,5000320113,,New Homes Bonus Scheme,SM1 1EA,"812,968.00",Yes
Communities & Local Government,DCLG,15/01/2016,Current (non AEF) Grants to Local Authorities,Housing & Planning,SWALE BC,,,,239842768,5000320114,,New Homes Bonus Scheme,ME10 3HT,"702,710.00",Yes
Communities & Local Government,DCLG,15/01/2016,Current (non AEF) Grants to Local Authorities,Housing & Planning,SWINDON BC,,,,458639697,5000320115,,New Homes Bonus Scheme,SN1 2JH,"1,525,642.00",Yes
Communities & Local Government,DCLG,15/01/2016,Current (non AEF) Grants to Local Authorities,Housing & Planning,TAMESIDE MBC,,,,212635875,5000320116,,New Homes Bonus Scheme,OL6 6DL,"878,395.00",Yes
Communities & Local Government,DCLG,15/01/2016,Current (non AEF) Grants to Local Authorities,Housing & Planning,TAMWORTH BOROUGH COUNCIL,,,,232612457,5000320117,,New Homes Bonus Scheme,B79 7BZ,"138,250.00",Yes
Communities & Local Government,DCLG,15/01/2016,Current (non AEF) Grants to Local Authorities,Housing & Planning,TANDRIDGE DC,,,,225481076,5000319920,,New Homes Bonus Scheme,RH8 0BT,"392,097.00",Yes
Communities & Local Government,DCLG,15/01/2016,Current (non AEF) Grants to Local Authorities,Housing & Planning,TAUNTON DEANE BC,,,,236185294,5000319921,,New Homes Bonus Scheme,TA1 1HE,"794,664.00",Yes
Communities & Local Government,DCLG,15/01/2016,Current (non AEF) Grants to Local Authorities,Housing & Planning,TEIGNBRIDGE DC,,,,236440475,5000319922,,New Homes Bonus Scheme,TQ12 4XX,"777,873.00",Yes
Communities & Local Government,DCLG,15/01/2016,Current (non AEF) Grants to Local Authorities,Housing & Planning,TELFORD & WREKIN COUNCIL,,,,230235801,5000320118,,New Homes Bonus Scheme,TF3 4NT,"1,163,094.00",Yes
Communities & Local Government,DCLG,15/01/2016,Current (non AEF) Grants to Local Authorities,Housing & Planning,TENDRING DC,,,,,5000319923,,New Homes Bonus Scheme,CO15 1SE,"444,820.00",Yes
Communities & Local Government,DCLG,15/01/2016,Current (non AEF) Grants to Local Authorities,Housing & Planning,TEST VALLEY BC,,,,225442698,5000319924,,New Homes Bonus Scheme,SP10 3AJ,"893,059.00",Yes
Communities & Local Government,DCLG,15/01/2016,Current (non AEF) Grants to Local Authorities,Housing & Planning,TEWKESBURY BC,,,,232740399,5000319925,,New Homes Bonus Scheme,GL20 5TT,"685,433.00",Yes
Communities & Local Government,DCLG,15/01/2016,Current (non AEF) Grants to Local Authorities,Housing & Planning,THANET DC,,,,232309369,5000319926,,New Homes Bonus Scheme,CT8 1XZ,"608,545.00",Yes
Communities & Local Government,DCLG,15/01/2016,Current (non AEF) Grants to Local Authorities,Housing & Planning,THREE RIVERS DC,,,,,5000320119,,New Homes Bonus Scheme,WD3 1RL,"368,554.00",Yes
Communities & Local Government,DCLG,15/01/2016,Current (non AEF) Grants to Local Authorities,Housing & Planning,THURROCK  BOROUGH COUNCIL,,,,,5000320120,,New Homes Bonus Scheme,RM17 6SL,"674,427.00",Yes
Communities & Local Government,DCLG,15/01/2016,Current (non AEF) Grants to Local Authorities,Housing & Planning,TONBRIDGE & MALLING BC,,,,,5000319927,,New Homes Bonus Scheme,ME19 6LZ,"775,288.00",Yes
Communities & Local Government,DCLG,15/01/2016,Current (non AEF) Grants to Local Authorities,Housing & Planning,TORBAY BC,,,,,5000320121,,New Homes Bonus Scheme,TQ1 3DR,"639,179.00",Yes
Communities & Local Government,DCLG,15/01/2016,Current (non AEF) Grants to Local Authorities,Housing & Planning,TORRIDGE DC,,,,,5000319928,,New Homes Bonus Scheme,EX39 2QG,"396,952.00",Yes
Communities & Local Government,DCLG,15/01/2016,Current (non AEF) Grants to Local Authorities,Housing & Planning,TOWER HAMLETS LB (HSG),,,,231315144,5000319929,,New Homes Bonus Scheme,E14 2BG,"6,209,380.00",Yes
Communities & Local Government,DCLG,15/01/2016,Current (non AEF) Grants to Local Authorities,Housing & Planning,TRAFFORD MBC,,,,,5000320122,,New Homes Bonus Scheme,M32 0TH,"587,289.00",Yes
Communities & Local Government,DCLG,15/01/2016,Current (non AEF) Grants to Local Authorities,Housing & Planning,TUNBRIDGE WELLS BC,,,,775221013,5000319930,,New Homes Bonus Scheme,TN1 1RS,"304,868.00",Yes
Communities & Local Government,DCLG,15/01/2016,Current (non AEF) Grants to Local Authorities,Housing & Planning,UTTLESFORD DC,,,,424423242,5000319931,,New Homes Bonus Scheme,CB11 4ER,"899,575.00",Yes
Communities & Local Government,DCLG,15/01/2016,Current (non AEF) Grants to Local Authorities,Housing & Planning,VALE OF WHITE HORSE DC,,,,,5000319932,,New Homes Bonus Scheme,OX14 3JE,"705,774.00",Yes
Communities & Local Government,DCLG,15/01/2016,Current (non AEF) Grants to Local Authorities,Housing & Planning,WALSALL MBC,,,,212515585,5000320124,,New Homes Bonus Scheme,WS1 1TW,"1,254,886.00",Yes
Communities & Local Government,DCLG,15/01/2016,Current (non AEF) Grants to Local Authorities,Housing & Planning,WALTHAM FOREST LB,,,,,5000320125,,New Homes Bonus Scheme,E17 4JA,"1,144,242.00",Yes
Communities & Local Government,DCLG,15/01/2016,Current (non AEF) Grants to Local Authorities,Housing & Planning,WANDSWORTH LB,,,,,5000320126,,New Homes Bonus Scheme,SW18 2PU,"2,263,347.00",Yes
Communities & Local Government,DCLG,15/01/2016,Current (non AEF) Grants to Local Authorities,Housing & Planning,WARRINGTON BC,,,,,5000320127,,New Homes Bonus Scheme,WA1 1BN,"1,121,110.00",Yes
Communities & Local Government,DCLG,15/01/2016,Current (non AEF) Grants to Local Authorities,Housing & Planning,WARWICK,,,,,5000320128,,New Homes Bonus Scheme,CV32 4NW,"405,722.00",Yes
Communities & Local Government,DCLG,15/01/2016,Current (non AEF) Grants to Local Authorities,Housing & Planning,WARWICKSHIRE COUNTY CNCL,,,,210396290,5000320129,,New Homes Bonus Scheme,CV34 4RH,"530,231.00",Yes
Communities & Local Government,DCLG,15/01/2016,Current (non AEF) Grants to Local Authorities,Housing & Planning,WATFORD COUNCIL,,,,215498572,5000320130,,New Homes Bonus Scheme,WD17 3EX,"819,983.00",Yes
Communities & Local Government,DCLG,15/01/2016,Current (non AEF) Grants to Local Authorities,Housing & Planning,WAVENEY DISTRICT COUNCIL,,Large,,229740980,5000319933,,New Homes Bonus Scheme,NR32 1HS,"382,950.00",Yes
Communities & Local Government,DCLG,15/01/2016,Current (non AEF) Grants to Local Authorities,Housing & Planning,WAVERLEY BC V177,,,,,5000319934,,New Homes Bonus Scheme,GU7 1HR,"415,590.00",Yes
Communities & Local Government,DCLG,15/01/2016,Current (non AEF) Grants to Local Authorities,Housing & Planning,WEALDEN DC,,,,232688697,5000319935,,New Homes Bonus Scheme,BN22 9LN,"1,082,611.00",Yes
Communities & Local Government,DCLG,15/01/2016,Current (non AEF) Grants to Local Authorities,Housing & Planning,WELLINGBOROUGH BOROUGH COUNCIL,,Large,,230851581,5000320131,,New Homes Bonus Scheme,NN8 1BN,"250,246.00",Yes
Communities & Local Government,DCLG,15/01/2016,Current (non AEF) Grants to Local Authorities,Housing & Planning,WELWYN HATFIELD COUNCIL,,,,210360804,5000319936,,New Homes Bonus Scheme,AL8 6AE,"431,604.00",Yes
Communities & Local Government,DCLG,15/01/2016,Current (non AEF) Grants to Local Authorities,Housing & Planning,WEST BERKSHIRE COUNCIL,,,,364809181,5000320132,,New Homes Bonus Scheme,RG14 2AF,"765,564.00",Yes
Communities & Local Government,DCLG,15/01/2016,Current (non AEF) Grants to Local Authorities,Housing & Planning,WEST DEVON BC,,,,234002095,5000319937,,New Homes Bonus Scheme,PL19 0BZ,"374,442.00",Yes
Communities & Local Government,DCLG,15/01/2016,Current (non AEF) Grants to Local Authorities,Housing & Planning,WEST DORSET DC,,,,424295350,5000319938,,New Homes Bonus Scheme,DT1 1UZ,"484,323.00",Yes
Communities & Local Government,DCLG,15/01/2016,Current (non AEF) Grants to Local Authorities,Housing & Planning,WEST LANCASHIRE BC,,,,232240978,5000320133,,New Homes Bonus Scheme,L39 2DF,"342,200.00",Yes
Communities & Local Government,DCLG,15/01/2016,Current (non AEF) Grants to Local Authorities,Housing & Planning,WEST LINDSEY DC,,,,227471026,5000319939,,New Homes Bonus Scheme,DN21 2NA,"496,606.00",Yes
Communities & Local Government,DCLG,15/01/2016,Current (non AEF) Grants to Local Authorities,Housing & Planning,WEST OXFORDSHIRE DC,,,,210401379,5000319940,,New Homes Bonus Scheme,OX28 1NB,"457,858.00",Yes
Communities & Local Government,DCLG,15/01/2016,Current (non AEF) Grants to Local Authorities,Housing & Planning,WEST SOMERSET DC,,,,216015144,5000319941,,New Homes Bonus Scheme,TA4 4QA,"142,754.00",Yes
Communities & Local Government,DCLG,15/01/2016,Current (non AEF) Grants to Local Authorities,Housing & Planning,WEST SUSSEX CC,,Public Bodies,,232198762,5000320134,,New Homes Bonus Scheme,PO19 1RG,"952,461.00",Yes
Communities & Local Government,DCLG,15/01/2016,Current (non AEF) Grants to Local Authorities,Housing & Planning,WESTMINSTER CITY CNCL,,,,229845706,5000320135,,New Homes Bonus Scheme,SW1E 6QP,"2,622,625.00",Yes
Communities & Local Government,DCLG,15/01/2016,Current (non AEF) Grants to Local Authorities,Housing & Planning,WEYMOUTH & PORTLAND BC,,,,735157948,5000320136,,New Homes Bonus Scheme,DT4 8TA,"259,834.00",Yes
Communities & Local Government,DCLG,15/01/2016,Current (non AEF) Grants to Local Authorities,Housing & Planning,WIGAN MBC,,Public Bodies,,,5000320137,,New Homes Bonus Scheme,WN1 1AZ,"989,230.00",Yes
Communities & Local Government,DCLG,15/01/2016,Current (non AEF) Grants to Local Authorities,Housing & Planning,WILTSHIRE COUNCIL,,,,211341656,5000320147,,New Homes Bonus Scheme,BA14 4DS,"3,569,374.00",Yes
Communities & Local Government,DCLG,15/01/2016,Current (non AEF) Grants to Local Authorities,Housing & Planning,WINCHESTER CITY CNCL,,,,228838280,5000319942,,New Homes Bonus Scheme,SO23 9LJ,"707,539.00",Yes
Communities & Local Government,DCLG,15/01/2016,Current (non AEF) Grants to Local Authorities,Housing & Planning,WINDSOR & MAIDENHEAD (HSG),,,,227411998,5000319943,,New Homes Bonus Scheme,SL6 1RF,"743,569.00",Yes
Communities & Local Government,DCLG,15/01/2016,Current (non AEF) Grants to Local Authorities,Housing & Planning,WIRRAL MBC,,,,211222602,5000320138,,New Homes Bonus Scheme,CH41 6BU,"649,396.00",Yes
Communities & Local Government,DCLG,15/01/2016,Current (non AEF) Grants to Local Authorities,Housing & Planning,WOKING BC,,,,211163449,5000320139,,New Homes Bonus Scheme,GU21 1YL,"382,128.00",Yes
Communities & Local Government,DCLG,15/01/2016,Current (non AEF) Grants to Local Authorities,Housing & Planning,WOKINGHAM DC,,,,,5000320140,,New Homes Bonus Scheme,RG11 1WJ,"856,582.00",Yes
Communities & Local Government,DCLG,15/01/2016,Current (non AEF) Grants to Local Authorities,Housing & Planning,WOLVERHAMPTON MBC,,,,229895453,5000320141,,New Homes Bonus Scheme,WV1 1RL,"800,822.00",Yes
Communities & Local Government,DCLG,15/01/2016,Current (non AEF) Grants to Local Authorities,Housing & Planning,WORCESTER CITY CNCL,,,,227419751,5000320142,,New Homes Bonus Scheme,WR1 2EZ,"441,581.00",Yes
Communities & Local Government,DCLG,15/01/2016,Current (non AEF) Grants to Local Authorities,Housing & Planning,WORCESTERSHIRE COUNTY COUNCIL,,,,230359643,5000320143,,New Homes Bonus Scheme,WR5 2NP,"638,886.00",Yes
Communities & Local Government,DCLG,15/01/2016,Current (non AEF) Grants to Local Authorities,Housing & Planning,WORTHING BC,,,,236429734,5000320144,,New Homes Bonus Scheme,BN11 1HA,"270,216.00",Yes
Communities & Local Government,DCLG,15/01/2016,Current (non AEF) Grants to Local Authorities,Housing & Planning,WYCHAVON DISTRICT COUNCIL,,,,232257139,5000319944,,New Homes Bonus Scheme,WR10 1PT,"727,076.00",Yes
Communities & Local Government,DCLG,15/01/2016,Current (non AEF) Grants to Local Authorities,Housing & Planning,WYCOMBE DC,,Medium,,232683771,5000319945,,New Homes Bonus Scheme,HP11 1BB,"815,113.00",Yes
Communities & Local Government,DCLG,15/01/2016,Current (non AEF) Grants to Local Authorities,Housing & Planning,WYRE BC,,,,236646493,5000319946,,New Homes Bonus Scheme,FY6 7PU,"453,422.00",Yes
Communities & Local Government,DCLG,15/01/2016,Current (non AEF) Grants to Local Authorities,Housing & Planning,WYRE FOREST DISTRICT COUNCIL,,,,,5000320145,,New Homes Bonus Scheme,DY11 7WF,"421,152.00",Yes
Communities & Local Government,DCLG,15/01/2016,Current (non AEF) Grants to Local Authorities,Housing & Planning,YORK CITY CNCL,,,,,5000320146,,New Homes Bonus Scheme,YO1 0EG,"904,720.00",Yes
Communities & Local Government,DCLG,15/01/2016,Current (non AEF) Grants to Local Authorities,Local Government & Public Services,ADUR DC,,,,227472891,5000319208,,Council Tax Freeze,BN11 1HA,"6,323.00",Yes
Communities & Local Government,DCLG,15/01/2016,Current (non AEF) Grants to Local Authorities,Local Government & Public Services,ADUR DC,,,,227472891,5000320857,,Business Rates 2% Inflation Cap,BN11 1HA,"2,193.00",Yes
Communities & Local Government,DCLG,15/01/2016,Current (non AEF) Grants to Local Authorities,Local Government & Public Services,ADUR DC,,,,227472891,5000320860,,Doubling of Small Business Rates Relief,BN11 1HA,"21,291.00",Yes
Communities & Local Government,DCLG,15/01/2016,Current (non AEF) Grants to Local Authorities,Local Government & Public Services,ADUR DC,,,,227472891,5000320863,,Retail Relief,BN11 1HA,"9,308.00",Yes
Communities & Local Government,DCLG,15/01/2016,Current (non AEF) Grants to Local Authorities,Local Government & Public Services,ALLERDALE BOROUGH COUNCIL,,,,218146780,5000320866,,Retail Relief,CA14 3YJ,"23,542.00",Yes
Communities & Local Government,DCLG,15/01/2016,Current (non AEF) Grants to Local Authorities,Local Government & Public Services,ALLERDALE BOROUGH COUNCIL,,,,218146780,5000320870,,Small Business Rates Relief on Second Properties,CA14 3YJ,338,Yes
Communities & Local Government,DCLG,15/01/2016,Current (non AEF) Grants to Local Authorities,Local Government & Public Services,ALLERDALE BOROUGH COUNCIL,,,,218146780,5000320873,,Doubling of Small Business Rates Relief,CA14 3YJ,"55,769.00",Yes
Communities & Local Government,DCLG,15/01/2016,Current (non AEF) Grants to Local Authorities,Local Government & Public Services,ALLERDALE BOROUGH COUNCIL,,,,218146780,5000320876,,Reoccupation Relief,CA14 3YJ,887,Yes
Communities & Local Government,DCLG,15/01/2016,Current (non AEF) Grants to Local Authorities,Local Government & Public Services,ALLERDALE BOROUGH COUNCIL,,,,218146780,5000320879,,Business Rates 2% Inflation Cap,CA14 3YJ,"4,941.00",Yes
Communities & Local Government,DCLG,15/01/2016,Current (non AEF) Grants to Local Authorities,Local Government & Public Services,AMBER VALLEY BC,,,,,5000319209,,Council Tax Freeze,DE5 3BT,"6,405.00",Yes
Communities & Local Government,DCLG,15/01/2016,Current (non AEF) Grants to Local Authorities,Local Government & Public Services,AMBER VALLEY BC,,,,,5000320882,,Business Rates 2% Inflation Cap,DE5 3BT,"3,422.00",Yes
Communities & Local Government,DCLG,15/01/2016,Current (non AEF) Grants to Local Authorities,Local Government & Public Services,AMBER VALLEY BC,,,,,5000320885,,Doubling of Small Business Rates Relief,DE5 3BT,"44,313.00",Yes
Communities & Local Government,DCLG,15/01/2016,Current (non AEF) Grants to Local Authorities,Local Government & Public Services,AMBER VALLEY BC,,,,,5000320888,,Retail Relief,DE5 3BT,"23,504.00",Yes
Communities & Local Government,DCLG,15/01/2016,Current (non AEF) Grants to Local Authorities,Local Government & Public Services,AMBER VALLEY BC,,,,,5000320891,,Reoccupation Relief,DE5 3BT,406,Yes
Communities & Local Government,DCLG,15/01/2016,Current (non AEF) Grants to Local Authorities,Local Government & Public Services,AMBER VALLEY BC,,,,,5000320892,,Small Business Rates Relief on Second Properties,DE5 3BT,338,Yes
Communities & Local Government,DCLG,15/01/2016,Current (non AEF) Grants to Local Authorities,Local Government & Public Services,ARUN DC,,,,211217668,5000319078,,Council Tax Freeze,BN17 5LF,"10,351.00",Yes
Communities & Local Government,DCLG,15/01/2016,Current (non AEF) Grants to Local Authorities,Local Government & Public Services,ARUN DC,,,,211217668,5000321506,,Small Business Rates Relief on Second Properties,BN17 5LF,341,Yes
Communities & Local Government,DCLG,15/01/2016,Current (non AEF) Grants to Local Authorities,Local Government & Public Services,ARUN DC,,,,211217668,5000321508,,Retail Relief,BN17 5LF,"35,877.00",Yes
Communities & Local Government,DCLG,15/01/2016,Current (non AEF) Grants to Local Authorities,Local Government & Public Services,ARUN DC,,,,211217668,5000321509,,Business Rates 2% Inflation Cap,BN17 5LF,"5,863.00",Yes
Communities & Local Government,DCLG,15/01/2016,Current (non AEF) Grants to Local Authorities,Local Government & Public Services,ARUN DC,,,,211217668,5000321511,,Doubling of Small Business Rates Relief,BN17 5LF,"54,203.00",Yes
Communities & Local Government,DCLG,15/01/2016,Current (non AEF) Grants to Local Authorities,Local Government & Public Services,ARUN DC,,,,211217668,5000321515,,Reoccupation Relief,BN17 5LF,270,Yes
Communities & Local Government,DCLG,15/01/2016,Current (non AEF) Grants to Local Authorities,Local Government & Public Services,ASHFIELD DC,,,,235415296,5000319210,,Council Tax Freeze,NG17 8DA,"6,387.00",Yes
Communities & Local Government,DCLG,15/01/2016,Current (non AEF) Grants to Local Authorities,Local Government & Public Services,ASHFIELD DC,,,,235415296,5000320895,,Empty New Build Relief,NG17 8DA,"1,184.00",Yes
Communities & Local Government,DCLG,15/01/2016,Current (non AEF) Grants to Local Authorities,Local Government & Public Services,ASHFIELD DC,,,,235415296,5000320899,,Reoccupation Relief,NG17 8DA,507,Yes
Communities & Local Government,DCLG,15/01/2016,Current (non AEF) Grants to Local Authorities,Local Government & Public Services,ASHFIELD DC,,,,235415296,5000320901,,Retail Relief,NG17 8DA,"6,764.00",Yes
Communities & Local Government,DCLG,15/01/2016,Current (non AEF) Grants to Local Authorities,Local Government & Public Services,ASHFIELD DC,,,,235415296,5000320907,,Doubling of Small Business Rates Relief,NG17 8DA,"30,982.00",Yes
Communities & Local Government,DCLG,15/01/2016,Current (non AEF) Grants to Local Authorities,Local Government & Public Services,ASHFIELD DC,,,,235415296,5000320910,,Business Rates 2% Inflation Cap,NG17 8DA,"5,442.00",Yes
Communities & Local Government,DCLG,15/01/2016,Current (non AEF) Grants to Local Authorities,Local Government & Public Services,ASHFORD BC,,,,229467071,5000319079,,Council Tax Freeze,TN23 1PL,"6,882.00",Yes
Communities & Local Government,DCLG,15/01/2016,Current (non AEF) Grants to Local Authorities,Local Government & Public Services,ASHFORD BC,,,,229467071,5000321517,,Reoccupation Relief,TN23 1PL,845,Yes
Communities & Local Government,DCLG,15/01/2016,Current (non AEF) Grants to Local Authorities,Local Government & Public Services,ASHFORD BC,,,,229467071,5000321519,,Small Business Rates Relief on Second Properties,TN23 1PL,299,Yes
Communities & Local Government,DCLG,15/01/2016,Current (non AEF) Grants to Local Authorities,Local Government & Public Services,ASHFORD BC,,,,229467071,5000321523,,Retail Relief,TN23 1PL,"26,379.00",Yes
Communities & Local Government,DCLG,15/01/2016,Current (non AEF) Grants to Local Authorities,Local Government & Public Services,ASHFORD BC,,,,229467071,5000321525,,Business Rates 2% Inflation Cap,TN23 1PL,"3,788.00",Yes
Communities & Local Government,DCLG,15/01/2016,Current (non AEF) Grants to Local Authorities,Local Government & Public Services,ASHFORD BC,,,,229467071,5000321527,,Doubling of Small Business Rates Relief,TN23 1PL,"42,519.00",Yes
Communities & Local Government,DCLG,15/01/2016,Current (non AEF) Grants to Local Authorities,Local Government & Public Services,AVON FIRE AUTHORITY,,Large,,424872570,5000320543,,Business Rates 2% Inflation Cap,BS1 6EU,"12,052.00",Yes
Communities & Local Government,DCLG,15/01/2016,Current (non AEF) Grants to Local Authorities,Local Government & Public Services,AVON FIRE AUTHORITY,,Large,,424872570,5000320546,,Doubling of Small Business Rates Relief,BS1 6EU,"7,157.00",Yes
Communities & Local Government,DCLG,15/01/2016,Current (non AEF) Grants to Local Authorities,Local Government & Public Services,AVON FIRE AUTHORITY,,Large,,424872570,5000320552,,Reoccupation Relief,BS1 6EU,"1,115.00",Yes
Communities & Local Government,DCLG,15/01/2016,Current (non AEF) Grants to Local Authorities,Local Government & Public Services,AVON FIRE AUTHORITY,,Large,,424872570,5000320555,,Retail Relief,BS1 6EU,"2,793.00",Yes
Communities & Local Government,DCLG,15/01/2016,Current (non AEF) Grants to Local Authorities,Local Government & Public Services,AYLESBURY VALE DC(HSG),,,,396710709,5000319080,,Council Tax Freeze,HP19 8FF,"10,627.00",Yes
Communities & Local Government,DCLG,15/01/2016,Current (non AEF) Grants to Local Authorities,Local Government & Public Services,AYLESBURY VALE DC(HSG),,,,396710709,5000321529,,Business Rates 2% Inflation Cap,HP19 8FF,"4,650.00",Yes
Communities & Local Government,DCLG,15/01/2016,Current (non AEF) Grants to Local Authorities,Local Government & Public Services,AYLESBURY VALE DC(HSG),,,,396710709,5000321531,,Doubling of Small Business Rates Relief,HP19 8FF,"56,215.00",Yes
Communities & Local Government,DCLG,15/01/2016,Current (non AEF) Grants to Local Authorities,Local Government & Public Services,AYLESBURY VALE DC(HSG),,,,396710709,5000321533,,Empty New Build Relief,HP19 8FF,"2,815.00",Yes
Communities & Local Government,DCLG,15/01/2016,Current (non AEF) Grants to Local Authorities,Local Government & Public Services,AYLESBURY VALE DC(HSG),,,,396710709,5000321535,,Retail Relief,HP19 8FF,"27,766.00",Yes
Communities & Local Government,DCLG,15/01/2016,Current (non AEF) Grants to Local Authorities,Local Government & Public Services,BABERGH DC,,,,232618405,5000319081,,Council Tax Freeze,IP7 6SJ,"4,989.00",Yes
Communities & Local Government,DCLG,15/01/2016,Current (non AEF) Grants to Local Authorities,Local Government & Public Services,BABERGH DC,,,,232618405,5000321539,,Retail Relief,IP7 6SJ,"13,505.00",Yes
Communities & Local Government,DCLG,15/01/2016,Current (non AEF) Grants to Local Authorities,Local Government & Public Services,BABERGH DC,,,,232618405,5000321541,,Reoccupation Relief,IP7 6SJ,264,Yes
Communities & Local Government,DCLG,15/01/2016,Current (non AEF) Grants to Local Authorities,Local Government & Public Services,BABERGH DC,,,,232618405,5000321545,,Business Rates 2% Inflation Cap,IP7 6SJ,"2,476.00",Yes
Communities & Local Government,DCLG,15/01/2016,Current (non AEF) Grants to Local Authorities,Local Government & Public Services,BABERGH DC,,,,232618405,5000321547,,Doubling of Small Business Rates Relief,IP7 6SJ,"36,708.00",Yes
Communities & Local Government,DCLG,15/01/2016,Current (non AEF) Grants to Local Authorities,Local Government & Public Services,BARKING & DAGENHAM LB (HSG),,,,217142293,5000319082,,Independent Living Fund Grant,RM10 7BY,"96,377.00",Yes
Communities & Local Government,DCLG,15/01/2016,Current (non AEF) Grants to Local Authorities,Local Government & Public Services,BARKING & DAGENHAM LB (HSG),,,,217142293,5000321549,,Retail Relief,RM10 7BY,"23,699.00",Yes
Communities & Local Government,DCLG,15/01/2016,Current (non AEF) Grants to Local Authorities,Local Government & Public Services,BARKING & DAGENHAM LB (HSG),,,,217142293,5000321551,,Business Rates 2% Inflation Cap,RM10 7BY,"61,477.00",Yes
Communities & Local Government,DCLG,15/01/2016,Current (non AEF) Grants to Local Authorities,Local Government & Public Services,BARKING & DAGENHAM LB (HSG),,,,217142293,5000321553,,Doubling of Small Business Rates Relief,RM10 7BY,"31,664.00",Yes
Communities & Local Government,DCLG,15/01/2016,Current (non AEF) Grants to Local Authorities,Local Government & Public Services,BARKING & DAGENHAM LB (HSG),,,,217142293,5000321555,,Empty New Build Relief,RM10 7BY,"1,501.00",Yes
Communities & Local Government,DCLG,15/01/2016,Current (non AEF) Grants to Local Authorities,Local Government & Public Services,BARKING & DAGENHAM LB (HSG),,,,217142293,5000321557,,Reoccupation Relief,RM10 7BY,"2,475.00",Yes
Communities & Local Government,DCLG,15/01/2016,Current (non AEF) Grants to Local Authorities,Local Government & Public Services,BARNSLEY MBC,,,,211178595,5000319213,,Independent Living Fund Grant,S70 2AQ,"361,456.00",Yes
Communities & Local Government,DCLG,15/01/2016,Current (non AEF) Grants to Local Authorities,Local Government & Public Services,BARNSLEY MBC,,,,211178595,5000320932,,Business Rates 2% Inflation Cap,S70 2AQ,"62,632.00",Yes
Communities & Local Government,DCLG,15/01/2016,Current (non AEF) Grants to Local Authorities,Local Government & Public Services,BARNSLEY MBC,,,,211178595,5000320938,,Retail Relief,S70 2AQ,"43,645.00",Yes
Communities & Local Government,DCLG,15/01/2016,Current (non AEF) Grants to Local Authorities,Local Government & Public Services,BARNSLEY MBC,,,,211178595,5000320941,,Doubling of Small Business Rates Relief,S70 2AQ,"100,210.00",Yes
Communities & Local Government,DCLG,15/01/2016,Current (non AEF) Grants to Local Authorities,Local Government & Public Services,BARROW BC,,,,295632913,5000319214,,Council Tax Freeze,LA14 2LD,"4,714.00",Yes
Communities & Local Government,DCLG,15/01/2016,Current (non AEF) Grants to Local Authorities,Local Government & Public Services,BARROW BC,,,,295632913,5000320947,,Business Rates 2% Inflation Cap,LA14 2LD,"4,153.00",Yes
Communities & Local Government,DCLG,15/01/2016,Current (non AEF) Grants to Local Authorities,Local Government & Public Services,BARROW BC,,,,295632913,5000320953,,Reoccupation Relief,LA14 2LD,278,Yes
Communities & Local Government,DCLG,15/01/2016,Current (non AEF) Grants to Local Authorities,Local Government & Public Services,BARROW BC,,,,295632913,5000320955,,Doubling of Small Business Rates Relief,LA14 2LD,"22,616.00",Yes
Communities & Local Government,DCLG,15/01/2016,Current (non AEF) Grants to Local Authorities,Local Government & Public Services,BARROW BC,,,,295632913,5000320957,,Retail Relief,LA14 2LD,"10,366.00",Yes
Communities & Local Government,DCLG,15/01/2016,Current (non AEF) Grants to Local Authorities,Local Government & Public Services,BASILDON BOROUGH COUNCIL,,,,,5000319215,,Council Tax Freeze,SS14 0DF,"16,547.00",Yes
Communities & Local Government,DCLG,15/01/2016,Current (non AEF) Grants to Local Authorities,Local Government & Public Services,BASILDON BOROUGH COUNCIL,,,,,5000320960,,Doubling of Small Business Rates Relief,SS14 0DF,"41,323.00",Yes
Communities & Local Government,DCLG,15/01/2016,Current (non AEF) Grants to Local Authorities,Local Government & Public Services,BASILDON BOROUGH COUNCIL,,,,,5000320963,,Retail Relief,SS14 0DF,"24,485.00",Yes
Communities & Local Government,DCLG,15/01/2016,Current (non AEF) Grants to Local Authorities,Local Government & Public Services,BASILDON BOROUGH COUNCIL,,,,,5000320966,,Business Rates 2% Inflation Cap,SS14 0DF,"7,963.00",Yes
Communities & Local Government,DCLG,15/01/2016,Current (non AEF) Grants to Local Authorities,Local Government & Public Services,BASINGSTOKE & DEANE BC,,,,228328506,5000319216,,Council Tax Freeze,RG21 2AJ,"6,992.00",Yes
Communities & Local Government,DCLG,15/01/2016,Current (non AEF) Grants to Local Authorities,Local Government & Public Services,BASINGSTOKE & DEANE BC,,,,228328506,5000320969,,Reoccupation Relief,RG21 2AJ,839,Yes
Communities & Local Government,DCLG,15/01/2016,Current (non AEF) Grants to Local Authorities,Local Government & Public Services,BASINGSTOKE & DEANE BC,,,,228328506,5000320972,,Retail Relief,RG21 2AJ,"12,812.00",Yes
Communities & Local Government,DCLG,15/01/2016,Current (non AEF) Grants to Local Authorities,Local Government & Public Services,BASINGSTOKE & DEANE BC,,,,228328506,5000320975,,Business Rates 2% Inflation Cap,RG21 2AJ,"3,653.00",Yes
Communities & Local Government,DCLG,15/01/2016,Current (non AEF) Grants to Local Authorities,Local Government & Public Services,BASINGSTOKE & DEANE BC,,,,228328506,5000320978,,Doubling of Small Business Rates Relief,RG21 2AJ,"28,218.00",Yes
Communities & Local Government,DCLG,15/01/2016,Current (non AEF) Grants to Local Authorities,Local Government & Public Services,BASSETLAW DC (HSG),,,,,5000321561,,Doubling of Small Business Rates Relief,S80 2AH,"41,739.00",Yes
Communities & Local Government,DCLG,15/01/2016,Current (non AEF) Grants to Local Authorities,Local Government & Public Services,BASSETLAW DC (HSG),,,,,5000321563,,Empty New Build Relief,S80 2AH,"1,368.00",Yes
Communities & Local Government,DCLG,15/01/2016,Current (non AEF) Grants to Local Authorities,Local Government & Public Services,BASSETLAW DC (HSG),,,,,5000321565,,Reoccupation Relief,S80 2AH,811,Yes
Communities & Local Government,DCLG,15/01/2016,Current (non AEF) Grants to Local Authorities,Local Government & Public Services,BASSETLAW DC (HSG),,,,,5000321567,,Retail Relief,S80 2AH,"15,210.00",Yes
Communities & Local Government,DCLG,15/01/2016,Current (non AEF) Grants to Local Authorities,Local Government & Public Services,BASSETLAW DC (HSG),,,,,5000321568,,Small Business Rates Relief on Second Properties,S80 2AH,526,Yes
Communities & Local Government,DCLG,15/01/2016,Current (non AEF) Grants to Local Authorities,Local Government & Public Services,BASSETLAW DC (HSG),,,,,5000321570,,Business Rates 2% Inflation Cap,S80 2AH,"4,868.00",Yes
Communities & Local Government,DCLG,15/01/2016,Current (non AEF) Grants to Local Authorities,Local Government & Public Services,BATH & NE SOMERSET DC (HSG),,,,214502499,5000319083,,Council Tax Freeze,BA1 5AW,"81,337.00",Yes
Communities & Local Government,DCLG,15/01/2016,Current (non AEF) Grants to Local Authorities,Local Government & Public Services,BATH & NE SOMERSET DC (HSG),,,,214502499,5000319084,,Independent Living Fund Grant,BA1 5AW,"92,455.00",Yes
Communities & Local Government,DCLG,15/01/2016,Current (non AEF) Grants to Local Authorities,Local Government & Public Services,BATH & NE SOMERSET DC (HSG),,,,214502499,5000321574,,Retail Relief,BA1 5AW,"54,006.00",Yes
Communities & Local Government,DCLG,15/01/2016,Current (non AEF) Grants to Local Authorities,Local Government & Public Services,BATH & NE SOMERSET DC (HSG),,,,214502499,5000321576,,Small Business Rates Relief on Second Properties,BA1 5AW,363,Yes
Communities & Local Government,DCLG,15/01/2016,Current (non AEF) Grants to Local Authorities,Local Government & Public Services,BATH & NE SOMERSET DC (HSG),,,,214502499,5000321578,,Doubling of Small Business Rates Relief,BA1 5AW,"77,249.00",Yes
Communities & Local Government,DCLG,15/01/2016,Current (non AEF) Grants to Local Authorities,Local Government & Public Services,BATH & NE SOMERSET DC (HSG),,,,214502499,5000321580,,Reoccupation Relief,BA1 5AW,428,Yes
Communities & Local Government,DCLG,15/01/2016,Current (non AEF) Grants to Local Authorities,Local Government & Public Services,BATH & NE SOMERSET DC (HSG),,,,214502499,5000321582,,Business Rates 2% Inflation Cap,BA1 5AW,"27,356.00",Yes
Communities & Local Government,DCLG,15/01/2016,Current (non AEF) Grants to Local Authorities,Local Government & Public Services,BEDFORD UNITARY AUTHORITY,,,,225682160,5000319459,,Independent Living Fund Grant,MK40 1SJ,"73,237.00",Yes
Communities & Local Government,DCLG,15/01/2016,Current (non AEF) Grants to Local Authorities,Local Government & Public Services,BEDFORD UNITARY AUTHORITY,,,,225682160,5000319460,,Council Tax Freeze,MK40 1SJ,"78,775.00",Yes
Communities & Local Government,DCLG,15/01/2016,Current (non AEF) Grants to Local Authorities,Local Government & Public Services,BEDFORD UNITARY AUTHORITY,,,,225682160,5000320669,,Business Rates 2% Inflation Cap,MK40 1SJ,"36,006.00",Yes
Communities & Local Government,DCLG,15/01/2016,Current (non AEF) Grants to Local Authorities,Local Government & Public Services,BEDFORD UNITARY AUTHORITY,,,,225682160,5000320672,,Doubling of Small Business Rates Relief,MK40 1SJ,"64,432.00",Yes
Communities & Local Government,DCLG,15/01/2016,Current (non AEF) Grants to Local Authorities,Local Government & Public Services,BEDFORD UNITARY AUTHORITY,,,,225682160,5000320675,,Empty New Build Relief,MK40 1SJ,414,Yes
Communities & Local Government,DCLG,15/01/2016,Current (non AEF) Grants to Local Authorities,Local Government & Public Services,BEDFORD UNITARY AUTHORITY,,,,225682160,5000320678,,Reoccupation Relief,MK40 1SJ,621,Yes
Communities & Local Government,DCLG,15/01/2016,Current (non AEF) Grants to Local Authorities,Local Government & Public Services,BEDFORD UNITARY AUTHORITY,,,,225682160,5000320681,,Retail Relief,MK40 1SJ,"29,165.00",Yes
Communities & Local Government,DCLG,15/01/2016,Current (non AEF) Grants to Local Authorities,Local Government & Public Services,BEDS & LUTON FIRE & RESCUE SERVICE,,Medium,,387821283,5000320321,,Retail Relief,MK42 7NR,"2,668.00",Yes
Communities & Local Government,DCLG,15/01/2016,Current (non AEF) Grants to Local Authorities,Local Government & Public Services,BEDS & LUTON FIRE & RESCUE SERVICE,,Medium,,387821283,5000320324,,Doubling of Small Business Rates Relief,MK42 7NR,"4,212.00",Yes
Communities & Local Government,DCLG,15/01/2016,Current (non AEF) Grants to Local Authorities,Local Government & Public Services,BEDS & LUTON FIRE & RESCUE SERVICE,,Medium,,387821283,5000320330,,Business Rates 2% Inflation Cap,MK42 7NR,"6,566.00",Yes
Communities & Local Government,DCLG,15/01/2016,Current (non AEF) Grants to Local Authorities,Local Government & Public Services,BEDS & LUTON FIRE & RESCUE SERVICE,,Medium,,387821283,5000320335,,Small Business Rates Relief on Second Properties,MK42 7NR,"1,420.00",Yes
Communities & Local Government,DCLG,15/01/2016,Current (non AEF) Grants to Local Authorities,Local Government & Public Services,BEXLEY LB (HSG),,,,,5000319085,,Independent Living Fund Grant,DA8 1TL,"135,133.00",Yes
Communities & Local Government,DCLG,15/01/2016,Current (non AEF) Grants to Local Authorities,Local Government & Public Services,BEXLEY LB (RSG),,,,,5000321301,,Retail Relief,DA8 1TL,"29,132.00",Yes
Communities & Local Government,DCLG,15/01/2016,Current (non AEF) Grants to Local Authorities,Local Government & Public Services,BEXLEY LB (RSG),,,,,5000321304,,Business Rates 2% Inflation Cap,DA8 1TL,"42,224.00",Yes
Communities & Local Government,DCLG,15/01/2016,Current (non AEF) Grants to Local Authorities,Local Government & Public Services,BEXLEY LB (RSG),,,,,5000321306,,Doubling of Small Business Rates Relief,DA8 1TL,"50,181.00",Yes
Communities & Local Government,DCLG,15/01/2016,Current (non AEF) Grants to Local Authorities,Local Government & Public Services,BIRMINGHAM CITY CNCL,,,,213780559,5000319217,,Independent Living Fund Grant,B2 2AJ,"888,004.00",Yes
Communities & Local Government,DCLG,15/01/2016,Current (non AEF) Grants to Local Authorities,Local Government & Public Services,BIRMINGHAM CITY CNCL,,,,213780559,5000320987,,Retail Relief,B2 2AJ,"319,596.00",Yes
Communities & Local Government,DCLG,15/01/2016,Current (non AEF) Grants to Local Authorities,Local Government & Public Services,BIRMINGHAM CITY CNCL,,,,213780559,5000320990,,Business Rates 2% Inflation Cap,B2 2AJ,"400,912.00",Yes
Communities & Local Government,DCLG,15/01/2016,Current (non AEF) Grants to Local Authorities,Local Government & Public Services,BIRMINGHAM CITY CNCL,,,,213780559,5000320993,,Doubling of Small Business Rates Relief,B2 2AJ,"472,659.00",Yes
Communities & Local Government,DCLG,15/01/2016,Current (non AEF) Grants to Local Authorities,Local Government & Public Services,BLABY DC (HSG),,,,,5000321586,,Business Rates 2% Inflation Cap,LE9 5EP,"3,989.00",Yes
Communities & Local Government,DCLG,15/01/2016,Current (non AEF) Grants to Local Authorities,Local Government & Public Services,BLABY DC (HSG),,,,,5000321588,,Doubling of Small Business Rates Relief,LE9 5EP,"20,364.00",Yes
Communities & Local Government,DCLG,15/01/2016,Current (non AEF) Grants to Local Authorities,Local Government & Public Services,BLABY DC (HSG),,,,,5000321590,,Retail Relief,LE9 5EP,"3,446.00",Yes
Communities & Local Government,DCLG,15/01/2016,Current (non AEF) Grants to Local Authorities,Local Government & Public Services,BLACKBURN WITH DARWEN BC,,,,,5000319218,,Independent Living Fund Grant,BB1 7DY,"83,910.00",Yes
Communities & Local Government,DCLG,15/01/2016,Current (non AEF) Grants to Local Authorities,Local Government & Public Services,BLACKBURN WITH DARWEN BC,,,,,5000319219,,Council Tax Freeze,BB1 7DY,"51,650.00",Yes
Communities & Local Government,DCLG,15/01/2016,Current (non AEF) Grants to Local Authorities,Local Government & Public Services,BLACKBURN WITH DARWEN BC,,,,,5000321002,,Doubling of Small Business Rates Relief,BB1 7DY,"105,018.00",Yes
Communities & Local Government,DCLG,15/01/2016,Current (non AEF) Grants to Local Authorities,Local Government & Public Services,BLACKBURN WITH DARWEN BC,,,,,5000321005,,Reoccupation Relief,BB1 7DY,"4,143.00",Yes
Communities & Local Government,DCLG,15/01/2016,Current (non AEF) Grants to Local Authorities,Local Government & Public Services,BLACKBURN WITH DARWEN BC,,,,,5000321008,,Retail Relief,BB1 7DY,"30,448.00",Yes
Communities & Local Government,DCLG,15/01/2016,Current (non AEF) Grants to Local Authorities,Local Government & Public Services,BLACKBURN WITH DARWEN BC,,,,,5000321011,,Business Rates 2% Inflation Cap,BB1 7DY,"49,344.00",Yes
Communities & Local Government,DCLG,15/01/2016,Current (non AEF) Grants to Local Authorities,Local Government & Public Services,BLACKBURN WITH DARWEN BC,,,,,5000321014,,Small Business Rates Relief on Second Properties,BB1 7DY,"1,242.00",Yes
Communities & Local Government,DCLG,15/01/2016,Current (non AEF) Grants to Local Authorities,Local Government & Public Services,BLACKPOOL BC,,,,,5000319220,,Independent Living Fund Grant,FY1 1NA,"36,640.00",Yes
Communities & Local Government,DCLG,15/01/2016,Current (non AEF) Grants to Local Authorities,Local Government & Public Services,BLACKPOOL BC,,,,,5000319221,,Council Tax Freeze,FY1 1NA,"61,480.00",Yes
Communities & Local Government,DCLG,15/01/2016,Current (non AEF) Grants to Local Authorities,Local Government & Public Services,BLACKPOOL BC,,,,,5000321019,,Business Rates 2% Inflation Cap,FY1 1NA,"52,450.00",Yes
Communities & Local Government,DCLG,15/01/2016,Current (non AEF) Grants to Local Authorities,Local Government & Public Services,BLACKPOOL BC,,,,,5000321022,,Doubling of Small Business Rates Relief,FY1 1NA,"127,900.00",Yes
Communities & Local Government,DCLG,15/01/2016,Current (non AEF) Grants to Local Authorities,Local Government & Public Services,BLACKPOOL BC,,,,,5000321025,,Reoccupation Relief,FY1 1NA,"4,758.00",Yes
Communities & Local Government,DCLG,15/01/2016,Current (non AEF) Grants to Local Authorities,Local Government & Public Services,BLACKPOOL BC,,,,,5000321031,,Empty New Build Relief,FY1 1NA,286,Yes
Communities & Local Government,DCLG,15/01/2016,Current (non AEF) Grants to Local Authorities,Local Government & Public Services,BLACKPOOL BC,,,,,5000321034,,Retail Relief,FY1 1NA,"35,057.00",Yes
Communities & Local Government,DCLG,15/01/2016,Current (non AEF) Grants to Local Authorities,Local Government & Public Services,BOLSOVER DC,,,,235516523,5000319222,,Council Tax Freeze,S43 4JY,"3,700.00",Yes
Communities & Local Government,DCLG,15/01/2016,Current (non AEF) Grants to Local Authorities,Local Government & Public Services,BOLSOVER DC,,,,235516523,5000321037,,Business Rates 2% Inflation Cap,S43 4JY,"4,893.00",Yes
Communities & Local Government,DCLG,15/01/2016,Current (non AEF) Grants to Local Authorities,Local Government & Public Services,BOLSOVER DC,,,,235516523,5000321040,,Doubling of Small Business Rates Relief,S43 4JY,"21,515.00",Yes
Communities & Local Government,DCLG,15/01/2016,Current (non AEF) Grants to Local Authorities,Local Government & Public Services,BOLSOVER DC,,,,235516523,5000321043,,Retail Relief,S43 4JY,"6,905.00",Yes
Communities & Local Government,DCLG,15/01/2016,Current (non AEF) Grants to Local Authorities,Local Government & Public Services,BOLTON MBC,,,,,5000319223,,Council Tax Freeze,BL1 1RU,"109,791.00",Yes
Communities & Local Government,DCLG,15/01/2016,Current (non AEF) Grants to Local Authorities,Local Government & Public Services,BOLTON MBC,,,,,5000319224,,Independent Living Fund Grant,BL1 1RU,"186,767.00",Yes
Communities & Local Government,DCLG,15/01/2016,Current (non AEF) Grants to Local Authorities,Local Government & Public Services,BOLTON MBC,,,,,5000321046,,Reoccupation Relief,BL1 1RU,"4,557.00",Yes
Communities & Local Government,DCLG,15/01/2016,Current (non AEF) Grants to Local Authorities,Local Government & Public Services,BOLTON MBC,,,,,5000321049,,Retail Relief,BL1 1RU,"50,542.00",Yes
Communities & Local Government,DCLG,15/01/2016,Current (non AEF) Grants to Local Authorities,Local Government & Public Services,BOLTON MBC,,,,,5000321052,,Business Rates 2% Inflation Cap,BL1 1RU,"75,307.00",Yes
Communities & Local Government,DCLG,15/01/2016,Current (non AEF) Grants to Local Authorities,Local Government & Public Services,BOLTON MBC,,,,,5000321055,,Doubling of Small Business Rates Relief,BL1 1RU,"155,352.00",Yes
Communities & Local Government,DCLG,15/01/2016,Current (non AEF) Grants to Local Authorities,Local Government & Public Services,BOLTON MBC,,,,,5000321058,,Empty New Build Relief,BL1 1RU,414,Yes
Communities & Local Government,DCLG,15/01/2016,Current (non AEF) Grants to Local Authorities,Local Government & Public Services,BOSTON BC,,,,236417713,5000319086,,Council Tax Freeze,PE21 8QR,"3,421.00",Yes
Communities & Local Government,DCLG,15/01/2016,Current (non AEF) Grants to Local Authorities,Local Government & Public Services,BOSTON BC,,,,236417713,5000321592,,Business Rates 2% Inflation Cap,PE21 8QR,"3,068.00",Yes
Communities & Local Government,DCLG,15/01/2016,Current (non AEF) Grants to Local Authorities,Local Government & Public Services,BOSTON BC,,,,236417713,5000321594,,Empty New Build Relief,PE21 8QR,266,Yes
Communities & Local Government,DCLG,15/01/2016,Current (non AEF) Grants to Local Authorities,Local Government & Public Services,BOSTON BC,,,,236417713,5000321596,,Doubling of Small Business Rates Relief,PE21 8QR,"23,955.00",Yes
Communities & Local Government,DCLG,15/01/2016,Current (non AEF) Grants to Local Authorities,Local Government & Public Services,BOSTON BC,,,,236417713,5000321598,,Retail Relief,PE21 8QR,"9,300.00",Yes
Communities & Local Government,DCLG,15/01/2016,Current (non AEF) Grants to Local Authorities,Local Government & Public Services,BOURNEMOUTH DC,,,,,5000319225,,Independent Living Fund Grant,BH2 6EB,"54,319.00",Yes
Communities & Local Government,DCLG,15/01/2016,Current (non AEF) Grants to Local Authorities,Local Government & Public Services,BOURNEMOUTH DC,,,,,5000319226,,Council Tax Freeze,BH2 6EB,"85,630.00",Yes
Communities & Local Government,DCLG,15/01/2016,Current (non AEF) Grants to Local Authorities,Local Government & Public Services,BOURNEMOUTH DC,,,,,5000321064,,Business Rates 2% Inflation Cap,BH2 6EB,"34,076.00",Yes
Communities & Local Government,DCLG,15/01/2016,Current (non AEF) Grants to Local Authorities,Local Government & Public Services,BOURNEMOUTH DC,,,,,5000321067,,Retail Relief,BH2 6EB,"56,888.00",Yes
Communities & Local Government,DCLG,15/01/2016,Current (non AEF) Grants to Local Authorities,Local Government & Public Services,BOURNEMOUTH DC,,,,,5000321070,,Doubling of Small Business Rates Relief,BH2 6EB,"93,474.00",Yes
Communities & Local Government,DCLG,15/01/2016,Current (non AEF) Grants to Local Authorities,Local Government & Public Services,BOURNEMOUTH DC,,,,,5000321073,,Reoccupation Relief,BH2 6EB,"3,108.00",Yes
Communities & Local Government,DCLG,15/01/2016,Current (non AEF) Grants to Local Authorities,Local Government & Public Services,BRACKNELL FOREST DC,,,,236184867,5000319227,,Council Tax Freeze,RG12 1AQ,"50,546.00",Yes
Communities & Local Government,DCLG,15/01/2016,Current (non AEF) Grants to Local Authorities,Local Government & Public Services,BRACKNELL FOREST DC,,,,236184867,5000319228,,Independent Living Fund Grant,RG12 1AQ,"53,893.00",Yes
Communities & Local Government,DCLG,15/01/2016,Current (non AEF) Grants to Local Authorities,Local Government & Public Services,BRACKNELL FOREST DC,,,,236184867,5000321082,,Business Rates 2% Inflation Cap,RG12 1AQ,"29,284.00",Yes
Communities & Local Government,DCLG,15/01/2016,Current (non AEF) Grants to Local Authorities,Local Government & Public Services,BRACKNELL FOREST DC,,,,236184867,5000321085,,Doubling of Small Business Rates Relief,RG12 1AQ,"20,074.00",Yes
Communities & Local Government,DCLG,15/01/2016,Current (non AEF) Grants to Local Authorities,Local Government & Public Services,BRACKNELL FOREST DC,,,,236184867,5000321088,,Reoccupation Relief,RG12 1AQ,"2,071.00",Yes
Communities & Local Government,DCLG,15/01/2016,Current (non AEF) Grants to Local Authorities,Local Government & Public Services,BRACKNELL FOREST DC,,,,236184867,5000321091,,Retail Relief,RG12 1AQ,"14,499.00",Yes
Communities & Local Government,DCLG,15/01/2016,Current (non AEF) Grants to Local Authorities,Local Government & Public Services,BRACKNELL FOREST DC,,,,236184867,5000321094,,Small Business Rates Relief on Second Properties,RG12 1AQ,829,Yes
Communities & Local Government,DCLG,15/01/2016,Current (non AEF) Grants to Local Authorities,Local Government & Public Services,BRADFORD MBC,,,,,5000319229,,Independent Living Fund Grant,BD1 1HX,"408,168.00",Yes
Communities & Local Government,DCLG,15/01/2016,Current (non AEF) Grants to Local Authorities,Local Government & Public Services,BRADFORD MBC,,,,,5000321103,,Doubling of Small Business Rates Relief,BD1 1HX,"327,275.00",Yes
Communities & Local Government,DCLG,15/01/2016,Current (non AEF) Grants to Local Authorities,Local Government & Public Services,BRADFORD MBC,,,,,5000321106,,Reoccupation Relief,BD1 1HX,829,Yes
Communities & Local Government,DCLG,15/01/2016,Current (non AEF) Grants to Local Authorities,Local Government & Public Services,BRADFORD MBC,,,,,5000321109,,Empty New Build Relief,BD1 1HX,"1,864.00",Yes
Communities & Local Government,DCLG,15/01/2016,Current (non AEF) Grants to Local Authorities,Local Government & Public Services,BRADFORD MBC,,,,,5000321112,,Retail Relief,BD1 1HX,"134,431.00",Yes
Communities & Local Government,DCLG,15/01/2016,Current (non AEF) Grants to Local Authorities,Local Government & Public Services,BRADFORD MBC,,,,,5000321115,,Business Rates 2% Inflation Cap,BD1 1HX,"152,009.00",Yes
Communities & Local Government,DCLG,15/01/2016,Current (non AEF) Grants to Local Authorities,Local Government & Public Services,BRAINTREE DC,,,,226941730,5000319087,,Council Tax Freeze,CM7 6HB,"8,746.00",Yes
Communities & Local Government,DCLG,15/01/2016,Current (non AEF) Grants to Local Authorities,Local Government & Public Services,BRAINTREE DC,,,,226941730,5000321600,,Business Rates 2% Inflation Cap,CM7 6HB,"4,050.00",Yes
Communities & Local Government,DCLG,15/01/2016,Current (non AEF) Grants to Local Authorities,Local Government & Public Services,BRAINTREE DC,,,,226941730,5000321602,,Doubling of Small Business Rates Relief,CM7 6HB,"53,722.00",Yes
Communities & Local Government,DCLG,15/01/2016,Current (non AEF) Grants to Local Authorities,Local Government & Public Services,BRAINTREE DC,,,,226941730,5000321606,,Retail Relief,CM7 6HB,"18,640.00",Yes
Communities & Local Government,DCLG,15/01/2016,Current (non AEF) Grants to Local Authorities,Local Government & Public Services,BRECKLAND DC,,,,232611384,5000319088,,Council Tax Freeze,NR19 1EE,"3,166.00",Yes
Communities & Local Government,DCLG,15/01/2016,Current (non AEF) Grants to Local Authorities,Local Government & Public Services,BRECKLAND DC,,,,232611384,5000321608,,Small Business Rates Relief on Second Properties,NR19 1EE,423,Yes
Communities & Local Government,DCLG,15/01/2016,Current (non AEF) Grants to Local Authorities,Local Government & Public Services,BRECKLAND DC,,,,232611384,5000321610,,Business Rates 2% Inflation Cap,NR19 1EE,"5,293.00",Yes
Communities & Local Government,DCLG,15/01/2016,Current (non AEF) Grants to Local Authorities,Local Government & Public Services,BRECKLAND DC,,,,232611384,5000321612,,Doubling of Small Business Rates Relief,NR19 1EE,"49,126.00",Yes
Communities & Local Government,DCLG,15/01/2016,Current (non AEF) Grants to Local Authorities,Local Government & Public Services,BRECKLAND DC,,,,232611384,5000321616,,Retail Relief,NR19 1EE,"21,425.00",Yes
Communities & Local Government,DCLG,15/01/2016,Current (non AEF) Grants to Local Authorities,Local Government & Public Services,BRENT LB (HSG),,,,,5000319089,,Council Tax Freeze,HA9 9HD,"107,813.00",Yes
Communities & Local Government,DCLG,15/01/2016,Current (non AEF) Grants to Local Authorities,Local Government & Public Services,BRENT LB (HSG),,,,,5000319090,,Independent Living Fund Grant,HA9 9HD,"189,821.00",Yes
Communities & Local Government,DCLG,15/01/2016,Current (non AEF) Grants to Local Authorities,Local Government & Public Services,BRENT LB (HSG),,,,,5000321620,,Retail Relief,HA9 9HD,"55,369.00",Yes
Communities & Local Government,DCLG,15/01/2016,Current (non AEF) Grants to Local Authorities,Local Government & Public Services,BRENT LB (HSG),,,,,5000321622,,Business Rates 2% Inflation Cap,HA9 9HD,"100,490.00",Yes
Communities & Local Government,DCLG,15/01/2016,Current (non AEF) Grants to Local Authorities,Local Government & Public Services,BRENT LB (HSG),,,,,5000321624,,Doubling of Small Business Rates Relief,HA9 9HD,"55,865.00",Yes
Communities & Local Government,DCLG,15/01/2016,Current (non AEF) Grants to Local Authorities,Local Government & Public Services,BRENT LB (HSG),,,,,5000321626,,Empty New Build Relief,HA9 9HD,"2,537.00",Yes
Communities & Local Government,DCLG,15/01/2016,Current (non AEF) Grants to Local Authorities,Local Government & Public Services,BRENT LB (HSG),,,,,5000321628,,Reoccupation Relief,HA9 9HD,"1,902.00",Yes
Communities & Local Government,DCLG,15/01/2016,Current (non AEF) Grants to Local Authorities,Local Government & Public Services,BRENTWOOD BC,,,,227473188,5000319230,,Council Tax Freeze,CM15 8AY,"5,633.00",Yes
Communities & Local Government,DCLG,15/01/2016,Current (non AEF) Grants to Local Authorities,Local Government & Public Services,BRENTWOOD BC,,,,227473188,5000321121,,Retail Relief,CM15 8AY,"18,048.00",Yes
Communities & Local Government,DCLG,15/01/2016,Current (non AEF) Grants to Local Authorities,Local Government & Public Services,BRENTWOOD BC,,,,227473188,5000321124,,Doubling of Small Business Rates Relief,CM15 8AY,"19,263.00",Yes
Communities & Local Government,DCLG,15/01/2016,Current (non AEF) Grants to Local Authorities,Local Government & Public Services,BRENTWOOD BC,,,,227473188,5000321127,,Business Rates 2% Inflation Cap,CM15 8AY,"1,826.00",Yes
Communities & Local Government,DCLG,15/01/2016,Current (non AEF) Grants to Local Authorities,Local Government & Public Services,BRIGHTON & HOVE CITY COUNCIL,,Large,,228455218,5000319231,,Independent Living Fund Grant,BN3 2LS,"122,770.00",Yes
Communities & Local Government,DCLG,15/01/2016,Current (non AEF) Grants to Local Authorities,Local Government & Public Services,BRIGHTON & HOVE CITY COUNCIL,,Large,,228455218,5000321130,,Reoccupation Relief,BN3 2LS,"2,279.00",Yes
Communities & Local Government,DCLG,15/01/2016,Current (non AEF) Grants to Local Authorities,Local Government & Public Services,BRIGHTON & HOVE CITY COUNCIL,,Large,,228455218,5000321133,,Small Business Rates Relief on Second Properties,BN3 2LS,414,Yes
Communities & Local Government,DCLG,15/01/2016,Current (non AEF) Grants to Local Authorities,Local Government & Public Services,BRIGHTON & HOVE CITY COUNCIL,,Large,,228455218,5000321136,,Empty New Build Relief,BN3 2LS,"3,314.00",Yes
Communities & Local Government,DCLG,15/01/2016,Current (non AEF) Grants to Local Authorities,Local Government & Public Services,BRIGHTON & HOVE CITY COUNCIL,,Large,,228455218,5000321139,,Retail Relief,BN3 2LS,"146,688.00",Yes
Communities & Local Government,DCLG,15/01/2016,Current (non AEF) Grants to Local Authorities,Local Government & Public Services,BRIGHTON & HOVE CITY COUNCIL,,Large,,228455218,5000321142,,Business Rates 2% Inflation Cap,BN3 2LS,"65,650.00",Yes
Communities & Local Government,DCLG,15/01/2016,Current (non AEF) Grants to Local Authorities,Local Government & Public Services,BRIGHTON & HOVE CITY COUNCIL,,Large,,228455218,5000321145,,Doubling of Small Business Rates Relief,BN3 2LS,"130,625.00",Yes
Communities & Local Government,DCLG,15/01/2016,Current (non AEF) Grants to Local Authorities,Local Government & Public Services,BRISTOL CITY CNCL (HSG),,,,211103882,5000319091,,Independent Living Fund Grant,BS99 7BL,"351,850.00",Yes
Communities & Local Government,DCLG,15/01/2016,Current (non AEF) Grants to Local Authorities,Local Government & Public Services,BRISTOL CITY CNCL (HSG),,,,211103882,5000321630,,Business Rates 2% Inflation Cap,BS99 7BL,"119,300.00",Yes
Communities & Local Government,DCLG,15/01/2016,Current (non AEF) Grants to Local Authorities,Local Government & Public Services,BRISTOL CITY CNCL (HSG),,,,211103882,5000321632,,Doubling of Small Business Rates Relief,BS99 7BL,"117,859.00",Yes
Communities & Local Government,DCLG,15/01/2016,Current (non AEF) Grants to Local Authorities,Local Government & Public Services,BRISTOL CITY CNCL (HSG),,,,211103882,5000321634,,Retail Relief,BS99 7BL,"25,773.00",Yes
Communities & Local Government,DCLG,15/01/2016,Current (non AEF) Grants to Local Authorities,Local Government & Public Services,BRISTOL CITY CNCL (HSG),,,,211103882,5000321636,,Reoccupation Relief,BS99 7BL,"52,964.00",Yes
Communities & Local Government,DCLG,15/01/2016,Current (non AEF) Grants to Local Authorities,Local Government & Public Services,BROADLAND DC,,Large,,219737785,5000319092,,Council Tax Freeze,NR7 0DU,"5,289.00",Yes
Communities & Local Government,DCLG,15/01/2016,Current (non AEF) Grants to Local Authorities,Local Government & Public Services,BROADLAND DC,,Large,,219737785,5000321642,,Doubling of Small Business Rates Relief,NR7 0DU,"43,474.00",Yes
Communities & Local Government,DCLG,15/01/2016,Current (non AEF) Grants to Local Authorities,Local Government & Public Services,BROADLAND DC,,Large,,219737785,5000321644,,Reoccupation Relief,NR7 0DU,507,Yes
Communities & Local Government,DCLG,15/01/2016,Current (non AEF) Grants to Local Authorities,Local Government & Public Services,BROADLAND DC,,Large,,219737785,5000321646,,Retail Relief,NR7 0DU,"11,156.00",Yes
Communities & Local Government,DCLG,15/01/2016,Current (non AEF) Grants to Local Authorities,Local Government & Public Services,BROADLAND DC,,Large,,219737785,5000321650,,Business Rates 2% Inflation Cap,NR7 0DU,"4,015.00",Yes
Communities & Local Government,DCLG,15/01/2016,Current (non AEF) Grants to Local Authorities,Local Government & Public Services,BROMLEY LB,,,,211331954,5000319232,,Independent Living Fund Grant,BR1 3UH,"131,512.00",Yes
Communities & Local Government,DCLG,15/01/2016,Current (non AEF) Grants to Local Authorities,Local Government & Public Services,BROMLEY LB,,,,211331954,5000321151,,Business Rates 2% Inflation Cap,BR1 3UH,"42,393.00",Yes
Communities & Local Government,DCLG,15/01/2016,Current (non AEF) Grants to Local Authorities,Local Government & Public Services,BROMLEY LB,,,,211331954,5000321154,,Doubling of Small Business Rates Relief,BR1 3UH,"55,275.00",Yes
Communities & Local Government,DCLG,15/01/2016,Current (non AEF) Grants to Local Authorities,Local Government & Public Services,BROMLEY LB,,,,211331954,5000321157,,Reoccupation Relief,BR1 3UH,458,Yes
Communities & Local Government,DCLG,15/01/2016,Current (non AEF) Grants to Local Authorities,Local Government & Public Services,BROMLEY LB,,,,211331954,5000321160,,Retail Relief,BR1 3UH,"53,702.00",Yes
Communities & Local Government,DCLG,15/01/2016,Current (non AEF) Grants to Local Authorities,Local Government & Public Services,BROMSGROVE DC,,,,236654745,5000319093,,Council Tax Freeze,B60 1AA,"7,439.00",Yes
Communities & Local Government,DCLG,15/01/2016,Current (non AEF) Grants to Local Authorities,Local Government & Public Services,BROMSGROVE DC,,,,236654745,5000321654,,Doubling of Small Business Rates Relief,B60 1AA,"35,145.00",Yes
Communities & Local Government,DCLG,15/01/2016,Current (non AEF) Grants to Local Authorities,Local Government & Public Services,BROMSGROVE DC,,,,236654745,5000321656,,Retail Relief,B60 1AA,"19,074.00",Yes
Communities & Local Government,DCLG,15/01/2016,Current (non AEF) Grants to Local Authorities,Local Government & Public Services,BROMSGROVE DC,,,,236654745,5000321658,,Business Rates 2% Inflation Cap,B60 1AA,"2,318.00",Yes
Communities & Local Government,DCLG,15/01/2016,Current (non AEF) Grants to Local Authorities,Local Government & Public Services,BROXBOURNE BC,,Public Bodies,,239931918,5000319233,,Council Tax Freeze,EN8 9XG,"4,291.00",Yes
Communities & Local Government,DCLG,15/01/2016,Current (non AEF) Grants to Local Authorities,Local Government & Public Services,BROXBOURNE BC,,Public Bodies,,239931918,5000321166,,Reoccupation Relief,EN8 9XG,"8,454.00",Yes
Communities & Local Government,DCLG,15/01/2016,Current (non AEF) Grants to Local Authorities,Local Government & Public Services,BROXBOURNE BC,,Public Bodies,,239931918,5000321169,,Retail Relief,EN8 9XG,"18,954.00",Yes
Communities & Local Government,DCLG,15/01/2016,Current (non AEF) Grants to Local Authorities,Local Government & Public Services,BROXBOURNE BC,,Public Bodies,,239931918,5000321172,,Business Rates 2% Inflation Cap,EN8 9XG,"3,569.00",Yes
Communities & Local Government,DCLG,15/01/2016,Current (non AEF) Grants to Local Authorities,Local Government & Public Services,BROXBOURNE BC,,Public Bodies,,239931918,5000321176,,Doubling of Small Business Rates Relief,EN8 9XG,"23,759.00",Yes
Communities & Local Government,DCLG,15/01/2016,Current (non AEF) Grants to Local Authorities,Local Government & Public Services,BROXTOWE BC,,,,239877640,5000319234,,Council Tax Freeze,NG9 1AB,"5,979.00",Yes
Communities & Local Government,DCLG,15/01/2016,Current (non AEF) Grants to Local Authorities,Local Government & Public Services,BROXTOWE BC,,,,239877640,5000321179,,Doubling of Small Business Rates Relief,NG9 1AB,"27,486.00",Yes
Communities & Local Government,DCLG,15/01/2016,Current (non AEF) Grants to Local Authorities,Local Government & Public Services,BROXTOWE BC,,,,239877640,5000321181,,Business Rates 2% Inflation Cap,NG9 1AB,"3,301.00",Yes
Communities & Local Government,DCLG,15/01/2016,Current (non AEF) Grants to Local Authorities,Local Government & Public Services,BROXTOWE BC,,,,239877640,5000321184,,Empty New Build Relief,NG9 1AB,"1,426.00",Yes
Communities & Local Government,DCLG,15/01/2016,Current (non AEF) Grants to Local Authorities,Local Government & Public Services,BROXTOWE BC,,,,239877640,5000321187,,Retail Relief,NG9 1AB,"5,377.00",Yes
Communities & Local Government,DCLG,15/01/2016,Current (non AEF) Grants to Local Authorities,Local Government & Public Services,BUCKINGHAMSHIRE CC,,,,293750923,5000319235,,Independent Living Fund Grant,HP20 1UD,"222,752.00",Yes
Communities & Local Government,DCLG,15/01/2016,Current (non AEF) Grants to Local Authorities,Local Government & Public Services,BUCKINGHAMSHIRE CC,,,,293750923,5000321190,,Doubling of Small Business Rates Relief,HP20 1UD,"30,450.00",Yes
Communities & Local Government,DCLG,15/01/2016,Current (non AEF) Grants to Local Authorities,Local Government & Public Services,BUCKINGHAMSHIRE CC,,,,293750923,5000321199,,Business Rates 2% Inflation Cap,HP20 1UD,"49,666.00",Yes
Communities & Local Government,DCLG,15/01/2016,Current (non AEF) Grants to Local Authorities,Local Government & Public Services,BUCKINGHAMSHIRE CC,,,,293750923,5000321202,,Empty New Build Relief,HP20 1UD,633,Yes
Communities & Local Government,DCLG,15/01/2016,Current (non AEF) Grants to Local Authorities,Local Government & Public Services,BUCKINGHAMSHIRE CC,,,,293750923,5000321205,,Retail Relief,HP20 1UD,"13,551.00",Yes
Communities & Local Government,DCLG,15/01/2016,Current (non AEF) Grants to Local Authorities,Local Government & Public Services,BUCKS & MILTON KEYNES FIRE AUTH,,Public Bodies,,423679463,5000319444,,Council Tax Freeze,HP20 1BD,"18,285.00",Yes
Communities & Local Government,DCLG,15/01/2016,Current (non AEF) Grants to Local Authorities,Local Government & Public Services,BUCKS & MILTON KEYNES FIRE AUTH,,Public Bodies,,423679463,5000321449,,Doubling of Small Business Rates Relief,HP20 1BD,"4,927.00",Yes
Communities & Local Government,DCLG,15/01/2016,Current (non AEF) Grants to Local Authorities,Local Government & Public Services,BUCKS & MILTON KEYNES FIRE AUTH,,Public Bodies,,423679463,5000321452,,Business Rates 2% Inflation Cap,HP20 1BD,"5,893.00",Yes
Communities & Local Government,DCLG,15/01/2016,Current (non AEF) Grants to Local Authorities,Local Government & Public Services,BUCKS & MILTON KEYNES FIRE AUTH,,Public Bodies,,423679463,5000321460,,Retail Relief,HP20 1BD,"2,429.00",Yes
Communities & Local Government,DCLG,15/01/2016,Current (non AEF) Grants to Local Authorities,Local Government & Public Services,BURNLEY BC,,,,229413281,5000321209,,Business Rates 2% Inflation Cap,BB11 1JA,"5,254.00",Yes
Communities & Local Government,DCLG,15/01/2016,Current (non AEF) Grants to Local Authorities,Local Government & Public Services,BURNLEY BC,,,,229413281,5000321212,,Doubling of Small Business Rates Relief,BB11 1JA,"44,051.00",Yes
Communities & Local Government,DCLG,15/01/2016,Current (non AEF) Grants to Local Authorities,Local Government & Public Services,BURNLEY BC,,,,229413281,5000321215,,Reoccupation Relief,BB11 1JA,650,Yes
Communities & Local Government,DCLG,15/01/2016,Current (non AEF) Grants to Local Authorities,Local Government & Public Services,BURNLEY BC,,,,229413281,5000321218,,Retail Relief,BB11 1JA,"16,107.00",Yes
Communities & Local Government,DCLG,15/01/2016,Current (non AEF) Grants to Local Authorities,Local Government & Public Services,BURY MBC,,,,,5000319236,,Independent Living Fund Grant,BL9 0SW,"62,650.00",Yes
Communities & Local Government,DCLG,15/01/2016,Current (non AEF) Grants to Local Authorities,Local Government & Public Services,BURY MBC,,,,,5000319237,,Council Tax Freeze,BL9 0SW,"78,496.00",Yes
Communities & Local Government,DCLG,15/01/2016,Current (non AEF) Grants to Local Authorities,Local Government & Public Services,BURY MBC,,,,,5000321228,,Retail Relief,BL9 0SW,"46,913.00",Yes
Communities & Local Government,DCLG,15/01/2016,Current (non AEF) Grants to Local Authorities,Local Government & Public Services,BURY MBC,,,,,5000321231,,Business Rates 2% Inflation Cap,BL9 0SW,"38,601.00",Yes
Communities & Local Government,DCLG,15/01/2016,Current (non AEF) Grants to Local Authorities,Local Government & Public Services,BURY MBC,,,,,5000321234,,Doubling of Small Business Rates Relief,BL9 0SW,"96,603.00",Yes
Communities & Local Government,DCLG,15/01/2016,Current (non AEF) Grants to Local Authorities,Local Government & Public Services,CALDERDALE MBC,,,,,5000319238,,Council Tax Freeze,HX1 1YP,"84,049.00",Yes
Communities & Local Government,DCLG,15/01/2016,Current (non AEF) Grants to Local Authorities,Local Government & Public Services,CALDERDALE MBC,,,,,5000319239,,Independent Living Fund Grant,HX1 1YP,"172,800.00",Yes
Communities & Local Government,DCLG,15/01/2016,Current (non AEF) Grants to Local Authorities,Local Government & Public Services,CALDERDALE MBC,,,,,5000321240,,Small Business Rates Relief on Second Properties,HX1 1YP,"2,071.00",Yes
Communities & Local Government,DCLG,15/01/2016,Current (non AEF) Grants to Local Authorities,Local Government & Public Services,CALDERDALE MBC,,,,,5000321243,,Retail Relief,HX1 1YP,"34,390.00",Yes
Communities & Local Government,DCLG,15/01/2016,Current (non AEF) Grants to Local Authorities,Local Government & Public Services,CALDERDALE MBC,,,,,5000321246,,Business Rates 2% Inflation Cap,HX1 1YP,"46,581.00",Yes
Communities & Local Government,DCLG,15/01/2016,Current (non AEF) Grants to Local Authorities,Local Government & Public Services,CALDERDALE MBC,,,,,5000321248,,Doubling of Small Business Rates Relief,HX1 1YP,"128,265.00",Yes
Communities & Local Government,DCLG,15/01/2016,Current (non AEF) Grants to Local Authorities,Local Government & Public Services,CAMBRIDGE CITY COUNCIL,,,,210357534,5000321254,,Business Rates 2% Inflation Cap,CB2 3NA,"6,222.00",Yes
Communities & Local Government,DCLG,15/01/2016,Current (non AEF) Grants to Local Authorities,Local Government & Public Services,CAMBRIDGE CITY COUNCIL,,,,210357534,5000321257,,Doubling of Small Business Rates Relief,CB2 3NA,"23,607.00",Yes
Communities & Local Government,DCLG,15/01/2016,Current (non AEF) Grants to Local Authorities,Local Government & Public Services,CAMBRIDGE CITY COUNCIL,,,,210357534,5000321260,,Empty New Build Relief,CB2 3NA,"1,691.00",Yes
Communities & Local Government,DCLG,15/01/2016,Current (non AEF) Grants to Local Authorities,Local Government & Public Services,CAMBRIDGE CITY COUNCIL,,,,210357534,5000321266,,Retail Relief,CB2 3NA,"37,422.00",Yes
Communities & Local Government,DCLG,15/01/2016,Current (non AEF) Grants to Local Authorities,Local Government & Public Services,CAMBRIDGESHIRE COUNTY CNCL,,,,219047347,5000319240,,Independent Living Fund Grant,CB3 0AP,"259,360.00",Yes
Communities & Local Government,DCLG,15/01/2016,Current (non AEF) Grants to Local Authorities,Local Government & Public Services,CAMBRIDGESHIRE COUNTY CNCL,,,,219047347,5000321269,,Business Rates 2% Inflation Cap,CB3 0AP,"73,163.00",Yes
Communities & Local Government,DCLG,15/01/2016,Current (non AEF) Grants to Local Authorities,Local Government & Public Services,CAMBRIDGESHIRE COUNTY CNCL,,,,219047347,5000321272,,Doubling of Small Business Rates Relief,CB3 0AP,"40,107.00",Yes
Communities & Local Government,DCLG,15/01/2016,Current (non AEF) Grants to Local Authorities,Local Government & Public Services,CAMBRIDGESHIRE COUNTY CNCL,,,,219047347,5000321275,,Empty New Build Relief,CB3 0AP,457,Yes
Communities & Local Government,DCLG,15/01/2016,Current (non AEF) Grants to Local Authorities,Local Government & Public Services,CAMBRIDGESHIRE COUNTY CNCL,,,,219047347,5000321281,,Retail Relief,CB3 0AP,"22,833.00",Yes
Communities & Local Government,DCLG,15/01/2016,Current (non AEF) Grants to Local Authorities,Local Government & Public Services,CAMBRIDGESHIRE COUNTY CNCL,,,,219047347,5000321284,,Small Business Rates Relief on Second Properties,CB3 0AP,907,Yes
Communities & Local Government,DCLG,15/01/2016,Current (non AEF) Grants to Local Authorities,Local Government & Public Services,CAMBRIDGESHIRE POLICE AUTHORITY,,,,,5000319465,,Council Tax Freeze,P18 8NP,"52,977.00",Yes
Communities & Local Government,DCLG,15/01/2016,Current (non AEF) Grants to Local Authorities,Local Government & Public Services,CAMBS & PETERBOROUGH FIRE AUTHORITY,,,,235999737,5000319448,,Council Tax Freeze,PE29 2NA,"18,772.00",Yes
Communities & Local Government,DCLG,15/01/2016,Current (non AEF) Grants to Local Authorities,Local Government & Public Services,CAMBS & PETERBOROUGH FIRE AUTHORITY,,,,235999737,5000320245,,Doubling of Small Business Rates Relief,PE29 2NA,"5,749.00",Yes
Communities & Local Government,DCLG,15/01/2016,Current (non AEF) Grants to Local Authorities,Local Government & Public Services,CAMBS & PETERBOROUGH FIRE AUTHORITY,,,,235999737,5000320251,,Business Rates 2% Inflation Cap,PE29 2NA,"6,918.00",Yes
Communities & Local Government,DCLG,15/01/2016,Current (non AEF) Grants to Local Authorities,Local Government & Public Services,CAMBS & PETERBOROUGH FIRE AUTHORITY,,,,235999737,5000320257,,Retail Relief,PE29 2NA,"3,362.00",Yes
Communities & Local Government,DCLG,15/01/2016,Current (non AEF) Grants to Local Authorities,Local Government & Public Services,CAMDEN LB,,,,211651836,5000319241,,Independent Living Fund Grant,WC1H 8NG,"170,859.00",Yes
Communities & Local Government,DCLG,15/01/2016,Current (non AEF) Grants to Local Authorities,Local Government & Public Services,CAMDEN LB,,,,211651836,5000321290,,Doubling of Small Business Rates Relief,WC1H 8NG,"36,069.00",Yes
Communities & Local Government,DCLG,15/01/2016,Current (non AEF) Grants to Local Authorities,Local Government & Public Services,CAMDEN LB,,,,211651836,5000321293,,Retail Relief,WC1H 8NG,"92,880.00",Yes
Communities & Local Government,DCLG,15/01/2016,Current (non AEF) Grants to Local Authorities,Local Government & Public Services,CAMDEN LB,,,,211651836,5000321296,,Business Rates 2% Inflation Cap,WC1H 8NG,"114,111.00",Yes
Communities & Local Government,DCLG,15/01/2016,Current (non AEF) Grants to Local Authorities,Local Government & Public Services,CANNOCK CHASE DC,,,,215064770,5000319242,,Council Tax Freeze,WS11 1BG,"6,211.00",Yes
Communities & Local Government,DCLG,15/01/2016,Current (non AEF) Grants to Local Authorities,Local Government & Public Services,CANNOCK CHASE DC,,,,215064770,5000321302,,Business Rates 2% Inflation Cap,WS11 1BG,"4,879.00",Yes
Communities & Local Government,DCLG,15/01/2016,Current (non AEF) Grants to Local Authorities,Local Government & Public Services,CANNOCK CHASE DC,,,,215064770,5000321305,,Doubling of Small Business Rates Relief,WS11 1BG,"41,323.00",Yes
Communities & Local Government,DCLG,15/01/2016,Current (non AEF) Grants to Local Authorities,Local Government & Public Services,CANNOCK CHASE DC,,,,215064770,5000321308,,Retail Relief,WS11 1BG,"13,649.00",Yes
Communities & Local Government,DCLG,15/01/2016,Current (non AEF) Grants to Local Authorities,Local Government & Public Services,CANTERBURY CITY CNCL,,,,,5000321660,,Doubling of Small Business Rates Relief,CT1 1YW,"56,596.00",Yes
Communities & Local Government,DCLG,15/01/2016,Current (non AEF) Grants to Local Authorities,Local Government & Public Services,CANTERBURY CITY CNCL,,,,,5000321664,,Retail Relief,CT1 1YW,"28,407.00",Yes
Communities & Local Government,DCLG,15/01/2016,Current (non AEF) Grants to Local Authorities,Local Government & Public Services,CANTERBURY CITY CNCL,,,,,5000321666,,Business Rates 2% Inflation Cap,CT1 1YW,"5,602.00",Yes
Communities & Local Government,DCLG,15/01/2016,Current (non AEF) Grants to Local Authorities,Local Government & Public Services,CARLISLE CITY CNCL,,,,227471059,5000319094,,Council Tax Freeze,CA3 8QG,"6,960.00",Yes
Communities & Local Government,DCLG,15/01/2016,Current (non AEF) Grants to Local Authorities,Local Government & Public Services,CARLISLE CITY CNCL,,,,227471059,5000321668,,Doubling of Small Business Rates Relief,CA3 8QG,"42,403.00",Yes
Communities & Local Government,DCLG,15/01/2016,Current (non AEF) Grants to Local Authorities,Local Government & Public Services,CARLISLE CITY CNCL,,,,227471059,5000321670,,Business Rates 2% Inflation Cap,CA3 8QG,"4,301.00",Yes
Communities & Local Government,DCLG,15/01/2016,Current (non AEF) Grants to Local Authorities,Local Government & Public Services,CARLISLE CITY CNCL,,,,227471059,5000321674,,Reoccupation Relief,CA3 8QG,"1,691.00",Yes
Communities & Local Government,DCLG,15/01/2016,Current (non AEF) Grants to Local Authorities,Local Government & Public Services,CARLISLE CITY CNCL,,,,227471059,5000321676,,Retail Relief,CA3 8QG,"24,119.00",Yes
Communities & Local Government,DCLG,15/01/2016,Current (non AEF) Grants to Local Authorities,Local Government & Public Services,CARLISLE CITY CNCL,,,,227471059,5000321678,,Small Business Rates Relief on Second Properties,CA3 8QG,338,Yes
Communities & Local Government,DCLG,15/01/2016,Current (non AEF) Grants to Local Authorities,Local Government & Public Services,CASTLE POINT BC,,Public Bodies,,228217931,5000319243,,Council Tax Freeze,SS7 1TF,"7,630.00",Yes
Communities & Local Government,DCLG,15/01/2016,Current (non AEF) Grants to Local Authorities,Local Government & Public Services,CASTLE POINT BC,,Public Bodies,,228217931,5000321311,,Business Rates 2% Inflation Cap,SS7 1TF,"2,502.00",Yes
